Workbook

Sheet Datos de la entidad
E1: Subsecretaría de Educación Básica Dirección General de Desarrollo Curricular Dirección de Fortalecimiento Curricular para la Formación Personal y Social en la Educación Básica Educación Especial
A6: ANEXO 3 PLAN ANUAL DE TRABAJO (PAT) 2025 Programa Fortalecimiento de los Servicios de Educación Especial (PFSEE)
A7: Entidad: | D7: Tabasco
A9: 1. Datos de la Persona Coodinadora Local del PFSEE
A11: Nombre: | D11: Psic. María Eugenia Deantes Salazar
A12: Cargo: | D12: Coordinadora
A13: Domicilio de la oficina: | D13: Calle Héroes del 47 s/n, Colonia Gil y Sáenz, Villahermosa, Tabasco
A17: Correo electrónico: | D17: 27TabPFSEE@correo.setab.gob.mx y dee_tabasco@correo.setab.gob.mx
A18: Teléfono y extensión: | D18: 9934270161 ext. 340
A19: Celular: | D19: 9331152656

Sheet Instrucciones
S1: Subsecretaría de Educación Básica Dirección General de Desarrollo Curricular Dirección de Fortalecimiento Curricular para la Formación Personal y Social en la Educación Básica Educación Especial
A6: Sírvase de las siguientes recomendaciones para el llenado de su formato PAT
A8: Este archivo requiere guardarse como "Libro de Excel habilitado para macros".
A10: 1. Previamente, el formato está diseñado para imprimirse bajo los siguientes criterios, sin embargo, puede hacer las adecuaciones que considere para que las tablas se impriman completas hoja por hoja:
B12: o Formato horizontal
B13: o Tamaño Carta
B14: o Márgenes estrechos
B15: o Escalado 40%
A17: 2. Una vez llenadas las pestañas "Distribución presupuestal 2025" y "SEE 2025", se pasan en automático los servicios que fueron focalizados en cada tabla, así como el recurso proyectado para cada criterio. Lo anterior, para facilitar el llenado a partir de estos datos.
A20: 3. La celda "Remanente" es un apoyo para el llenado del documento, ahí se va actualizando el recurso que no se está planeando con las acciones propuestas. Para la entrega final, el remanente deberá quedar en ceros.
A23: 4. En las pestañas correspondientes a "Acciones académicas", se despliegan las siguientes opciones. Favor de no escribir, únicamente seleccionar del desplegable:
B25: Diplomado | D25: 2do | F25: Encuentro | H25: Arrendamiento de salas / salones
B26: Curso | D26: 3ro | F26: Curso | H26: Compra de recursos didácticos
B27: Taller | D27: 4to | F27: Taller | H27: Reproducción de materiales
B28: Conferencia | F28: Reunión | H28: Pago a conferencistas o talleristas
B29: Asesoría | H29: Contratación de plataforma digital
H30: Pago de viáticos para asistentes
H31: Pago de traslados para asistentes
H32: Coffee break
H33: Compra de papelería
H34: Renta de equipo de audio y/o video
H35: Renta de mobiliario
H36: N/A
A37: 4. En las pestañas correspondientes a "Atención complementaria", se despliegan las siguientes opciones. Favor de no escribir, únicamente seleccionar del desplegable:
B39: Académica | D39: 2do | F39: Campaña | H39: Arrendamiento de salas / salones
B40: Artística | D40: 3ro | F40: Feria | H40: Compra de recursos didácticos
B41: Deportiva | D41: 4to | F41: Evento | H41: Compra de material deportivo y/o artístico
B42: Rehabilitadora | H42: Reproducción de materiales
B43: Desarrollo de habilidades socioafectivas | H43: Pago a especialistas
B44: Para contribuir al diagnóstico | H44: Contratación de plataforma digital
H45: Pago de viáticos para asistentes
H46: Pago de traslados para asistentes
H47: Compra de Box lunch
H48: Compra de papelería
H49: Adquisición de uniformes
H50: Renta de vestuario
H51: Renta de material didáctico y/o deportivo
H52: Diseño y producción de lonas
H53: Renta de equipo de audio y/o video
H54: Renta de mobiliario
H55: N/A
A56: 5. En la pestaña correspondiente a "Equipamiento específico (DIS)", se despliegan las siguientes opciones. Favor de no escribir, únicamente seleccionar del desplegable:
B58: Material didáctico concreto | F58: Libros especializados en atención educativa | H58: Braille | L58: Para el desplazamiento | S58: Software
B59: Esquemas o mapas en relieve | D59: 2do | F59: Libros especializados en discapacidad | H59: Lectura fácil | L59: Para la orientación | S59: Hardware
B60: Regletas y punzón | D60: 3ro | F60: Libros especializados en ciencia | H60: Audiolibro | L60: Para la comunicación | S60: Equipo de cómputo
B61: Caja aritmética | D61: 4to | F61: Libros especializados en artes | H61: Videos con animaciones | S61: Cañón
B62: Ábaco Cramer | F62: Libros en formatos accesibles | H62: Videos con interpretación en LSM | S62: Impresora
B63: Tableros de comunicación | F63: Libros de literatura infantil | H63: Videos con closed caption | S63: Enmicadora
B64: Regletas cuisenaire | F64: Libros de literatura juvenil | H64: Tecnología de bajo costo | S64: Tableta electrónica
B65: Juegos de estrategia adaptados | F65: Equipamiento para espacios de lectura | H65: Otro (especifique) | S65: Equipo para producciones audiovisuales de NNAJ
B66: Material para ciencia | F66: Otro (especifique) | S66: Reproductor de audio
B67: Equipo deportivo | S67: Reproductor de video
B68: Instrumentos musicales acústicos | S68: Equipo de asistencia tecnológica
B69: Material de robótica | S69: Tecnología adaptada
B70: Máquinas robóticas mecánicas | S70: Impresora en Braille
B71: Paquetes con diversos materiales | S71: Máquina Perkins
B72: Otro (especifique) | S72: Calculadora parlante
S73: Magnificador de pantalla
S74: Contratación de plataforma digital
S75: Material para robótica
S76: Instrumentos musicales electrónicos
S77: Otro (especifique)
A78: 6. En la pestaña correspondiente a "Equipamiento específico (AS)", se despliegan las siguientes opciones. Favor de no escribir, únicamente seleccionar del desplegable:
B80: Juegos de estrategia | F80: Libros especializados en atención educativa | J80: Software
B81: Material para ciencia | D81: 2do | F81: Libros especializados en aptitudes sobresalientes | J81: Hardware
B82: Material para artes | D82: 3ro | F82: Libros especializados en ciencia | J82: Equipo de cómputo
B83: Equipo deportivo | D83: 4to | F83: Libros especializados en artes | J83: Cañón
B84: Instrumentos musicales acústicos | F84: Libros de literatura infantil | J84: Impresora
B85: Paquetes con diversos materiales | F85: Libros de literatura juvenil | J85: Tableta electrónica
B86: Material de robótica | F86: Equipamiento para espacios de lectura | J86: Equipo para producciones audiovisuales realizado por NNAJ
B87: Máquinas robóticas mecánicas | F87: Otro (especifique) | J87: Reproductor de audio
B88: Otro (especifique) | J88: Reproductor de video
J89: Material para robótica
J90: Enmicadora
J91: Contratación de plataforma digital
J92: Instrumentos musicales electrónicos
J93: Otro (especifique)
A94: 7. La cantidad a distribuir se refiere al total de material que se va a adquirir y distribuir, es decir 15 regletas, 10 equipos deportivos, etc.
A97: 8. El trimestre se refiere a cuándo se empezará la actividad y cuándo se concluye. Favor de seleccionarlo del desplegable y, si la actividad se realizará en un solo trimestre, se escribe lo mismo en las dos celdas.
A100: 9. Se solicita que, en la medida de lo posible, se diversifique el propósito educativo reportado para cada actividad/adquisición.
A103: 10. Para recabar las firmas de "Autorización", si en su entidad no hay subsistemas, podrá eliminar una de las tablas correspondientes a las firmas de los Responsables de Educación Especial.
A106: 11. Se recomienda que, en caso de no requerir todas las tablas que aparecen a continuación, sea porque no va a realizar acciones en ese criterio de gasto, o no se va a beneficiar a todos los tipos de servicios que se presentan, imprima únicamente lo necesario (es decir, las tablas que contengan algún tipo de información).
A109: 12. En caso de requerir mayor número de filas para reportar más actividades, podrá hacerlo siguiendo la ruta: Inicio / Celdas / Insertar filas. O bien, haciendo click derecho en el encabezado de la fila.
A112: 13. Solicitamos su apoyo para que este formato no sea desbloqueado, agregado o eliminado columnas, ni fórmulas; de lo contrario, se le solicitará que se vuelva a recabar la información en un formato en limpio.
A115: 14. Favor de no eliminar esta pestaña.

Sheet Priorización 2025
E1: Subsecretaría de Educación Básica Dirección General de Desarrollo Curricular Dirección de Fortalecimiento Curricular para la Formación Personal y Social en la Educación Básica Educación Especial
A7: Situación de lo programado en 2025 para los logros del diagnóstico de servicios de educación especial en la entidad
A9: Fortalecimiento 2025
A10: Criterios de selección y priorización de los servicios de educación especial. (Puede seleccionar más de una opción)
A12: Seleccione los criterios de priorización
A13: Seleccione con una X
A14: Servicios de sostenimiento público. | I14: X
A15: Servicios que atienden estudiantes con discapacidad y/o con aptitudes sobresalientes. | I15: X
A16: Servicios que se ubiquen en localidades catalogadas por el CONAPO con un grado de marginación “alto” o “muy alto”. | I16: X
A17: Servicios de nueva creación | I17: 0
A18: Servicios con mayores necesidades de acuerdo con los criterios establecidos en el diagnóstico. | I18: 0
A19: Servicios que atienden a población con discapacidad y/o con aptitudes sobresalientes que se encuentren en doble situación de vulnerabilidad, como indígena, afrodescendiente y migrante. | I19: 0
A20: Servicios que brinden actualización a docentes de escuelas de Educación Básica (Componente 1). | I20: 0
A22: Describa los criterios de dicha priorización
A23: • Promover que los servicios públicos de sostenimiento se beneficien del programa implica garantizar que estos reciban el apoyo y los recursos necesarios para convertirse en verdaderos agentes de cambio. Esto no solo favorece la promoción de una educación inclusiva y de calidad, sino que asegura que cada estudiante, sin importar sus necesidades específicas, pueda acceder a las mismas oportunidades educativas. • Fomentar que los servicios que atienden a estudiantes con discapacidad y/o con aptitudes sobresalientes reciban apoyo del PFSEE es una prioridad para el Estado. Es crucial ofrecer un mayor reconocimiento y respaldo a este alumnado, quienes requieren un enfoque especializado. Impulsar acciones concretas que fortalezcan la atención educativa y el desarrollo de sus capacidades asegura que reciban una educación inclusiva y equitativa, respetando y potenciando sus talentos y habilidades únicas. • La falta de recursos, infraestructura adecuada y personal especializado limita considerablemente las oportunidades de aprendizaje y desarrollo de los estudiantes con discapacidad y/o con aptitudes sobresalientes, especialmente aquellos que reciben servicios en localidades catalogadas por el CONAPO. Brindar el apoyo necesario en estos aspectos es crucial para promover la equidad educativa, fortalecer los servicios de atención y garantizar que todos los estudiantes, sin importar su contexto socioeconómico, reciban las herramientas y el acompañamiento necesarios para alcanzar su máximo potencial. • Es fundamental promover la sensibilización y formación intercultural entre docentes y la comunidad educativa en general. Esto no solo contribuye a crear un entorno inclusivo y respetuoso de la diversidad, sino que también ayuda a cerrar las brechas de desigualdad. De este modo, se fortalece el derecho a una educación equitativa, inclusiva y de calidad para todos los estudiantes, especialmente para aquellos que se encuentran en situación de vulnerabilidad.
A31: Describa de qué manera se satisfacen las necesidades identificadas en su diagnóstico con las acciones programadas para beneficiar a población con discapacidad | D31: Las acciones programadas responden a las necesidades identificadas en el diagnóstico. Se capacitará a los docentes y se fortalecerán los vínculos interinstitucionales para mejorar la atención a estudiantes con discapacidad. Además, se adquirirá material didáctico y equipamiento especializado para enriquecer el aprendizaje y crear espacios accesibles. La implementación de terapias de estimulación mediante el uso de robots para atender a alumnos con Trastorno del Espectro Autista (TEA), en colaboración con la Universidad Tecnológica de Tabasco (UTTAB), directores de CAM y USAER, se alinea con el Componente 2 de Acciones de Atención Complementaria, específicamente bajo el criterio de gasto 2.1. Esta colaboración permite la incorporación de robots en las terapias proporcionando una metodología innovadora que capta la atención de los estudiantes y facilita el aprendizaje de habilidades para la vida diaria. Este enfoque tecnológico también permite adaptar las actividades a las necesidades individuales de cada alumno, promoviendo una educación más personalizada. Los talleres laborales se actualizarán con nuevos equipos para desarrollar habilidades técnicas, y los Centros de Atención Múltiple (CAM) recibirán ayudas técnicas para mejorar la accesibilidad y participación. También se implementarán aulas multisensoriales para apoyar su desarrollo integral. Estas acciones garantizan una educación inclusiva, equitativa y de calidad para todos los estudiantes.
A46: Describa de qué manera se satisfacen las necesidades identificadas en su diagnóstico con las acciones programadas para beneficiar a población con aptitudes sobresalientes | D46: Las acciones programadas están orientadas a beneficiar a los estudiantes con aptitudes sobresalientes, promoviendo su desarrollo integral. Se fortalecerá la capacitación docente, asegurando que los educadores cuenten con las herramientas necesarias para identificar y potenciar las habilidades de estos estudiantes. La iniciativa “Impulsando Robótica y STEAM para Todos", en colaboración con la Asociación Robótica para la Educación, se enmarca en el Componente 2 de Acciones de Atención Complementaria, bajo el criterio de gasto2.1 Acciones orientadas a la intervención directa y la atención complementaria: académica, artística, deportiva, rehabilitadora, desarrollo de habilidades socioafectivas y/o que contribuyan en el diagnóstico de las y los estudiantes con aptitudes sobresalientes. Este proyecto integra disciplinas STEAM (Ciencia, Tecnología, Ingeniería, Arte y Matemáticas) en educación especial y básica, permitiendo que los alumnos desarrollen habilidades de investigación, reflexión sobre soluciones a problemas cotidianos, diseño, construcción y programación de robots. Estas actividades, basadas en el juego y el aprendizaje práctico, facilitan la adquisición de competencias clave para la vida y el trabajo. Se continuará con la dotación de materiales didácticos, pedagógicos y bibliográficos especializados que enriquezcan su aprendizaje y les permitan profundizar en sus áreas de interés. También se proporcionará tecnología adecuada, facilitando el uso de las TIC para potenciar su proceso educativo de manera interactiva y dinámica. Estas acciones garantizan que los estudiantes con aptitudes sobresalientes reciban una educación personalizada, inclusiva y de calidad, adaptada a sus necesidades y capacidades, permitiéndoles alcanzar su máximo potencial.

Sheet Distribución presupuestal 2025
S1: Subsecretaría de Educación Básica Dirección General de Desarrollo Curricular Dirección de Fortalecimiento Curricular para la Formación Personal y Social en la Educación Básica Educación Especial
A6: Esquema de la distribución presupuestal que se planea ejercer en cada uno de los criterios de los 3 componentes. Favor de llenar sólo la información del monto asignado por Convenio, los GOL, y la planeación por criterio de gasto, el resto se calcula solo.
H8: Monto asignado por Convenio Marco | P8: 14620844
B12: POR TIPO DE GASTO | E12: Monto para acciones sustantivas: | S12: Monto para Gastos de Operación Local:
E14: =P8-S14 -> 14433244 | L14: =IFERROR((E14/P8),0) -> 0.9871690034 | S14: 187600 | X14: =IFERROR((S14/P8),0) -> 0.01283099662
S16: El porcentaje esta dentro de lo permitido en RO
B21: POR COMPONENTE EN DIS | D21: Acciones planeadas para beneficiar a población con discapacidad
D23: Acciones académicas para agentes educativos en temas de discapacidad (hasta 50%) | K23: Acciones de atención complementaria para estudiantes con discapacidad (hasta 50%) | T23: Equipamiento específico en beneficio de estudiantes con discapacidad (hasta 80%)
D25: Monto disponible | E25: =E14*0.5 -> 7216622 | H25: hasta 50% | K25: Monto disponible | M25: =E14*0.5 -> 7216622 | P25: hasta 50% | T25: Monto disponible | V25: =E14*0.8 -> 11546595.2 | Z25: hasta 80%
D27: Monto comprometido | E27: =SUM(H51:J52) -> 2000000 | H27: =IFERROR((E27/E14),0) -> 0.138568987 | I27: % | K27: Monto comprometido | M27: =SUM(H56:J57) -> 200569 | P27: =IFERROR((M27/E14),0) -> 0.01389632158 | T27: Monto comprometido | V27: =SUM(H61:J70) -> 7821417 | Z27: =IFERROR((V27/E14),0) -> 0.5419029152
D28: =IF(H27>50%,"El porcentaje es mayor que el permitido en RO",IF(SUM(H27,H37)>50%,"El porcentaje es mayor que el permitido en RO para la suma de DIS y AS","El porcentaje esta dentro de lo permitido en RO")) -> El porcentaje esta dentro de lo permitido en RO | K28: =IF(P27>50%,"El porcentaje es mayor que el permitido en RO",IF(SUM(P27,P37)>50%,"El porcentaje es mayor que el permitido en RO para la suma de DIS y AS","El porcentaje esta dentro de lo permitido en RO")) -> El porcentaje esta dentro de lo permitido en RO | T28: =IF(AA27>50%,"El porcentaje es mayor que el permitido en RO",IF(SUM(AA27,AA37)>50%,"El porcentaje es mayor que el permitido en RO para la suma de DIS y AS","El porcentaje esta dentro de lo permitido en RO")) -> El porcentaje esta dentro de lo permitido en RO
B30: POR COMPONENTE EN AS
D31: Acciones planeadas para beneficiar a población con aptitudes sobresalientes
D33: Acciones académicas para agentes educativos en temas de aptitudes sobresalientes (hasta 50%) | K33: Acciones de atención complementaria para estudiantes con aptitudes sobresalientes (hasta 50%) | T33: Equipamiento específico en beneficio de estudiantes con aptitudes sobresalientes (hasta 80%)
D35: Monto disponible | E35: =E14*0.5 -> 7216622 | H35: hasta 50% | K35: Monto disponible | M35: =E14*0.5 -> 7216622 | P35: hasta 50% | T35: Monto disponible | V35: =E14*0.8 -> 11546595.2 | Z35: hasta 80%
D37: Monto comprometido | E37: =SUM(W51:Y52) -> 2000000 | H37: =IFERROR((E37/E14),0) -> 0.138568987 | I37: % | K37: Monto comprometido | M37: =SUM(W56:Y57) -> 570000 | P37: =IFERROR((M37/E14),0) -> 0.03949216129 | T37: Monto comprometido | V37: =SUM(W61:Y65) -> 1841258 | Z37: =IFERROR((V37/E14),0) -> 0.1275706279
D38: =IF(H37>50%,"El porcentaje es mayor que el permitido en RO",IF(SUM(H27,H37)>50%,"El porcentaje es mayor que el permitido en RO para la suma de DIS y AS","El porcentaje esta dentro de lo permitido en RO")) -> El porcentaje esta dentro de lo permitido en RO | K38: =IF(P37>50%,"El porcentaje es mayor que el permitido en RO",IF(SUM(P27,P37)>50%,"El porcentaje es mayor que el permitido en RO para la suma de DIS y AS","El porcentaje esta dentro de lo permitido en RO")) -> El porcentaje esta dentro de lo permitido en RO | T38: =IF(AA37>50%,"El porcentaje es mayor que el permitido en RO",IF(SUM(AA27,AA37)>50%,"El porcentaje es mayor que el permitido en RO para la suma de DIS y AS","El porcentaje esta dentro de lo permitido en RO")) -> El porcentaje esta dentro de lo permitido en RO
B42: BALANCE FINAL | G42: =+E14-E27-M27-V27 -> 4411258 | M42: =+E14-E37-M37-V37 -> 10021986 | U42: =+E14-G42-M42 -> 0
U43: =IF((U42)=0,"Su distribución coincide con el subsidio total","revise su planeación") -> Su distribución coincide con el subsidio total
A47: Planeación de acciones para beneficio de estudiantes con discapacidad | R47: Planeación de acciones académicas en temas de aptitudes sobresalientes
A49: Componente 1. Acciones académicas para agentes educativos en temas de discapacidad | R49: Componente 1. Acciones académicas para agentes educativos en temas de aptitudes sobresalientes
A50: Criterio | G50: Monto comprometido | L50: % respecto al monto autorizado | R50: Criterio | V50: Monto comprometido | AA50: % respecto al monto autorizado
A51: 1.1 Acciones de actualización y fortalecimiento académico de agentes educativos en temas de discapacidad. | G51: $ | H51: 2000000 | L51: =IFERROR((H51/$E$25),0) -> 0.277137974 | R51: 1.1 Acciones de actualización y fortalecimiento académico de agentes educativos en temas de aptitudes sobresalientes. | V51: $ | W51: 2000000 | AA51: =IFERROR((W51/$E$35),0) -> 0.277137974
A52: 1.2 Encuentros, cursos, talleres y/o reuniones entre madres y padres de familia o tutores de estudiantes con discapacidad para la conformación y operación de sus redes de apoyo. | D52: 1.2 Acciones orientadas a sensibilizar, promover, difundir y, desarrollar en la comunidad escolar una cultura inclusiva | G52: $ | H52: 0 | L52: =IFERROR((H52/$E$25),0) -> 0 | R52: 1.2 Encuentros, cursos, talleres y/o reuniones entre madres y padres de familia o tutores de estudiantes con aptitudes sobresalientes para la conformación y operación de sus redes de apoyo. | S52: 1.2 Acciones orientadas a sensibilizar, promover, difundir y, desarrollar en la comunidad escolar una cultura inclusiva | V52: $ | W52: 0 | AA52: =IFERROR((W52/$E$35),0) -> 0
A54: Componente 2. Acciones de atención complementaria para estudiantes con discapacidad | R54: Componente 2. Acciones de atención complementaria para estudiantes con aptitudes sobresalientes
A55: Criterio | G55: Monto comprometido | L55: % respecto al monto autorizado | R55: Criterio | V55: Monto comprometido | AA55: % respecto al monto autorizado
A56: 2.1 Acciones orientadas a la intervención directa y la atención complementaria: académica, artística, deportiva, rehabilitadora, desarrollo de habilidades socioafectivas y/o que contribuyan en el diagnóstico de las y los estudiantes con discapacidad. | G56: $ | H56: 200569 | L56: =IFERROR((H56/$M$25),0) -> 0.02779264315 | R56: 2.1 Acciones orientadas a la intervención directa y la atención complementaria: académica, artística, deportiva, rehabilitadora, desarrollo de habilidades socioafectivas y/o que contribuyan en el diagnóstico de las y los estudiantes con aptitudes sobresalientes. | V56: $ | W56: 570000 | AA56: =IFERROR((W56/$M$35),0) -> 0.07898432258
A57: 2.2 Acciones orientadas a que las y los estudiantes con discapacidad pongan en práctica las habilidades académicas, artísticas, deportivas, para la vida y/o laborales y que promuevan la sensibilización, promoción, difusión y desarrollo en la comunidad escolar una cultura inclusiva, a través de campañas, ferias y eventos. | G57: $ | H57: 0 | L57: =IFERROR((H57/$M$25),0) -> 0 | R57: 2.2 Acciones orientadas a que las y los estudiantes con aptitudes sobresalientes, pongan en práctica las habilidades académicas, artísticas, deportivas, para la vida y/o laborales y que promuevan la sensibilización, promoción, difusión y desarrollo en la comunidad escolar una cultura inclusiva, a través de campañas, ferias y eventos. | V57: $ | W57: 0 | AA57: =IFERROR((W57/$M$35),0) -> 0
A59: Componente 3. Equipamiento específico en beneficio de estudiantes con discapacidad | R59: Componente 3. Equipamiento específico en beneficio de estudiantes con aptitudes sobresalientes
A60: Criterio | G60: Monto comprometido | L60: % respecto al monto autorizado | R60: Criterio | V60: Monto comprometido | AA60: % respecto al monto autorizado
A61: 3.1 Dotar de material didáctico especializado para estudiantes con discapacidad. | G61: $ | H61: 1315775 | L61: =IFERROR((H61/$V$25),0) -> 0.1139535055 | R61: 3.10 Dotar de material didáctico especializado para estudiantes con aptitudes sobresalientes. | V61: $ | W61: 231770 | AA61: =IFERROR((W61/$V$35),0) -> 0.02007258382
A62: 3.2 Adquirir equipamiento y materiales para espacios de lectura y dotar de material bibliográfico para estudiantes con discapacidad. | G62: $ | H62: 0 | L62: =IFERROR((H62/$V$25),0) -> 0 | R62: 3.11 Adquirir equipamiento y materiales para espacios de lectura y dotar de material bibliográfico para estudiantes con aptitudes sobresalientes. | V62: $ | W62: 565488 | AA62: =IFERROR((W62/$V$35),0) -> 0.04897443707
A63: 3.3 Diseño, producción e impresión de material en formatos adaptados para favorecer la accesibilidad de estudiantes con discapacidad. | G63: $ | H63: 0 | L63: =IFERROR((H63/$V$25),0) -> 0 | R63: 3.12 Dotar de insumos de papelería (hojas, tóner) para la reproducción de entrevistas, cuestionarios e inventarios para la detección de estudiantes con aptitudes sobresalientes, así como para la contratación de servicios de aplicación y procesamiento en línea, de instrumentos de evaluación. | V63: $ | W63: 0 | AA63: =IFERROR((W63/$V$35),0) -> 0
A64: 3.4 Dotar de equipo adaptado, tecnológico y/o multimedia para estudiantes con discapacidad. | G64: $ | H64: 250000 | L64: =IFERROR((H64/$V$25),0) -> 0.02165140422 | R64: 3.13 Dotar de equipo tecnológico y/o multimedia para estudiantes con aptitudes sobresalientes. | V64: $ | W64: 1044000 | AA64: =IFERROR((W64/$V$35),0) -> 0.09041626401
A65: 3.5 Adquirir equipamiento, herramientas, utensilios, enseres domésticos y aparatos electrónicos que se requieren para impartir las especialidades que se ofertan en los CAM laboral y con Formación para el Trabajo. | G65: $ | H65: 2119063 | L65: =IFERROR((H65/$V$25),0) -> 0.1835227583 | R65: 3.14 Dotar de insumos y materiales consumibles no perecederos que se requieren para apoyar las actividades curriculares y extracurriculares de las y los estudiantes con aptitudes sobresalientes. | V65: $ | W65: 0 | AA65: =IFERROR((W65/$V$35),0) -> 0
A67: 3.6 Dotar de insumos y materiales consumibles no perecederos que se requieren en las especialidades que se ofertan en los CAM laboral y con Formación para el Trabajo para apoyar las actividades de las y los estudiantes con discapacidad. | G67: $ | H67: 0 | L67: =IFERROR((H67/$V$25),0) -> 0
A68: 3.7 Adquirir ayudas técnicas para la accesibilidad y movilidad que mejoren las condiciones para el desplazamiento, orientación y comunicación de la o el estudiante con discapacidad. | G68: $ | H68: 75000 | L68: =IFERROR((H68/$V$25),0) -> 0.006495421265
A69: 3.8 Dotar de mobiliario ordinario y/o adaptado para las y los estudiantes con discapacidad. | G69: $ | H69: 468950 | L69: =IFERROR((H69/$V$25),0) -> 0.04061370403
A70: 3.9 Adquirir equipamiento y materiales para aulas multisensoriales. | G70: $ | H70: 3592629 | L70: =IFERROR((H70/$V$25),0) -> 0.3111418507

Sheet SEE 2025
O1: Subsecretaría de Educación Básica Dirección General de Desarrollo Curricular Dirección de Fortalecimiento Curricular para la Formación Personal y Social en la Educación Básica Educación Especial
A6: Información cuantitativa respecto al número de servicios de educación especial que existen en su entidad y los que serán beneficiados en este año fiscal. En caso de no contar con algún tipo de servicio poner "0".
A8: Total de servicios de educación especial en la entidad
A9: Servicios de educación especial públicos que existen en la entidad | B9: USAER | C9: CAM Básico | D9: CAM Laboral | E9: CAPEP | F9: CRIE | G9: UOP | H9: UAEBH | I9: Otro | J9: Total
B10: 174 | C10: 2 | D10: 0 | E10: 0 | F10: 0 | G10: 0 | H10: 2 | I10: 0 | J10: =SUM(B10,C10,C12,D10,E10,F10,G10,H10,I10) -> 203
C11: Con FpT | I11: (especifique)
C12: 25 | I12: 0
A13: Focalización para población con discapacidad | M13: Focalización para población con aptitudes sobresalientes
A14: Servicios de educación especial focalizados en el componente 1. Acciones académicas para agentes educativos en temas de discapacidad | M14: Servicios de educación especial focalizados en el componente 1. Acciones académicas para agentes educativos en temas de aptitudes sobresalientes
A15: Servicios focalizados para beneficiar a través del PFSEE en el año 2025 en el componente 1 | B15: USAER | C15: CAM Básico | D15: CAM Laboral | E15: CAPEP | F15: CRIE | G15: UOP | H15: UAEBH | I15: Otro | J15: Total | M15: Servicios focalizados para beneficiar a través del PFSEE en el año 2025 en el componente 1 | N15: USAER | O15: CAPEP | P15: CRIE | Q15: UOP | R15: UAEBH | S15: Otro | T15: Total
B16: 171 | C16: 2 | D16: 0 | E16: 0 | F16: 0 | G16: 0 | H16: 2 | I16: 0 | J16: =SUM(B16,C16,C18,D16,E16,F16,G16,H16,I16) -> 200 | N16: 174 | O16: 0 | P16: 0 | Q16: 0 | R16: 0 | S16: 0 | T16: =SUM(N16,O16,P16,Q16,R16,S16) -> 174
C17: Con FpT | I17: (especifique) | S17: (especifique)
C18: 25 | I18: 0 | S18: 0
A19: Servicios de educación especial focalizados en el componente 2. Acciones de atención complementaria para estudiantes con discapacidad | M19: Servicios de educación especial focalizados en el componente 2. Acciones de atención complementaria para estudiantes con aptitudes sobresalientes
A20: Servicios focalizados para beneficiar a través del PFSEE en el año 2025 en el componente 2 | B20: USAER | C20: CAM Básico | D20: CAM Laboral | E20: CAPEP | F20: CRIE | G20: UOP | H20: UAEBH | I20: Otro | J20: Total | M20: Servicios focalizados para beneficiar a través del PFSEE en el año 2025 en el componente 2 | N20: USAER | O20: CAPEP | P20: CRIE | Q20: UOP | R20: UAEBH | S20: Otro | T20: Total
B21: 10 | C21: 0 | D21: 0 | E21: 0 | F21: 0 | G21: 0 | H21: 0 | I21: 0 | J21: =SUM(B21,C21,C23,D21,E21,F21,G21,H21,I21) -> 13 | N21: 10 | O21: 0 | P21: 0 | Q21: 0 | R21: 0 | S21: 0 | T21: =SUM(N21,O21,P21,Q21,R21,S21) -> 10
C22: Con FpT | I22: (especifique) | S22: (especifique)
C23: 3 | I23: 0 | S23: 0
A24: Servicios de educación especial focalizados en el componente 3. Equipamiento específico en beneficio de estudiantes con discapacidad | M24: Servicios de educación especial focalizados en el componente 3. Equipamiento específico en beneficio de estudiantes con aptitudes sobresalientes
A25: Servicios focalizados para beneficiar a través del PFSEE en el año 2025 en el componente 3 | B25: USAER | C25: CAM Básico | D25: CAM Laboral | E25: CAPEP | F25: CRIE | G25: UOP | H25: UAEBH | I25: Otro | J25: Total | M25: Servicios focalizados para beneficiar a través del PFSEE en el año 2025 en el componente 3 | N25: USAER | O25: CAPEP | P25: CRIE | Q25: UOP | R25: UAEBH | S25: Otro | T25: Total
B26: 174 | C26: 2 | D26: 0 | E26: 0 | F26: 0 | G26: 0 | H26: 2 | I26: 0 | J26: =SUM(B26,C26,C28,D26,E26,F26,G26,H26,I26) -> 203 | N26: 154 | O26: 0 | P26: 0 | Q26: 0 | R26: 0 | S26: 0 | T26: =SUM(N26,O26,P26,Q26,R26,S26) -> 154
C27: Con FpT | I27: (especifique) | S27: (especifique)
C28: 25 | I28: 0 | S28: 0
A30: *Con FpT: Con Formación para el Trabajo
A32: Para el llenado de esta hoja de Excel considerar los siguientes puntos:
A33: a) En la tabla superior se reporta la totalidad de servicios y en las siguientes tres, únicamente los que serán beneficiados por el PFSEE en este 2025, por criterio general de gasto.
A34: b) En "CAM Básico" se reportan los centros que ofrecen educación básica, que no cuentan con formación para el trabajo.
A35: c) En "Con FpT" se reportan los CAM Básicos que además de la educación básica, cuentan con talleres de formación para el trabajo.
A36: d) En "CAM Laboral" se reportan únicamente los centros dedicados a la formación laboral o para el trabajo.
A37: e) Cuidar de no repetir los datos, pues entre lo reportado en CAM Básico, Con FpT y CAM Laboral, debe sumar la totalidad de los CAM en su entidad.
A38: f) Si en su entidad cuenta con otro tipo de servicio no considerado en la tabla, reportar la cantidad en "Otro" y anotar su nombre en el apartado "(especifique)".

Sheet Población total 2025
AE1: Subsecretaría de Educación Básica Dirección General de Desarrollo Curricular Dirección de Fortalecimiento Curricular para la Formación Personal y Social en la Educación Básica Educación Especial
A6: Información cuantitativa respecto a la población que atienden los servicios de educación especial, en su entidad, por sexo y tipo de condición:
A7: Población total atendida por los servicios de educación especial
A8: Condición | B8: Población atendida por condición y por SEE | Q8: Población total atendida | T8: De la población total reportada por condición, especifique si se trata de alguna de las siguientes poblaciones.
B9: USAER | E9: CAM básico | H9: CAM básico con FpT | K9: CAM laboral | N9: Otro | Q9: M | R9: H | S9: TOTAL | T9: Población indígena | W9: Población afrodescendiente | Z9: Población migrante | AD9: Estudiantes atendidos
B10: M | C10: H | D10: TOTAL | E10: M | F10: H | G10: TOTAL | H10: M | I10: H | J10: TOTAL | K10: M | L10: H | M10: TOTAL | N10: M | O10: H | P10: TOTAL | T10: M | U10: H | V10: TOTAL | W10: M | X10: H | Y10: TOTAL | Z10: M | AA10: H | AB10: TOTAL | AD10: CAPEP | AH10: UAEBH
A11: Ceguera | B11: 47 | C11: 49 | D11: =SUM(B11:C11) -> 96 | E11: 0 | F11: 0 | G11: =SUM(E11:F11) -> 0 | H11: 23 | I11: 18 | J11: =SUM(H11:I11) -> 41 | K11: 0 | L11: 0 | M11: =SUM(K11:L11) -> 0 | N11: 0 | O11: 0 | P11: =SUM(N11:O11) -> 0 | Q11: =SUM(B11,E11,H11,K11,N11) -> 70 | R11: =SUM(C11,F11,I11,L11,O11) -> 67 | S11: =SUM(Q11,R11) -> 137 | T11: 0 | U11: 0 | V11: =SUM(T11,U11) -> 0 | W11: 0 | X11: 0 | Y11: =SUM(W11,X11) -> 0 | Z11: 0 | AA11: 0 | AB11: =SUM(Z11,AA11) -> 0 | AD11: M | AE11: H | AF11: TOTAL | AH11: M | AI11: H | AJ11: TOTAL
A12: Baja Visión | B12: 212 | C12: 210 | D12: =SUM(B12:C12) -> 422 | E12: 0 | F12: 0 | G12: =SUM(E12:F12) -> 0 | H12: 7 | I12: 9 | J12: =SUM(H12:I12) -> 16 | K12: 0 | L12: 0 | M12: =SUM(K12:L12) -> 0 | N12: 0 | O12: 0 | P12: =SUM(N12:O12) -> 0 | Q12: =SUM(B12,E12,H12,K12,N12) -> 219 | R12: 219 | S12: =SUM(Q12,R12) -> 438 | T12: 0 | U12: 0 | V12: =SUM(T12,U12) -> 0 | W12: 0 | X12: 0 | Y12: =SUM(W12,X12) -> 0 | Z12: 0 | AA12: 0 | AB12: =SUM(Z12,AA12) -> 0 | AD12: 0 | AE12: 0 | AF12: =SUM(AD12,AE12) -> 0 | AH12: 317 | AI12: 339 | AJ12: =SUM(AH12,AI12) -> 656
A13: Sordera | B13: 11 | C13: 12 | D13: 23 | E13: 9 | F13: 25 | G13: 34 | H13: 13 | I13: 11 | J13: 24 | K13: 0 | L13: 0 | M13: 0 | N13: 0 | O13: 0 | P13: 0 | Q13: 33 | R13: 48 | S13: 81 | T13: 0 | U13: 0 | V13: 0 | W13: 0 | X13: 0 | Y13: 0 | Z13: 0 | AA13: 0 | AB13: 0 | AD13: Personal docente y/o directivos atendidos
A14: Hipoacusia | B14: 124 | C14: 139 | D14: 263 | E14: 14 | F14: 8 | G14: 22 | H14: 31 | I14: 48 | J14: 79 | K14: 0 | L14: 0 | M14: 0 | N14: 0 | O14: 0 | P14: 0 | Q14: 169 | R14: 195 | S14: 364 | T14: 0 | U14: 0 | V14: 0 | W14: 0 | X14: 0 | Y14: 0 | Z14: 0 | AA14: 0 | AB14: 0 | AD14: CRIE | AH14: UOP
A15: Sordoceguera | B15: 0 | C15: 0 | D15: 0 | E15: 0 | F15: 0 | G15: 0 | H15: 0 | I15: 0 | J15: 0 | K15: 0 | L15: 0 | M15: 0 | N15: 0 | O15: 0 | P15: 0 | Q15: 0 | R15: 0 | S15: 0 | T15: 0 | U15: 0 | V15: 0 | W15: 0 | X15: 0 | Y15: 0 | Z15: 0 | AA15: 0 | AB15: 0 | AD15: M | AE15: H | AF15: TOTAL | AH15: M | AI15: H | AJ15: TOTAL
A16: Motriz | B16: 185 | C16: 248 | D16: 433 | E16: 0 | F16: 0 | G16: 0 | H16: 48 | I16: 78 | J16: 126 | K16: 0 | L16: 0 | M16: 0 | N16: 0 | O16: 0 | P16: 0 | Q16: 233 | R16: 326 | S16: 559 | T16: 0 | U16: 0 | V16: 0 | W16: 0 | X16: 0 | Y16: 0 | Z16: 0 | AA16: 0 | AB16: 0 | AD16: 0 | AE16: 0 | AF16: =SUM(AD16,AE16) -> 0 | AH16: 0 | AI16: 0 | AJ16: =SUM(AH16,AI16) -> 0
A17: Intelectual | B17: 766 | C17: 1091 | D17: 1857 | E17: 40 | F17: 62 | G17: 102 | H17: 355 | I17: 468 | J17: 823 | K17: 0 | L17: 0 | M17: 0 | N17: 0 | O17: 0 | P17: 0 | Q17: 1161 | R17: 1621 | S17: 2782 | T17: 0 | U17: 0 | V17: 0 | W17: 0 | X17: 0 | Y17: 0 | Z17: 0 | AA17: 0 | AB17: 0 | AD17: Familias y/o público en general atendidos
A18: Psicosocial | B18: 178 | C18: 234 | D18: 412 | E18: 0 | F18: 0 | G18: 0 | H18: 5 | I18: 8 | J18: 13 | K18: 0 | L18: 0 | M18: 0 | N18: 0 | O18: 0 | P18: 0 | Q18: 183 | R18: 242 | S18: 425 | T18: 0 | U18: 0 | V18: 0 | W18: 0 | X18: 0 | Y18: 0 | Z18: 0 | AA18: 0 | AB18: 0 | AD18: CRIE | AH18: UOP
A19: Espectro autista | B19: 219 | C19: 990 | D19: 1209 | E19: 0 | F19: 0 | G19: 0 | H19: 68 | I19: 275 | J19: 343 | K19: 0 | L19: 0 | M19: 0 | N19: 0 | O19: 0 | P19: 0 | Q19: 287 | R19: 1265 | S19: 1552 | T19: 0 | U19: 0 | V19: 0 | W19: 0 | X19: 0 | Y19: 0 | Z19: 0 | AA19: 0 | AB19: 0 | AD19: M | AE19: H | AF19: TOTAL | AH19: M | AI19: H | AJ19: TOTAL
A20: Múltiple | B20: 29 | C20: 42 | D20: 71 | E20: 0 | F20: 4 | G20: 4 | H20: 41 | I20: 44 | J20: 85 | K20: 0 | L20: 0 | M20: 0 | N20: 0 | O20: 0 | P20: 0 | Q20: 70 | R20: 90 | S20: 160 | T20: 0 | U20: 0 | V20: 0 | W20: 0 | X20: 0 | Y20: 0 | Z20: 0 | AA20: 0 | AB20: 0 | AD20: 0 | AE20: 0 | AF20: =SUM(AD20,AE20) -> 0 | AH20: 0 | AI20: 0 | AJ20: =SUM(AH20,AI20) -> 0
A21: TDA TDA-H | B21: 306 | C21: 1611 | D21: 1917 | E21: 0 | F21: 0 | G21: 0 | H21: 6 | I21: 46 | J21: 52 | K21: 0 | L21: 0 | M21: 0 | N21: 0 | O21: 0 | P21: 0 | Q21: 312 | R21: 1657 | S21: 1969 | T21: 0 | U21: 0 | V21: 0 | W21: 0 | X21: 0 | Y21: 0 | Z21: 0 | AA21: 0 | AB21: 0
A22: AS Intelectual | B22: 334 | C22: 409 | D22: 743 | E22: =SUM(E11:E21) -> 63 | F22: =SUM(F11:F21) -> 99 | G22: =SUM(G11:G21) -> 162 | H22: 597 | I22: 1005 | J22: 1602 | K22: 0 | L22: 0 | M22: =SUM(K22,L22) -> 0 | N22: 0 | O22: 0 | P22: 0 | Q22: =SUM(B22,N22) -> 334 | R22: =SUM(C22,O22) -> 409 | S22: 743 | T22: 0 | U22: 0 | V22: 0 | W22: 0 | X22: 0 | Y22: 0 | Z22: 0 | AA22: 0 | AB22: 0 | AF22: Total de estudiantes atendidos
A23: AS Creativa | B23: 147 | C23: 95 | D23: 242 | N23: 0 | O23: 0 | P23: 0 | Q23: =SUM(B23,N23) -> 147 | R23: 95 | S23: 242 | T23: 0 | U23: 0 | V23: 0 | W23: 0 | X23: 0 | Y23: 0 | Z23: 0 | AA23: 0 | AB23: 0
A24: AS Artística | B24: 380 | C24: 276 | D24: 656 | N24: 0 | O24: 0 | P24: 0 | Q24: 380 | R24: 276 | S24: 656 | T24: 0 | U24: 0 | V24: 0 | W24: 0 | X24: 0 | Y24: 0 | Z24: 0 | AA24: 0 | AB24: 0 | AF24: M | AG24: H | AH24: Total
A25: AS Psicomotriz | B25: 78 | C25: 135 | D25: 213 | N25: 0 | O25: 0 | P25: 0 | Q25: 78 | R25: 135 | S25: 213 | T25: 0 | U25: 0 | V25: 0 | W25: 0 | X25: 0 | Y25: 0 | Z25: 0 | AA25: 0 | AB25: 0 | AF25: =SUM(Q27,AD12,AH12) -> 4143 | AG25: =SUM(R27,AE12,AI12) -> 7076 | AH25: =SUM(AF25,AG25) -> 11219
A26: AS Socioafectiva | B26: 150 | C26: 92 | D26: 242 | N26: 0 | O26: 0 | P26: 0 | Q26: 150 | R26: 92 | S26: 242 | T26: 0 | U26: 0 | V26: 0 | W26: 0 | X26: 0 | Y26: 0 | Z26: 0 | AA26: 0 | AB26: 0
A27: Totales | B27: =SUM(B11:B26) -> 3166 | C27: =SUM(C11:C26) -> 5633 | D27: =SUM(B27,C27) -> 8799 | N27: =SUM(N11:N26) -> 0 | O27: =SUM(O11:O26) -> 0 | P27: 0 | Q27: =SUM(B27,K22,H22,E22,N27) -> 3826 | R27: =SUM(C27,F22,I22,L22,O27) -> 6737 | S27: =SUM(Q27,R27) -> 10563 | T27: =SUM(T11:T26) -> 0 | U27: =SUM(U11:U26) -> 0 | V27: =SUM(T27,U27) -> 0 | W27: =SUM(W11:W26) -> 0 | X27: =SUM(X11:X26) -> 0 | Y27: =SUM(W27,X27) -> 0 | Z27: =SUM(Z11:Z26) -> 0 | AA27: =SUM(AA11:AA26) -> 0 | AB27: =SUM(Z27,AA27) -> 0
A30: AS: Aptitudes sobresalientes | G30: TDA: Trastorno por Déficit de Atención
G31: TDA-H: Trastorno por Déficit de Atención e Hiperactividad
A34: Personal total en los servicios de educación especial | X34: Personal docente: maestra(o) de grupo, docente de taller.
N35: Personal docente | Q35: Personal paradocente | T35: Personal administrativo | X35: Personal paradocente: equipo de apoyo, niñera, médica (o), enfermera (o).
N36: M | O36: H | P36: TOTAL | Q36: M | R36: H | S36: TOTAL | T36: M | U36: H | V36: TOTAL | X36: Personal administrativo: secretaria (o), asistente, chofer, limpieza.
B37: M | C37: H | D37: TOTAL | K37: USAER | N37: 956 | O37: 166 | P37: =SUM(N37:O37) -> 1122 | Q37: 462 | R37: 70 | S37: =SUM(Q37:R37) -> 532 | T37: 58 | U37: 19 | V37: =SUM(T37:U37) -> 77
A38: Supervisores | B38: 13 | C38: 3 | D38: =SUM(B38:C38) -> 16 | K38: CAM básico | N38: 24 | O38: 6 | P38: =SUM(N38:O38) -> 30 | Q38: 6 | R38: 0 | S38: =SUM(Q38:R38) -> 6 | T38: 2 | U38: 6 | V38: =SUM(T38:U38) -> 8
A39: ATP | B39: 3 | C39: 0 | D39: =SUM(B39:C39) -> 3 | K39: CAM básico con FpT | N39: 186 | O39: 50 | P39: 236 | Q39: 77 | R39: 5 | S39: 82 | T39: 33 | U39: 46 | V39: 79
A40: Directivas (os) | B40: 65 | C40: 138 | D40: =SUM(B40:C40) -> 203 | K40: CAM laboral | N40: 0 | O40: 0 | P40: 0 | Q40: 0 | R40: 0 | S40: 0 | T40: 0 | U40: 0 | V40: 0
K41: CAPEP | N41: 0 | O41: 0 | P41: 0 | Q41: 0 | R41: 0 | S41: 0 | T41: 0 | U41: 0 | V41: 0
K42: CRIE | N42: 0 | O42: 0 | P42: 0 | Q42: 0 | R42: 0 | S42: 0 | T42: 0 | U42: 0 | V42: 0
K43: UOP | N43: 0 | O43: 0 | P43: 0 | Q43: 0 | R43: 0 | S43: 0 | T43: 0 | U43: 0 | V43: 0
K44: UAEBH | N44: 3 | O44: 1 | P44: 4 | Q44: 1 | R44: 0 | S44: 1 | T44: 0 | U44: 0 | V44: 0
J45: Otro | K45: [Nombre] | N45: 0 | O45: 0 | P45: 0 | Q45: 0 | R45: 0 | S45: 0 | T45: 0 | U45: 0 | V45: 0

Sheet Beneficiarios DIS 2025
AE1: Subsecretaría de Educación Básica Dirección General de Desarrollo Curricular Dirección de Fortalecimiento Curricular para la Formación Personal y Social en la Educación Básica Educación Especial
A6: Información cuantitativa respecto a la población con discapacidad que atienden los servicios de educación especial focalizados, en su entidad, por sexo y tipo de condición:
A8: Población con discapacidad atendida por los servicios de educación especial focalizados en el componente 1 para beneficiar en 2025
A9: Condición | B9: Beneficiarias/os por condición y por SEE | Q9: Población total beneficiaria | T9: De la población total reportada por condición, especifique si se trata de alguna de las siguientes poblaciones.
B10: USAER | E10: CAM básico | H10: CAM básico con FpT | K10: CAM laboral | N10: Otro | Q10: M | R10: H | S10: TOTAL | T10: Población indígena | W10: Población afrodescendiente | Z10: Población migrante | AD10: Estudiantes focalizados discapacidad
B11: M | C11: H | D11: TOTAL | E11: M | F11: H | G11: TOTAL | H11: M | I11: H | J11: TOTAL | K11: M | L11: H | M11: TOTAL | N11: M | O11: H | P11: TOTAL | T11: M | U11: H | V11: TOTAL | W11: M | X11: H | Y11: TOTAL | Z11: M | AA11: H | AB11: TOTAL | AD11: CAPEP | AH11: UAEBH
A12: Ceguera | B12: 46 | C12: 48 | D12: =SUM(B12:C12) -> 94 | E12: 0 | F12: 0 | G12: =SUM(E12:F12) -> 0 | H12: 23 | I12: 18 | J12: =SUM(H12:I12) -> 41 | K12: 0 | L12: 0 | M12: =SUM(K12:L12) -> 0 | N12: 0 | O12: 0 | P12: =SUM(N12:O12) -> 0 | Q12: =SUM(B12,E12,H12,K12,N12) -> 69 | R12: =SUM(C12,F12,I12,L12,O12) -> 66 | S12: =SUM(Q12,R12) -> 135 | T12: 0 | U12: 0 | V12: =SUM(T12,U12) -> 0 | W12: 0 | X12: 0 | Y12: =SUM(W12,X12) -> 0 | Z12: 0 | AA12: 0 | AB12: =SUM(Z12,AA12) -> 0 | AD12: M | AE12: H | AF12: TOTAL | AH12: M | AI12: H | AJ12: TOTAL
A13: Baja Visión | B13: 209 | C13: 204 | D13: =SUM(B13:C13) -> 413 | E13: 0 | F13: 0 | G13: =SUM(E13:F13) -> 0 | H13: 7 | I13: 9 | J13: =SUM(H13:I13) -> 16 | K13: 0 | L13: 0 | M13: =SUM(K13:L13) -> 0 | N13: 0 | O13: 0 | P13: =SUM(N13:O13) -> 0 | Q13: =SUM(B13,E13,H13,K13,N13) -> 216 | R13: 213 | S13: 429 | T13: 0 | U13: 0 | V13: =SUM(T13,U13) -> 0 | W13: 0 | X13: 0 | Y13: =SUM(W13,X13) -> 0 | Z13: 0 | AA13: 0 | AB13: =SUM(Z13,AA13) -> 0 | AD13: 0 | AE13: 0 | AF13: =SUM(AD13,AE13) -> 0 | AH13: 317 | AI13: 339 | AJ13: =SUM(AH13,AI13) -> 656
A14: Sordera | B14: 11 | C14: 12 | D14: 23 | E14: 9 | F14: 25 | G14: 34 | H14: 13 | I14: 11 | J14: 24 | K14: 0 | L14: 0 | M14: 0 | N14: 0 | O14: 0 | P14: 0 | Q14: 33 | R14: 48 | S14: 81 | T14: 0 | U14: 0 | V14: 0 | W14: 0 | X14: 0 | Y14: 0 | Z14: 0 | AA14: 0 | AB14: 0 | AD14: Personal docente y/o directivos focalizados
A15: Hipoacusia | B15: 122 | C15: 137 | D15: 259 | E15: 14 | F15: 8 | G15: 22 | H15: 31 | I15: 48 | J15: 79 | K15: 0 | L15: 0 | M15: 0 | N15: 0 | O15: 0 | P15: 0 | Q15: 167 | R15: 193 | S15: 360 | T15: 0 | U15: 0 | V15: 0 | W15: 0 | X15: 0 | Y15: 0 | Z15: 0 | AA15: 0 | AB15: 0 | AD15: CRIE | AH15: UOP
A16: Sordoceguera | B16: 0 | C16: 0 | D16: 0 | E16: 0 | F16: 0 | G16: 0 | H16: 0 | I16: 0 | J16: 0 | K16: 0 | L16: 0 | M16: 0 | N16: 0 | O16: 0 | P16: 0 | Q16: 0 | R16: 0 | S16: 0 | T16: 0 | U16: 0 | V16: 0 | W16: 0 | X16: 0 | Y16: 0 | Z16: 0 | AA16: 0 | AB16: 0 | AD16: M | AE16: H | AF16: TOTAL | AH16: M | AI16: H | AJ16: TOTAL
A17: Motriz | B17: 183 | C17: 244 | D17: 427 | E17: 0 | F17: 0 | G17: 0 | H17: 48 | I17: 78 | J17: 126 | K17: 0 | L17: 0 | M17: 0 | N17: 0 | O17: 0 | P17: 0 | Q17: 231 | R17: 322 | S17: 553 | T17: 0 | U17: 0 | V17: 0 | W17: 0 | X17: 0 | Y17: 0 | Z17: 0 | AA17: 0 | AB17: 0 | AD17: 0 | AE17: 0 | AF17: =SUM(AD17,AE17) -> 0 | AH17: 0 | AI17: 0 | AJ17: =SUM(AH17,AI17) -> 0
A18: Intelectual | B18: 762 | C18: 1078 | D18: 1840 | E18: 40 | F18: 62 | G18: 102 | H18: 355 | I18: 468 | J18: 823 | K18: 0 | L18: 0 | M18: 0 | N18: 0 | O18: 0 | P18: 0 | Q18: 1157 | R18: 1608 | S18: 2765 | T18: 0 | U18: 0 | V18: 0 | W18: 0 | X18: 0 | Y18: 0 | Z18: 0 | AA18: 0 | AB18: 0 | AD18: Familias y/o público en general focalizados
A19: Psicosocial | B19: 175 | C19: 234 | D19: 409 | E19: 0 | F19: 0 | G19: 0 | H19: 5 | I19: 8 | J19: 13 | K19: 0 | L19: 0 | M19: 0 | N19: 0 | O19: 0 | P19: 0 | Q19: 180 | R19: 242 | S19: 422 | T19: 0 | U19: 0 | V19: 0 | W19: 0 | X19: 0 | Y19: 0 | Z19: 0 | AA19: 0 | AB19: 0 | AD19: CRIE | AH19: UOP
A20: Espectro autista | B20: 215 | C20: 973 | D20: 1188 | E20: 0 | F20: 0 | G20: 0 | H20: 68 | I20: 275 | J20: 343 | K20: 0 | L20: 0 | M20: 0 | N20: 0 | O20: 0 | P20: 0 | Q20: 283 | R20: 1248 | S20: 1531 | T20: 0 | U20: 0 | V20: 0 | W20: 0 | X20: 0 | Y20: 0 | Z20: 0 | AA20: 0 | AB20: 0 | AD20: M | AE20: H | AF20: TOTAL | AH20: M | AI20: H | AJ20: TOTAL
A21: Múltiple | B21: 27 | C21: 41 | D21: 68 | E21: 0 | F21: 4 | G21: 4 | H21: 41 | I21: 44 | J21: 85 | K21: 0 | L21: 0 | M21: 0 | N21: 0 | O21: 0 | P21: 0 | Q21: 68 | R21: 89 | S21: 157 | T21: 0 | U21: 0 | V21: 0 | W21: 0 | X21: 0 | Y21: 0 | Z21: 0 | AA21: 0 | AB21: 0 | AD21: 0 | AE21: 0 | AF21: =SUM(AD21,AE21) -> 0 | AH21: 0 | AI21: 0 | AJ21: =SUM(AH21,AI21) -> 0
A22: TDA TDA-H | B22: 301 | C22: 1576 | D22: 1877 | E22: 0 | F22: 0 | G22: 0 | H22: 6 | I22: 46 | J22: 52 | K22: 0 | L22: 0 | M22: 0 | N22: 0 | O22: 0 | P22: 0 | Q22: 307 | R22: 1622 | S22: 1929 | T22: 0 | U22: 0 | V22: 0 | W22: 0 | X22: 0 | Y22: 0 | Z22: 0 | AA22: 0 | AB22: 0
A23: Totales | B23: =SUM(B12:B22) -> 2051 | C23: =SUM(C12:C22) -> 4547 | D23: =SUM(B23:C23) -> 6598 | E23: =SUM(E12:E22) -> 63 | F23: =SUM(F12:F22) -> 99 | G23: =SUM(E23,F23) -> 162 | H23: =SUM(H12:H22) -> 597 | I23: =SUM(I12:I22) -> 1005 | J23: =SUM(H23,I23) -> 1602 | K23: =SUM(K12:K22) -> 0 | L23: =SUM(L12:L22) -> 0 | M23: =SUM(K23:L23) -> 0 | N23: =SUM(N12:N22) -> 0 | O23: =SUM(O12:O22) -> 0 | P23: =SUM(N23:O23) -> 0 | Q23: =SUM(B23,E23,H23,K23,N23) -> 2711 | R23: =SUM(C23,F23,I23,L23,O23) -> 5651 | S23: 8362 | T23: =SUM(T12:T22) -> 0 | U23: =SUM(U12:U22) -> 0 | V23: 0 | W23: =SUM(W12:W22) -> 0 | X23: =SUM(X12:X22) -> 0 | Y23: 0 | Z23: =SUM(Z12:Z22) -> 0 | AA23: =SUM(AA12:AA22) -> 0 | AB23: 0 | AF23: Total de estudiantes con discapacidad focalizados
AF25: M | AG25: H | AH25: Total
A26: Verificar que la población reportada en CAPEP, CRIE, UOP y UAEBH con discapacidad, al sumarla con la reportada en AS sea correspondiente con lo registrado en la pestaña de Población total. | AF26: =SUM(Q23,AD13,AH13) -> 3028 | AG26: =SUM(R23,AE13,AI13) -> 5990 | AH26: =SUM(AF26:AG26) -> 9018
A30: Población con discapacidad atendida por los servicios de educación especial focalizados en el componente 2 para beneficiar en 2025
A31: Condición | B31: Beneficiarias/os por condición y por SEE | Q31: Población total beneficiaria | T31: De la población total reportada por condición, especifique si se trata de alguna de las siguientes poblaciones.
B32: USAER | E32: CAM básico | H32: CAM básico con FpT | K32: CAM laboral | N32: Otro | Q32: M | R32: H | S32: TOTAL | T32: Población indígena | W32: Población afrodescendiente | Z32: Población migrante | AD32: Estudiantes focalizados discapacidad
B33: M | C33: H | D33: TOTAL | E33: M | F33: H | G33: TOTAL | H33: M | I33: H | J33: TOTAL | K33: M | L33: H | M33: TOTAL | N33: M | O33: H | P33: TOTAL | T33: M | U33: H | V33: TOTAL | W33: M | X33: H | Y33: TOTAL | Z33: M | AA33: H | AB33: TOTAL | AD33: CAPEP | AH33: UAEBH
A34: Ceguera | B34: 0 | C34: 0 | D34: =SUM(B34:C34) -> 0 | E34: 0 | F34: 0 | G34: =SUM(E34:F34) -> 0 | H34: 0 | I34: 0 | J34: =SUM(H34:I34) -> 0 | K34: 0 | L34: 0 | M34: =SUM(K34:L34) -> 0 | N34: 0 | O34: 0 | P34: =SUM(N34:O34) -> 0 | Q34: =SUM(B34,E34,H34,K34,N34) -> 0 | R34: =SUM(C34,F34,I34,L34,O34) -> 0 | S34: =SUM(Q34,R34) -> 0 | T34: 0 | U34: 0 | V34: =SUM(T34,U34) -> 0 | W34: 0 | X34: 0 | Y34: =SUM(W34,X34) -> 0 | Z34: 0 | AA34: 0 | AB34: =SUM(Z34,AA34) -> 0 | AD34: M | AE34: H | AF34: TOTAL | AH34: M | AI34: H | AJ34: TOTAL
A35: Baja Visión | B35: 0 | C35: 0 | D35: =SUM(B35:C35) -> 0 | E35: 0 | F35: 0 | G35: =SUM(E35:F35) -> 0 | H35: 0 | I35: 0 | J35: =SUM(H35:I35) -> 0 | K35: 0 | L35: 0 | M35: =SUM(K35:L35) -> 0 | N35: 0 | O35: 0 | P35: =SUM(N35:O35) -> 0 | Q35: =SUM(B35,E35,H35,K35,N35) -> 0 | R35: 0 | S35: 0 | T35: 0 | U35: 0 | V35: =SUM(T35,U35) -> 0 | W35: 0 | X35: 0 | Y35: =SUM(W35,X35) -> 0 | Z35: 0 | AA35: 0 | AB35: =SUM(Z35,AA35) -> 0 | AD35: 0 | AE35: 0 | AF35: =SUM(AD35,AE35) -> 0 | AH35: 0 | AI35: 0 | AJ35: =SUM(AH35,AI35) -> 0
A36: Sordera | B36: 0 | C36: 0 | D36: 0 | E36: 0 | F36: 0 | G36: 0 | H36: 0 | I36: 0 | J36: 0 | K36: 0 | L36: 0 | M36: 0 | N36: 0 | O36: 0 | P36: 0 | Q36: 0 | R36: 0 | S36: 0 | T36: 0 | U36: 0 | V36: 0 | W36: 0 | X36: 0 | Y36: 0 | Z36: 0 | AA36: 0 | AB36: 0 | AD36: Personal docente y/o directivos focalizados
A37: Hipoacusia | B37: 0 | C37: 0 | D37: 0 | E37: 0 | F37: 0 | G37: 0 | H37: 0 | I37: 0 | J37: 0 | K37: 0 | L37: 0 | M37: 0 | N37: 0 | O37: 0 | P37: 0 | Q37: 0 | R37: 0 | S37: 0 | T37: 0 | U37: 0 | V37: 0 | W37: 0 | X37: 0 | Y37: 0 | Z37: 0 | AA37: 0 | AB37: 0 | AD37: CRIE | AH37: UOP
A38: Sordoceguera | B38: 0 | C38: 0 | D38: 0 | E38: 0 | F38: 0 | G38: 0 | H38: 0 | I38: 0 | J38: 0 | K38: 0 | L38: 0 | M38: 0 | N38: 0 | O38: 0 | P38: 0 | Q38: 0 | R38: 0 | S38: 0 | T38: 0 | U38: 0 | V38: 0 | W38: 0 | X38: 0 | Y38: 0 | Z38: 0 | AA38: 0 | AB38: 0 | AD38: M | AE38: H | AF38: TOTAL | AH38: M | AI38: H | AJ38: TOTAL
A39: Motriz | B39: 0 | C39: 0 | D39: 0 | E39: 0 | F39: 0 | G39: 0 | H39: 0 | I39: 0 | J39: 0 | K39: 0 | L39: 0 | M39: 0 | N39: 0 | O39: 0 | P39: 0 | Q39: 0 | R39: 0 | S39: 0 | T39: 0 | U39: 0 | V39: 0 | W39: 0 | X39: 0 | Y39: 0 | Z39: 0 | AA39: 0 | AB39: 0 | AD39: 0 | AE39: 0 | AF39: =SUM(AD39,AE39) -> 0 | AH39: 0 | AI39: 0 | AJ39: =SUM(AH39,AI39) -> 0
A40: Intelectual | B40: 0 | C40: 0 | D40: 0 | E40: 0 | F40: 0 | G40: 0 | H40: 0 | I40: 0 | J40: 0 | K40: 0 | L40: 0 | M40: 0 | N40: 0 | O40: 0 | P40: 0 | Q40: 0 | R40: 0 | S40: 0 | T40: 0 | U40: 0 | V40: 0 | W40: 0 | X40: 0 | Y40: 0 | Z40: 0 | AA40: 0 | AB40: 0 | AD40: Familias y/o público en general focalizados
A41: Psicosocial | B41: 0 | C41: 0 | D41: 0 | E41: 0 | F41: 0 | G41: 0 | H41: 0 | I41: 0 | J41: 0 | K41: 0 | L41: 0 | M41: 0 | N41: 0 | O41: 0 | P41: 0 | Q41: 0 | R41: 0 | S41: 0 | T41: 0 | U41: 0 | V41: 0 | W41: 0 | X41: 0 | Y41: 0 | Z41: 0 | AA41: 0 | AB41: 0 | AD41: CRIE | AH41: UOP
A42: Espectro autista | B42: 8 | C42: 12 | D42: 20 | E42: 0 | F42: 0 | G42: 0 | H42: 7 | I42: 8 | J42: 15 | K42: 0 | L42: 0 | M42: 0 | N42: 0 | O42: 0 | P42: 0 | Q42: 15 | R42: 20 | S42: 35 | T42: 0 | U42: 0 | V42: 0 | W42: 0 | X42: 0 | Y42: 0 | Z42: 0 | AA42: 0 | AB42: 0 | AD42: M | AE42: H | AF42: TOTAL | AH42: M | AI42: H | AJ42: TOTAL
A43: Múltiple | B43: 0 | C43: 0 | D43: 0 | E43: 0 | F43: 0 | G43: 0 | H43: 0 | I43: 0 | J43: 0 | K43: 0 | L43: 0 | M43: 0 | N43: 0 | O43: 0 | P43: 0 | Q43: 0 | R43: 0 | S43: 0 | T43: 0 | U43: 0 | V43: 0 | W43: 0 | X43: 0 | Y43: 0 | Z43: 0 | AA43: 0 | AB43: 0 | AD43: 0 | AE43: 0 | AF43: =SUM(AD43,AE43) -> 0 | AH43: 0 | AI43: 0 | AJ43: =SUM(AH43,AI43) -> 0
A44: TDA TDA-H | B44: 0 | C44: 0 | D44: 0 | E44: 0 | F44: 0 | G44: 0 | H44: 0 | I44: 0 | J44: 0 | K44: 0 | L44: 0 | M44: 0 | N44: 0 | O44: 0 | P44: 0 | Q44: 0 | R44: 0 | S44: 0 | T44: 0 | U44: 0 | V44: 0 | W44: 0 | X44: 0 | Y44: 0 | Z44: 0 | AA44: 0 | AB44: 0
A45: Totales | B45: =SUM(B34:B44) -> 8 | C45: =SUM(C34:C44) -> 12 | D45: =SUM(B45:C45) -> 20 | E45: =SUM(E34:E44) -> 0 | F45: =SUM(F34:F44) -> 0 | G45: =SUM(E45,F45) -> 0 | H45: =SUM(H34:H44) -> 7 | I45: =SUM(I34:I44) -> 8 | J45: =SUM(H45,I45) -> 15 | K45: =SUM(K34:K44) -> 0 | L45: =SUM(L34:L44) -> 0 | M45: =SUM(K45:L45) -> 0 | N45: =SUM(N34:N44) -> 0 | O45: =SUM(O34:O44) -> 0 | P45: =SUM(N45:O45) -> 0 | Q45: =SUM(B45,E45,H45,K45,N45) -> 15 | R45: =SUM(C45,F45,I45,L45,O45) -> 20 | S45: 35 | T45: =SUM(T34:T44) -> 0 | U45: =SUM(U34:U44) -> 0 | V45: 0 | W45: =SUM(W34:W44) -> 0 | X45: =SUM(X34:X44) -> 0 | Y45: 0 | Z45: =SUM(Z34:Z44) -> 0 | AA45: =SUM(AA34:AA44) -> 0 | AB45: 0 | AF45: Total de estudiantes con discapacidad focalizados
AF47: M | AG47: H | AH47: Total
A48: Verificar que la población reportada en CAPEP, CRIE, UOP y UAEBH con discapacidad, al sumarla con la reportada en AS sea correspondiente con lo registrado en la pestaña de Población total. | AF48: =SUM(Q45,AD35,AH35) -> 15 | AG48: =SUM(R45,AE35,AI35) -> 20 | AH48: =SUM(AF48:AG48) -> 35
A53: Población con discapacidad atendida por los servicios de educación especial focalizados en el componente 3 para beneficiar en 2025
A54: Condición | B54: Beneficiarias/os por condición y por SEE | Q54: Población total beneficiaria | T54: De la población total reportada por condición, especifique si se trata de alguna de las siguientes poblaciones.
B55: USAER | E55: CAM básico | H55: CAM básico con FpT | K55: CAM laboral | N55: Otro | Q55: M | R55: H | S55: TOTAL | T55: Población indígena | W55: Población afrodescendiente | Z55: Población migrante | AD55: Estudiantes focalizados discapacidad
B56: M | C56: H | D56: TOTAL | E56: M | F56: H | G56: TOTAL | H56: M | I56: H | J56: TOTAL | K56: M | L56: H | M56: TOTAL | N56: M | O56: H | P56: TOTAL | T56: M | U56: H | V56: TOTAL | W56: M | X56: H | Y56: TOTAL | Z56: M | AA56: H | AB56: TOTAL | AD56: CAPEP | AH56: UAEBH
A57: Ceguera | B57: 47 | C57: 49 | D57: =SUM(B57:C57) -> 96 | E57: 0 | F57: 0 | G57: =SUM(E57:F57) -> 0 | H57: 23 | I57: 18 | J57: =SUM(H57:I57) -> 41 | K57: 0 | L57: 0 | M57: =SUM(K57:L57) -> 0 | N57: 0 | O57: 0 | P57: =SUM(N57:O57) -> 0 | Q57: =SUM(B57,E57,H57,K57,N57) -> 70 | R57: =SUM(C57,F57,I57,L57,O57) -> 67 | S57: =SUM(Q57,R57) -> 137 | T57: 0 | U57: 0 | V57: =SUM(T57,U57) -> 0 | W57: 0 | X57: 0 | Y57: =SUM(W57,X57) -> 0 | Z57: 0 | AA57: 0 | AB57: =SUM(Z57,AA57) -> 0 | AD57: M | AE57: H | AF57: TOTAL | AH57: M | AI57: H | AJ57: TOTAL
A58: Baja Visión | B58: 212 | C58: 210 | D58: =SUM(B58:C58) -> 422 | E58: 0 | F58: 0 | G58: =SUM(E58:F58) -> 0 | H58: 7 | I58: 9 | J58: =SUM(H58:I58) -> 16 | K58: 0 | L58: 0 | M58: =SUM(K58:L58) -> 0 | N58: 0 | O58: 0 | P58: =SUM(N58:O58) -> 0 | Q58: =SUM(B58,E58,H58,K58,N58) -> 219 | R58: 219 | S58: 438 | T58: 0 | U58: 0 | V58: =SUM(T58,U58) -> 0 | W58: 0 | X58: 0 | Y58: =SUM(W58,X58) -> 0 | Z58: 0 | AA58: 0 | AB58: =SUM(Z58,AA58) -> 0 | AD58: 0 | AE58: 0 | AF58: =SUM(AD58,AE58) -> 0 | AH58: 317 | AI58: 339 | AJ58: =SUM(AH58,AI58) -> 656
A59: Sordera | B59: 11 | C59: 12 | D59: 23 | E59: 9 | F59: 25 | G59: 34 | H59: 13 | I59: 11 | J59: 24 | K59: 0 | L59: 0 | M59: 0 | N59: 0 | O59: 0 | P59: 0 | Q59: 33 | R59: 48 | S59: 81 | T59: 0 | U59: 0 | V59: 0 | W59: 0 | X59: 0 | Y59: 0 | Z59: 0 | AA59: 0 | AB59: 0 | AD59: Personal docente y/o directivos focalizados
A60: Hipoacusia | B60: 124 | C60: 139 | D60: 263 | E60: 14 | F60: 8 | G60: 22 | H60: 31 | I60: 48 | J60: 79 | K60: 0 | L60: 0 | M60: 0 | N60: 0 | O60: 0 | P60: 0 | Q60: 169 | R60: 195 | S60: 364 | T60: 0 | U60: 0 | V60: 0 | W60: 0 | X60: 0 | Y60: 0 | Z60: 0 | AA60: 0 | AB60: 0 | AD60: CRIE | AH60: UOP
A61: Sordoceguera | B61: 0 | C61: 0 | D61: 0 | E61: 0 | F61: 0 | G61: 0 | H61: 0 | I61: 0 | J61: 0 | K61: 0 | L61: 0 | M61: 0 | N61: 0 | O61: 0 | P61: 0 | Q61: 0 | R61: 0 | S61: 0 | T61: 0 | U61: 0 | V61: 0 | W61: 0 | X61: 0 | Y61: 0 | Z61: 0 | AA61: 0 | AB61: 0 | AD61: M | AE61: H | AF61: TOTAL | AH61: M | AI61: H | AJ61: TOTAL
A62: Motriz | B62: 185 | C62: 248 | D62: 433 | E62: 0 | F62: 0 | G62: 0 | H62: 48 | I62: 78 | J62: 126 | K62: 0 | L62: 0 | M62: 0 | N62: 0 | O62: 0 | P62: 0 | Q62: 233 | R62: 326 | S62: 559 | T62: 0 | U62: 0 | V62: 0 | W62: 0 | X62: 0 | Y62: 0 | Z62: 0 | AA62: 0 | AB62: 0 | AD62: 0 | AE62: 0 | AF62: =SUM(AD62,AE62) -> 0 | AH62: 0 | AI62: 0 | AJ62: =SUM(AH62,AI62) -> 0
A63: Intelectual | B63: 766 | C63: 1091 | D63: 1857 | E63: 40 | F63: 62 | G63: 102 | H63: 355 | I63: 468 | J63: 823 | K63: 0 | L63: 0 | M63: 0 | N63: 0 | O63: 0 | P63: 0 | Q63: 1161 | R63: 1621 | S63: 2782 | T63: 0 | U63: 0 | V63: 0 | W63: 0 | X63: 0 | Y63: 0 | Z63: 0 | AA63: 0 | AB63: 0 | AD63: Familias y/o público en general focalizados
A64: Psicosocial | B64: 178 | C64: 234 | D64: 412 | E64: 0 | F64: 0 | G64: 0 | H64: 5 | I64: 8 | J64: 13 | K64: 0 | L64: 0 | M64: 0 | N64: 0 | O64: 0 | P64: 0 | Q64: 183 | R64: 242 | S64: 425 | T64: 0 | U64: 0 | V64: 0 | W64: 0 | X64: 0 | Y64: 0 | Z64: 0 | AA64: 0 | AB64: 0 | AD64: CRIE | AH64: UOP
A65: Espectro autista | B65: 219 | C65: 990 | D65: 1209 | E65: 0 | F65: 0 | G65: 0 | H65: 68 | I65: 275 | J65: 343 | K65: 0 | L65: 0 | M65: 0 | N65: 0 | O65: 0 | P65: 0 | Q65: 287 | R65: 1265 | S65: 1552 | T65: 0 | U65: 0 | V65: 0 | W65: 0 | X65: 0 | Y65: 0 | Z65: 0 | AA65: 0 | AB65: 0 | AD65: M | AE65: H | AF65: TOTAL | AH65: M | AI65: H | AJ65: TOTAL
A66: Múltiple | B66: 29 | C66: 42 | D66: 71 | E66: 0 | F66: 4 | G66: 4 | H66: 41 | I66: 44 | J66: 85 | K66: 0 | L66: 0 | M66: 0 | N66: 0 | O66: 0 | P66: 0 | Q66: 70 | R66: 90 | S66: 160 | T66: 0 | U66: 0 | V66: 0 | W66: 0 | X66: 0 | Y66: 0 | Z66: 0 | AA66: 0 | AB66: 0 | AD66: 0 | AE66: 0 | AF66: =SUM(AD66,AE66) -> 0 | AH66: 0 | AI66: 0 | AJ66: =SUM(AH66,AI66) -> 0
A67: TDA TDA-H | B67: 306 | C67: 1611 | D67: 1917 | E67: 0 | F67: 0 | G67: 0 | H67: 6 | I67: 46 | J67: 52 | K67: 0 | L67: 0 | M67: 0 | N67: 0 | O67: 0 | P67: 0 | Q67: 312 | R67: 1657 | S67: 1969 | T67: 0 | U67: 0 | V67: 0 | W67: 0 | X67: 0 | Y67: 0 | Z67: 0 | AA67: 0 | AB67: 0
A68: Totales | B68: =SUM(B57:B67) -> 2077 | C68: =SUM(C57:C67) -> 4626 | D68: =SUM(B68:C68) -> 6703 | E68: =SUM(E57:E67) -> 63 | F68: =SUM(F57:F67) -> 99 | G68: =SUM(E68,F68) -> 162 | H68: =SUM(H57:H67) -> 597 | I68: =SUM(I57:I67) -> 1005 | J68: =SUM(H68,I68) -> 1602 | K68: =SUM(K57:K67) -> 0 | L68: =SUM(L57:L67) -> 0 | M68: =SUM(K68:L68) -> 0 | N68: =SUM(N57:N67) -> 0 | O68: =SUM(O57:O67) -> 0 | P68: =SUM(N68:O68) -> 0 | Q68: =SUM(B68,E68,H68,K68,N68) -> 2737 | R68: =SUM(C68,F68,I68,L68,O68) -> 5730 | S68: 8467 | T68: =SUM(T57:T67) -> 0 | U68: =SUM(U57:U67) -> 0 | V68: 0 | W68: =SUM(W57:W67) -> 0 | X68: =SUM(X57:X67) -> 0 | Y68: 0 | Z68: =SUM(Z57:Z67) -> 0 | AA68: =SUM(AA57:AA67) -> 0 | AB68: 0 | AF68: Total de estudiantes con discapacidad focalizados
AF70: M | AG70: H | AH70: Total
A71: Verificar que la población reportada en CAPEP, CRIE, UOP y UAEBH con discapacidad, al sumarla con la reportada en AS sea correspondiente con lo registrado en la pestaña de Población total. | AF71: =SUM(Q68,AD58,AH58) -> 3054 | AG71: =SUM(R68,AE58,AI58) -> 6069 | AH71: =SUM(AF71:AG71) -> 9123
A75: TDA: Trastorno por Déficit de Atención
A76: TDA-H: Trastorno por Déficit de Atención e Hiperactividad

Sheet Beneficiarios AS 2025
V1: Subsecretaría de Educación Básica Dirección General de Desarrollo Curricular Dirección de Fortalecimiento Curricular para la Formación Personal y Social en la Educación Básica Educación Especial
A6: Información cuantitativa respecto a la población con aptitudes sobresalientes que atienden los servicios de educación especial focalizados, en su entidad, por sexo y tipo de condición:
A8: Población con aptitudes sobresalientes atendida por los servicios de educación especial focalizados en el componente 1 para beneficiar en 2025
A9: Condición | B9: Beneficiarias/os por condición y por SEE | H9: Población total beneficiaria | K9: De la población total reportada por condición, especifique si se trata de alguna de las siguientes poblaciones. | U9: Estudiantes focalizados aptitudes sobresalientes
B10: USAER | E10: Otro | H10: M | I10: H | J10: TOTAL | K10: Población indígena | N10: Población afrodescendiente | Q10: Población migrante | U10: CAPEP | Y10: UAEBH
B11: M | C11: H | D11: TOTAL | E11: M | F11: H | G11: TOTAL | K11: M | L11: H | M11: TOTAL | N11: M | O11: H | P11: TOTAL | Q11: M | R11: H | S11: TOTAL | U11: M | V11: H | W11: TOTAL | Y11: M | Z11: H | AA11: TOTAL
A12: AS Intelectual | B12: 334 | C12: 409 | D12: =SUM(B12:C12) -> 743 | E12: 0 | F12: 0 | G12: =SUM(E12:F12) -> 0 | H12: =SUM(B12,E12) -> 334 | I12: =SUM(C12,F12) -> 409 | J12: =SUM(H12:I12) -> 743 | K12: 0 | L12: 0 | M12: =SUM(K12:L12) -> 0 | N12: 0 | O12: 0 | P12: =SUM(N12:O12) -> 0 | Q12: 0 | R12: 0 | S12: =SUM(Q12:R12) -> 0 | U12: 0 | V12: 0 | W12: =SUM(U12,V12) -> 0 | Y12: 0 | Z12: 0 | AA12: =SUM(Y12,Z12) -> 0
A13: AS Creativa | B13: 147 | C13: 95 | D13: 242 | E13: 0 | F13: 0 | G13: 0 | H13: =SUM(B13,E13) -> 147 | I13: 95 | J13: 242 | K13: 0 | L13: 0 | M13: 0 | N13: 0 | O13: 0 | P13: 0 | Q13: 0 | R13: 0 | S13: 0 | U13: Personal docente y/o directivos focalizados
A14: AS Artística | B14: 380 | C14: 276 | D14: 656 | E14: 0 | F14: 0 | G14: 0 | H14: 380 | I14: 276 | J14: 656 | K14: 0 | L14: 0 | M14: 0 | N14: 0 | O14: 0 | P14: 0 | Q14: 0 | R14: 0 | S14: 0 | U14: CRIE | Y14: UOP
A15: AS Psicomotriz | B15: 78 | C15: 135 | D15: 213 | E15: 0 | F15: 0 | G15: 0 | H15: 78 | I15: 135 | J15: 213 | K15: 0 | L15: 0 | M15: 0 | N15: 0 | O15: 0 | P15: 0 | Q15: 0 | R15: 0 | S15: 0 | U15: M | V15: H | W15: TOTAL | Y15: M | Z15: H | AA15: TOTAL
A16: AS Socioafectiva | B16: 150 | C16: 92 | D16: 242 | E16: 0 | F16: 0 | G16: 0 | H16: 150 | I16: 92 | J16: 242 | K16: 0 | L16: 0 | M16: 0 | N16: 0 | O16: 0 | P16: 0 | Q16: 0 | R16: 0 | S16: 0 | U16: 0 | V16: 0 | W16: =SUM(U16,V16) -> 0 | Y16: 0 | Z16: 0 | AA16: =SUM(Y16,Z16) -> 0
A17: Totales | B17: =SUM(B12:B16) -> 1089 | C17: =SUM(C12:C16) -> 1007 | D17: 2096 | E17: =SUM(E12:E16) -> 0 | F17: =SUM(F12:F16) -> 0 | G17: 0 | H17: =SUM(H12:H16) -> 1089 | I17: =SUM(I12:I16) -> 1007 | J17: 2096 | K17: =SUM(K12:K16) -> 0 | L17: =SUM(L12:L16) -> 0 | M17: 0 | N17: =SUM(N12:N16) -> 0 | O17: =SUM(O12:O16) -> 0 | P17: 0 | Q17: =SUM(Q12:Q16) -> 0 | R17: =SUM(R12:R16) -> 0 | S17: 0 | U17: Familias y/o público en general focalizados
U18: CRIE | Y18: UOP
U19: M | V19: H | W19: TOTAL | Y19: M | Z19: H | AA19: TOTAL
A20: Verificar que la población reportada en CAPEP, CRIE, UOP y UAEBH con discapacidad, al sumarla con la reportada en AS sea correspondiente con lo registrado en la pestaña de Población total. | U20: 0 | V20: 0 | W20: =SUM(U20,V20) -> 0 | Y20: 0 | Z20: 0 | AA20: =SUM(Y20,Z20) -> 0
P23: Total de estudiantes con aptitudes sobresalientes focalizados
P25: M | Q25: H | R25: Total
P26: =SUM(H17,U12,Y12) -> 1089 | Q26: =SUM(I17,V12,Z12) -> 1007 | R26: =SUM(P26:Q26) -> 2096
A28: Población con aptitudes sobresalientes atendida por los servicios de educación especial focalizados en el componente 2 para beneficiar en 2025 | U28: Estudiantes focalizados aptitudes sobresalientes
A29: Condición | B29: Beneficiarias/os por condición y por SEE | H29: Población total beneficiaria | K29: De la población total reportada por condición, especifique si se trata de alguna de las siguientes poblaciones. | U29: CAPEP | Y29: UAEBH
B30: USAER | E30: Otro | H30: M | I30: H | J30: TOTAL | K30: Población indígena | N30: Población afrodescendiente | Q30: Población migrante | U30: M | V30: H | W30: TOTAL | Y30: M | Z30: H | AA30: TOTAL
B31: M | C31: H | D31: TOTAL | E31: M | F31: H | G31: TOTAL | K31: M | L31: H | M31: TOTAL | N31: M | O31: H | P31: TOTAL | Q31: M | R31: H | S31: TOTAL | U31: 0 | V31: 0 | W31: =SUM(U31,V31) -> 0 | Y31: 0 | Z31: 0 | AA31: =SUM(Y31,Z31) -> 0
A32: AS Intelectual | B32: 51 | C32: 52 | D32: =SUM(B32:C32) -> 103 | E32: 0 | F32: 0 | G32: =SUM(E32:F32) -> 0 | H32: =SUM(B32,E32) -> 51 | I32: =SUM(C32,F32) -> 52 | J32: =SUM(H32:I32) -> 103 | K32: 0 | L32: 0 | M32: =SUM(K32:L32) -> 0 | N32: 0 | O32: 0 | P32: =SUM(N32:O32) -> 0 | Q32: 0 | R32: 0 | S32: =SUM(Q32:R32) -> 0 | U32: Personal docente y/o directivos focalizados
A33: AS Creativa | B33: 29 | C33: 21 | D33: 50 | E33: 0 | F33: 0 | G33: 0 | H33: =SUM(B33,E33) -> 29 | I33: 21 | J33: 50 | K33: 0 | L33: 0 | M33: 0 | N33: 0 | O33: 0 | P33: 0 | Q33: 0 | R33: 0 | S33: 0 | U33: CRIE | Y33: UOP
A34: AS Artística | B34: 94 | C34: 66 | D34: 160 | E34: 0 | F34: 0 | G34: 0 | H34: 94 | I34: 66 | J34: 160 | K34: 0 | L34: 0 | M34: 0 | N34: 0 | O34: 0 | P34: 0 | Q34: 0 | R34: 0 | S34: 0 | U34: M | V34: H | W34: TOTAL | Y34: M | Z34: H | AA34: TOTAL
A35: AS Psicomotriz | B35: 15 | C35: 18 | D35: 33 | E35: 0 | F35: 0 | G35: 0 | H35: 15 | I35: 18 | J35: 33 | K35: 0 | L35: 0 | M35: 0 | N35: 0 | O35: 0 | P35: 0 | Q35: 0 | R35: 0 | S35: 0 | U35: 0 | V35: 0 | W35: =SUM(U35,V35) -> 0 | Y35: 0 | Z35: 0 | AA35: =SUM(Y35,Z35) -> 0
A36: AS Socioafectiva | B36: 0 | C36: 0 | D36: 0 | E36: 0 | F36: 0 | G36: 0 | H36: 0 | I36: 0 | J36: 0 | K36: 0 | L36: 0 | M36: 0 | N36: 0 | O36: 0 | P36: 0 | Q36: 0 | R36: 0 | S36: 0 | U36: Familias y/o público en general focalizados
A37: Totales | B37: =SUM(B32:B36) -> 189 | C37: =SUM(C32:C36) -> 157 | D37: 346 | E37: =SUM(E32:E36) -> 0 | F37: =SUM(F32:F36) -> 0 | G37: 0 | H37: =SUM(H32:H36) -> 189 | I37: =SUM(I32:I36) -> 157 | J37: 346 | K37: =SUM(K32:K36) -> 0 | L37: =SUM(L32:L36) -> 0 | M37: 0 | N37: =SUM(N32:N36) -> 0 | O37: =SUM(O32:O36) -> 0 | P37: 0 | Q37: =SUM(Q32:Q36) -> 0 | R37: =SUM(R32:R36) -> 0 | S37: 0 | U37: CRIE | Y37: UOP
U38: M | V38: H | W38: TOTAL | Y38: M | Z38: H | AA38: TOTAL
U39: 0 | V39: 0 | W39: =SUM(U39,V39) -> 0 | Y39: 0 | Z39: 0 | AA39: =SUM(Y39,Z39) -> 0
A40: Verificar que la población reportada en CAPEP, CRIE, UOP y UAEBH con discapacidad, al sumarla con la reportada en AS sea correspondiente con lo registrado en la pestaña de Población total.
P43: Total de estudiantes con aptitudes sobresalientes focalizados
P45: M | Q45: H | R45: Total
P46: =SUM(H37,U32,Y32) -> 189 | Q46: =SUM(I37,V32,Z32) -> 157 | R46: =SUM(P46:Q46) -> 346
A48: Población con aptitudes sobresalientes atendida por los servicios de educación especial focalizados en el componente 3 para beneficiar en 2025 | U48: Estudiantes focalizados aptitudes sobresalientes
A49: Condición | B49: Beneficiarias/os por condición y por SEE | H49: Población total beneficiaria | K49: De la población total reportada por condición, especifique si se trata de alguna de las siguientes poblaciones. | U49: CAPEP | Y49: UAEBH
B50: USAER | E50: Otro | H50: M | I50: H | J50: TOTAL | K50: Población indígena | N50: Población afrodescendiente | Q50: Población migrante | U50: M | V50: H | W50: TOTAL | Y50: M | Z50: H | AA50: TOTAL
B51: M | C51: H | D51: TOTAL | E51: M | F51: H | G51: TOTAL | K51: M | L51: H | M51: TOTAL | N51: M | O51: H | P51: TOTAL | Q51: M | R51: H | S51: TOTAL | U51: 0 | V51: 0 | W51: =SUM(U51,V51) -> 0 | Y51: 0 | Z51: 0 | AA51: =SUM(Y51,Z51) -> 0
A52: AS Intelectual | B52: 334 | C52: 409 | D52: =SUM(B52:C52) -> 743 | E52: 0 | F52: 0 | G52: =SUM(E52:F52) -> 0 | H52: =SUM(B52,E52) -> 334 | I52: =SUM(C52,F52) -> 409 | J52: =SUM(H52:I52) -> 743 | K52: 0 | L52: 0 | M52: =SUM(K52:L52) -> 0 | N52: 0 | O52: 0 | P52: =SUM(N52:O52) -> 0 | Q52: 0 | R52: 0 | S52: =SUM(Q52:R52) -> 0 | U52: Personal docente y/o directivos focalizados
A53: AS Creativa | B53: 147 | C53: 95 | D53: 242 | E53: 0 | F53: 0 | G53: 0 | H53: =SUM(B53,E53) -> 147 | I53: 95 | J53: 242 | K53: 0 | L53: 0 | M53: 0 | N53: 0 | O53: 0 | P53: 0 | Q53: 0 | R53: 0 | S53: 0 | U53: CRIE | Y53: UOP
A54: AS Artística | B54: 380 | C54: 276 | D54: 656 | E54: 0 | F54: 0 | G54: 0 | H54: 380 | I54: 276 | J54: 656 | K54: 0 | L54: 0 | M54: 0 | N54: 0 | O54: 0 | P54: 0 | Q54: 0 | R54: 0 | S54: 0 | U54: M | V54: H | W54: TOTAL | Y54: M | Z54: H | AA54: TOTAL
A55: AS Psicomotriz | B55: 78 | C55: 135 | D55: 213 | E55: 0 | F55: 0 | G55: 0 | H55: 78 | I55: 135 | J55: 213 | K55: 0 | L55: 0 | M55: 0 | N55: 0 | O55: 0 | P55: 0 | Q55: 0 | R55: 0 | S55: 0 | U55: 0 | V55: 0 | W55: =SUM(U55,V55) -> 0 | Y55: 0 | Z55: 0 | AA55: =SUM(Y55,Z55) -> 0
A56: AS Socioafectiva | B56: 150 | C56: 92 | D56: 242 | E56: 0 | F56: 0 | G56: 0 | H56: 150 | I56: 92 | J56: 242 | K56: 0 | L56: 0 | M56: 0 | N56: 0 | O56: 0 | P56: 0 | Q56: 0 | R56: 0 | S56: 0 | U56: Familias y/o público en general focalizados
A57: Totales | B57: =SUM(B52:B56) -> 1089 | C57: =SUM(C52:C56) -> 1007 | D57: 2096 | E57: =SUM(E52:E56) -> 0 | F57: =SUM(F52:F56) -> 0 | G57: 0 | H57: =SUM(H52:H56) -> 1089 | I57: =SUM(I52:I56) -> 1007 | J57: 2096 | K57: =SUM(K52:K56) -> 0 | L57: =SUM(L52:L56) -> 0 | M57: 0 | N57: =SUM(N52:N56) -> 0 | O57: =SUM(O52:O56) -> 0 | P57: 0 | Q57: =SUM(Q52:Q56) -> 0 | R57: =SUM(R52:R56) -> 0 | S57: 0 | U57: CRIE | Y57: UOP
U58: M | V58: H | W58: TOTAL | Y58: M | Z58: H | AA58: TOTAL
U59: 0 | V59: 0 | W59: =SUM(U59,V59) -> 0 | Y59: 0 | Z59: 0 | AA59: =SUM(Y59,Z59) -> 0
A60: Verificar que la población reportada en CAPEP, CRIE, UOP y UAEBH con discapacidad, al sumarla con la reportada en AS sea correspondiente con lo registrado en la pestaña de Población total.
P63: Total de estudiantes con aptitudes sobresalientes focalizados
P65: M | Q65: H | R65: Total
P66: =SUM(H57,U52,Y52) -> 1089 | Q66: =SUM(I57,V52,Z52) -> 1007 | R66: =SUM(P66:Q66) -> 2096
A68: AS: Aptitudes sobresalientes

Sheet Acciones académicas DIS 2025
B1: Subsecretaría de Educación Básica Dirección General de Desarrollo Curricular Dirección de Fortalecimiento Curricular para la Formación Personal y Social en la Educación Básica Educación Especial
B6: Componente: 1. Acciones académicas para Agentes educativos en temas de discapacidad
B7: Para garantizar el cumplimiento de los objetivos del PFSEE las AEL podrán destinar hasta un 50% del recurso, de acuerdo con lo estipulado en las reglas de operación 2025.
B8: 1.1 Desarrollo de acciones de actualización y fortalecimiento académico de Agentes educativos en temas de discapacidad
B9: Recurso programado: | F9: ='Distribución presupuestal 2025'!H51 -> 2000000 | J9: SEE focalizados: | M9: USAER | N9: ='SEE 2025'!B16 -> 171 | O9: CAM básico | P9: ='SEE 2025'!C16 -> 2 | Q9: Básico FpT | R9: ='SEE 2025'!C18 -> 25 | S9: CAM laboral | T9: ='SEE 2025'!D16 -> 0 | U9: CAPEP | V9: ='SEE 2025'!E16 -> 0 | W9: CRIE | X9: ='SEE 2025'!F16 -> 0 | Y9: UOP | Z9: ='SEE 2025'!G16 -> 0 | AA9: UAEBH | AB9: ='SEE 2025'!H16 -> 2 | AC9: Otro | AD9: ='SEE 2025'!I16 -> 0
B10: Remanente: | F10: =F9-SUM(A13:A79) -> 0
B12: Numero de actividad | D12: 1.1.1
A13: =T13 -> 500000 | B13: Tipo de actividad | D13: Trimestre de inicio | G13: 3ro | I13: Trimestre de término | M13: 4to | O13: Presupuesto de la actividad | T13: 500000 | W13: Título de la actividad | AC13: Integración Sensorial en Alumnos con Transtornos del Neurodesarrollo
B14: Taller | D14: USAER | G14: CAM básico | J14: CAM básico con FpT | M14: CAM laboral | P14: CAPEP | S14: CRIE | V14: UOP | Y14: UAEBH | AB14: Otro | AE14: Especifique producto o servicio en lo que se planea ejercer | AF14: Propósito de la actividad
D15: SEE: | E15: 48 | G15: SEE: | H15: 0 | J15: SEE: | K15: 0 | M15: SEE: | N15: N/A | P15: SEE: | Q15: N/A | S15: SEE: | T15: N/A | V15: SEE: | W15: N/A | Y15: SEE: | Z15: 2 | AB15: SEE: | AC15: N/A
D16: M | E16: H | F16: T | G16: M | H16: H | I16: T | J16: M | K16: H | L16: T | M16: M | N16: H | O16: T | P16: M | Q16: H | R16: T | S16: M | T16: H | U16: T | V16: M | W16: H | X16: T | Y16: M | Z16: H | AA16: T | AB16: M | AC16: H | AD16: T
B17: Supervisores | D17: 0 | E17: 0 | F17: =SUM(D17,E17) -> 0 | G17: 0 | H17: 0 | I17: =SUM(G17,H17) -> 0 | J17: 0 | K17: 0 | L17: =SUM(J17,K17) -> 0 | M17: 0 | N17: 0 | O17: =SUM(M17,N17) -> 0 | P17: 0 | Q17: 0 | R17: =SUM(P17,Q17) -> 0 | S17: 0 | T17: 0 | U17: =SUM(S17,T17) -> 0 | V17: 0 | W17: 0 | X17: =SUM(V17,W17) -> 0 | Y17: 0 | Z17: 0 | AA17: =SUM(Y17,Z17) -> 0 | AB17: 0 | AC17: 0 | AD17: =SUM(AB17,AC17) -> 0 | AE17: Arrendamiento de salas / salones | AF17: Capacitar a 50 docentes es brindar conocimientos y estrategias sobre integración sensorial, permitiéndoles mejorar la enseñanza y la convivencia con alumnos que presentan dificultades en el procesamiento sensorial. A través de esta formación, los docentes podrán identificar signos de disfunción sensorial, comprender su impacto en el aprendizaje y la conducta, y aplicar estrategias prácticas para adaptar el entorno escolar, facilitando la autorregulación de los estudiantes. Además, se busca promover una educación inclusiva que responda a las necesidades sensoriales de cada alumno, favoreciendo su desarrollo integral.
B18: Directivas/os | D18: 0 | E18: 0 | F18: 0 | G18: 0 | H18: 0 | I18: 0 | J18: 0 | K18: 0 | L18: 0 | M18: 0 | N18: 0 | O18: 0 | P18: 0 | Q18: 0 | R18: 0 | S18: 0 | T18: 0 | U18: 0 | V18: 0 | W18: 0 | X18: 0 | Y18: 0 | Z18: 0 | AA18: 0 | AB18: 0 | AC18: 0 | AD18: 0 | AE18: Compra de papelería
B19: Docentes | D19: 38 | E19: 10 | F19: 48 | G19: 0 | H19: 0 | I19: 0 | J19: 0 | K19: 0 | L19: 0 | M19: 0 | N19: 0 | O19: 0 | P19: 0 | Q19: 0 | R19: 0 | S19: 0 | T19: 0 | U19: 0 | V19: 0 | W19: 0 | X19: 0 | Y19: 2 | Z19: 0 | AA19: 2 | AB19: 0 | AC19: 0 | AD19: 0 | AE19: Pago a conferencistas o talleristas
B20: Equipo de apoyo | D20: 0 | E20: 0 | F20: 0 | G20: 0 | H20: 0 | I20: 0 | J20: 0 | K20: 0 | L20: 0 | M20: 0 | N20: 0 | O20: 0 | P20: 0 | Q20: 0 | R20: 0 | S20: 0 | T20: 0 | U20: 0 | V20: 0 | W20: 0 | X20: 0 | Y20: 0 | Z20: 0 | AA20: 0 | AB20: 0 | AC20: 0 | AD20: 0 | AE20: Coffee break
B21: Familias | D21: 0 | E21: 0 | F21: 0 | G21: 0 | H21: 0 | I21: 0 | J21: 0 | K21: 0 | L21: 0 | M21: 0 | N21: 0 | O21: 0 | P21: 0 | Q21: 0 | R21: 0 | S21: 0 | T21: 0 | U21: 0 | V21: 0 | W21: 0 | X21: 0 | Y21: 0 | Z21: 0 | AA21: 0 | AB21: 0 | AC21: 0 | AD21: 0 | AE21: Renta de mobiliario
B22: Docentes de EB | D22: 0 | E22: 0 | F22: 0 | G22: 0 | H22: 0 | I22: 0 | J22: 0 | K22: 0 | L22: 0 | M22: 0 | N22: 0 | O22: 0 | P22: 0 | Q22: 0 | R22: 0 | S22: 0 | T22: 0 | U22: 0 | V22: 0 | W22: 0 | X22: 0 | Y22: 0 | Z22: 0 | AA22: 0 | AB22: 0 | AC22: 0 | AD22: 0 | AE22: Renta de equipo de audio y/o video
B23: Otros | D23: 0 | E23: 0 | F23: 0 | G23: 0 | H23: 0 | I23: 0 | J23: 0 | K23: 0 | L23: 0 | M23: 0 | N23: 0 | O23: 0 | P23: 0 | Q23: 0 | R23: 0 | S23: 0 | T23: 0 | U23: 0 | V23: 0 | W23: 0 | X23: 0 | Y23: 0 | Z23: 0 | AA23: 0 | AB23: 0 | AC23: 0 | AD23: 0 | AE23: N/A
B24: TOTAL | D24: =SUM(D16:D23) -> 38 | E24: 10 | F24: 48 | G24: 0 | H24: 0 | I24: 0 | J24: 0 | K24: 0 | L24: 0 | M24: 0 | N24: 0 | O24: 0 | P24: 0 | Q24: 0 | R24: 0 | S24: 0 | T24: 0 | U24: 0 | V24: 0 | W24: 0 | X24: 0 | Y24: 2 | Z24: 0 | AA24: 2 | AB24: 0 | AC24: 0 | AD24: 0 | AE24: N/A
B26: En caso de requerir alguna precisión o aclaración, describa brevemente:
B27: N/A
B29: Numero de actividad | D29: 1.1.2
A30: =T30 -> 500000 | B30: Tipo de actividad | D30: Trimestre de inicio | G30: 3ro | I30: Trimestre de término | M30: 4to | O30: Presupuesto de la actividad | T30: 500000 | W30: Título de la actividad | AC30: Intervención Conductual de Alumnos con Autismo
B31: Taller | D31: USAER | G31: CAM básico | J31: CAM básico con FpT | M31: CAM laboral | P31: CAPEP | S31: CRIE | V31: UOP | Y31: UAEBH | AB31: Otro | AE31: Especifique producto o servicio en lo que se planea ejercer | AF31: Propósito de la actividad
D32: SEE: | E32: 23 | G32: SEE: | H32: 2 | J32: SEE: | K32: 25 | M32: SEE: | N32: N/A | P32: SEE: | Q32: N/A | S32: SEE: | T32: N/A | V32: SEE: | W32: N/A | Y32: SEE: | Z32: 0 | AB32: SEE: | AC32: N/A
D33: M | E33: H | F33: T | G33: M | H33: H | I33: T | J33: M | K33: H | L33: T | M33: M | N33: H | O33: T | P33: M | Q33: H | R33: T | S33: M | T33: H | U33: T | V33: M | W33: H | X33: T | Y33: M | Z33: H | AA33: T | AB33: M | AC33: H | AD33: T
B34: Supervisores | D34: 0 | E34: 0 | F34: =SUM(D34,E34) -> 0 | G34: 0 | H34: 0 | I34: =SUM(G34,H34) -> 0 | J34: 0 | K34: 0 | L34: =SUM(J34,K34) -> 0 | M34: 0 | N34: 0 | O34: =SUM(M34,N34) -> 0 | P34: 0 | Q34: 0 | R34: =SUM(P34,Q34) -> 0 | S34: 0 | T34: 0 | U34: =SUM(S34,T34) -> 0 | V34: 0 | W34: 0 | X34: =SUM(V34,W34) -> 0 | Y34: 0 | Z34: 0 | AA34: =SUM(Y34,Z34) -> 0 | AB34: 0 | AC34: 0 | AD34: =SUM(AB34,AC34) -> 0 | AE34: Arrendamiento de salas / salones | AF34: Capacitar a 50 docentes en estrategias de intervención conductual para mejorar la enseñanza y la convivencia con alumnos dentro del espectro autista, brindándoles herramientas para comprender las bases del comportamiento en niños y jóvenes con autismo, identificar los desencadenantes y funciones de las conductas disruptivas, y aplicar estrategias basadas en el Análisis Aplicado de la Conducta (ABA) y otras metodologías efectivas que favorezcan el aprendizaje y la adaptación escolar.
B35: Directivas/os | D35: 0 | E35: 0 | F35: 0 | G35: 0 | H35: 0 | I35: 0 | J35: 0 | K35: 0 | L35: 0 | M35: 0 | N35: 0 | O35: 0 | P35: 0 | Q35: 0 | R35: 0 | S35: 0 | T35: 0 | U35: 0 | V35: 0 | W35: 0 | X35: 0 | Y35: 0 | Z35: 0 | AA35: 0 | AB35: 0 | AC35: 0 | AD35: 0 | AE35: Pago a conferencistas o talleristas
B36: Docentes | D36: 17 | E36: 6 | F36: 23 | G36: 2 | H36: 0 | I36: 2 | J36: 18 | K36: 7 | L36: 25 | M36: 0 | N36: 0 | O36: 0 | P36: 0 | Q36: 0 | R36: 0 | S36: 0 | T36: 0 | U36: 0 | V36: 0 | W36: 0 | X36: 0 | Y36: 0 | Z36: 0 | AA36: 0 | AB36: 0 | AC36: 0 | AD36: 0 | AE36: Coffee break
B37: Equipo de apoyo | D37: 0 | E37: 0 | F37: 0 | G37: 0 | H37: 0 | I37: 0 | J37: 0 | K37: 0 | L37: 0 | M37: 0 | N37: 0 | O37: 0 | P37: 0 | Q37: 0 | R37: 0 | S37: 0 | T37: 0 | U37: 0 | V37: 0 | W37: 0 | X37: 0 | Y37: 0 | Z37: 0 | AA37: 0 | AB37: 0 | AC37: 0 | AD37: 0 | AE37: Compra de papelería
B38: Familias | D38: 0 | E38: 0 | F38: 0 | G38: 0 | H38: 0 | I38: 0 | J38: 0 | K38: 0 | L38: 0 | M38: 0 | N38: 0 | O38: 0 | P38: 0 | Q38: 0 | R38: 0 | S38: 0 | T38: 0 | U38: 0 | V38: 0 | W38: 0 | X38: 0 | Y38: 0 | Z38: 0 | AA38: 0 | AB38: 0 | AC38: 0 | AD38: 0 | AE38: Renta de equipo de audio y/o video
B39: Docentes de EB | D39: 0 | E39: 0 | F39: 0 | G39: 0 | H39: 0 | I39: 0 | J39: 0 | K39: 0 | L39: 0 | M39: 0 | N39: 0 | O39: 0 | P39: 0 | Q39: 0 | R39: 0 | S39: 0 | T39: 0 | U39: 0 | V39: 0 | W39: 0 | X39: 0 | Y39: 0 | Z39: 0 | AA39: 0 | AB39: 0 | AC39: 0 | AD39: 0 | AE39: Renta de mobiliario
B40: Otros | D40: 0 | E40: 0 | F40: 0 | G40: 0 | H40: 0 | I40: 0 | J40: 0 | K40: 0 | L40: 0 | M40: 0 | N40: 0 | O40: 0 | P40: 0 | Q40: 0 | R40: 0 | S40: 0 | T40: 0 | U40: 0 | V40: 0 | W40: 0 | X40: 0 | Y40: 0 | Z40: 0 | AA40: 0 | AB40: 0 | AC40: 0 | AD40: 0 | AE40: N/A
B41: TOTAL | D41: =SUM(D33:D40) -> 17 | E41: 6 | F41: 23 | G41: 2 | H41: 0 | I41: 2 | J41: 18 | K41: 7 | L41: 25 | M41: 0 | N41: 0 | O41: 0 | P41: 0 | Q41: 0 | R41: 0 | S41: 0 | T41: 0 | U41: 0 | V41: 0 | W41: 0 | X41: 0 | Y41: 0 | Z41: 0 | AA41: 0 | AB41: 0 | AC41: 0 | AD41: 0 | AE41: N/A
B43: En caso de requerir alguna precisión o aclaración, describa brevemente:
B44: N/A
B46: Numero de actividad | D46: 1.1.3
A47: =T47 -> 500000 | B47: Tipo de actividad | D47: Trimestre de inicio | G47: 3ro | I47: Trimestre de término | M47: 4to | O47: Presupuesto de la actividad | T47: 500000 | W47: Título de la actividad | AC47: Estrategias Neurodidácticas Asociadas a la Lengua escrita para Alumnos con Discapacidad Intelectual.
B48: Taller | D48: USAER | G48: CAM básico | J48: CAM básico con FpT | M48: CAM laboral | P48: CAPEP | S48: CRIE | V48: UOP | Y48: UAEBH | AB48: Otro | AE48: Especifique producto o servicio en lo que se planea ejercer | AF48: Propósito de la actividad
D49: SEE: | E49: 50 | G49: SEE: | H49: 0 | J49: SEE: | K49: 0 | M49: SEE: | N49: N/A | P49: SEE: | Q49: N/A | S49: SEE: | T49: N/A | V49: SEE: | W49: N/A | Y49: SEE: | Z49: 0 | AB49: SEE: | AC49: N/A
D50: M | E50: H | F50: T | G50: M | H50: H | I50: T | J50: M | K50: H | L50: T | M50: M | N50: H | O50: T | P50: M | Q50: H | R50: T | S50: M | T50: H | U50: T | V50: M | W50: H | X50: T | Y50: M | Z50: H | AA50: T | AB50: M | AC50: H | AD50: T
B51: Supervisores | D51: 0 | E51: 0 | F51: =SUM(D51,E51) -> 0 | G51: 0 | H51: 0 | I51: =SUM(G51,H51) -> 0 | J51: 0 | K51: 0 | L51: =SUM(J51,K51) -> 0 | M51: 0 | N51: 0 | O51: =SUM(M51,N51) -> 0 | P51: 0 | Q51: 0 | R51: =SUM(P51,Q51) -> 0 | S51: 0 | T51: 0 | U51: =SUM(S51,T51) -> 0 | V51: 0 | W51: 0 | X51: =SUM(V51,W51) -> 0 | Y51: 0 | Z51: 0 | AA51: =SUM(Y51,Z51) -> 0 | AB51: 0 | AC51: 0 | AD51: =SUM(AB51,AC51) -> 0 | AE51: Arrendamiento de salas / salones | AF51: Capacitar a 50 docentes en estrategias neurodidácticas asociadas a la lengua escrita para alumnos con discapacidad intelectual, brindándoles herramientas basadas en el funcionamiento del cerebro y los procesos de aprendizaje para optimizar la enseñanza de la lectura y la escritura.
B52: Directivas/os | D52: 0 | E52: 0 | F52: 0 | G52: 0 | H52: 0 | I52: 0 | J52: 0 | K52: 0 | L52: 0 | M52: 0 | N52: 0 | O52: 0 | P52: 0 | Q52: 0 | R52: 0 | S52: 0 | T52: 0 | U52: 0 | V52: 0 | W52: 0 | X52: 0 | Y52: 0 | Z52: 0 | AA52: 0 | AB52: 0 | AC52: 0 | AD52: 0 | AE52: Pago a conferencistas o talleristas
B53: Docentes | D53: 15 | E53: 10 | F53: 25 | G53: 0 | H53: 0 | I53: 0 | J53: 0 | K53: 0 | L53: 0 | M53: 0 | N53: 0 | O53: 0 | P53: 0 | Q53: 0 | R53: 0 | S53: 0 | T53: 0 | U53: 0 | V53: 0 | W53: 0 | X53: 0 | Y53: 0 | Z53: 0 | AA53: 0 | AB53: 0 | AC53: 0 | AD53: 0 | AE53: Coffee break
B54: Equipo de apoyo | D54: 20 | E54: 5 | F54: 25 | G54: 0 | H54: 0 | I54: 0 | J54: 0 | K54: 0 | L54: 0 | M54: 0 | N54: 0 | O54: 0 | P54: 0 | Q54: 0 | R54: 0 | S54: 0 | T54: 0 | U54: 0 | V54: 0 | W54: 0 | X54: 0 | Y54: 0 | Z54: 0 | AA54: =SUM(Y54,Z54) -> 0 | AB54: 0 | AC54: 0 | AD54: 0 | AE54: Compra de papelería
B55: Familias | D55: 0 | E55: 0 | F55: 0 | G55: 0 | H55: 0 | I55: 0 | J55: 0 | K55: 0 | L55: 0 | M55: 0 | N55: 0 | O55: 0 | P55: 0 | Q55: 0 | R55: 0 | S55: 0 | T55: 0 | U55: 0 | V55: 0 | W55: 0 | X55: 0 | Y55: 0 | Z55: 0 | AA55: =SUM(Y55,Z55) -> 0 | AB55: 0 | AC55: 0 | AD55: 0 | AE55: Renta de equipo de audio y/o video
B56: Docentes de EB | D56: 0 | E56: 0 | F56: 0 | G56: 0 | H56: 0 | I56: 0 | J56: 0 | K56: 0 | L56: 0 | M56: 0 | N56: 0 | O56: 0 | P56: 0 | Q56: 0 | R56: 0 | S56: 0 | T56: 0 | U56: 0 | V56: 0 | W56: 0 | X56: 0 | Y56: 0 | Z56: 0 | AA56: 0 | AB56: 0 | AC56: 0 | AD56: 0 | AE56: Renta de mobiliario
B57: Otros | D57: 0 | E57: 0 | F57: 0 | G57: 0 | H57: 0 | I57: 0 | J57: 0 | K57: 0 | L57: 0 | M57: 0 | N57: 0 | O57: 0 | P57: 0 | Q57: 0 | R57: 0 | S57: 0 | T57: 0 | U57: 0 | V57: 0 | W57: 0 | X57: 0 | Y57: 0 | Z57: 0 | AA57: 0 | AB57: 0 | AC57: 0 | AD57: 0 | AE57: N/A
B58: TOTAL | D58: =SUM(D50:D57) -> 35 | E58: 15 | F58: 50 | G58: 0 | H58: 0 | I58: 0 | J58: 0 | K58: 0 | L58: 0 | M58: 0 | N58: 0 | O58: 0 | P58: 0 | Q58: 0 | R58: 0 | S58: 0 | T58: 0 | U58: 0 | V58: 0 | W58: 0 | X58: 0 | Y58: 0 | Z58: 0 | AA58: 0 | AB58: 0 | AC58: 0 | AD58: 0 | AE58: N/A
B60: En caso de requerir alguna precisión o aclaración, describa brevemente:
B61: N/A
B63: Numero de actividad | D63: 1.1.4
A64: =T64 -> 500000 | B64: Tipo de actividad | D64: Trimestre de inicio | G64: 3ro | I64: Trimestre de término | M64: 4to | O64: Presupuesto de la actividad | T64: 500000 | W64: Título de la actividad | AC64: Herramientas y Técnicas para la Intervención a Alumnos con Discapacidad Psicosocial
B65: Taller | D65: USAER | G65: CAM básico | J65: CAM básico con FpT | M65: CAM laboral | P65: CAPEP | S65: CRIE | V65: UOP | Y65: UAEBH | AB65: Otro | AE65: Especifique producto o servicio en lo que se planea ejercer | AF65: Propósito de la actividad
D66: SEE: | E66: 50 | G66: SEE: | H66: 0 | J66: SEE: | K66: 0 | M66: SEE: | N66: N/A | P66: SEE: | Q66: N/A | S66: SEE: | T66: N/A | V66: SEE: | W66: N/A | Y66: SEE: | Z66: N/A | AB66: SEE: | AC66: N/A
D67: M | E67: H | F67: T | G67: M | H67: H | I67: T | J67: M | K67: H | L67: T | M67: M | N67: H | O67: T | P67: M | Q67: H | R67: T | S67: M | T67: H | U67: T | V67: M | W67: H | X67: T | Y67: M | Z67: H | AA67: T | AB67: M | AC67: H | AD67: T
B68: Supervisores | D68: 0 | E68: 0 | F68: =SUM(D68,E68) -> 0 | G68: 0 | H68: 0 | I68: =SUM(G68,H68) -> 0 | J68: 0 | K68: 0 | L68: =SUM(J68,K68) -> 0 | M68: 0 | N68: 0 | O68: =SUM(M68,N68) -> 0 | P68: 0 | Q68: 0 | R68: =SUM(P68,Q68) -> 0 | S68: 0 | T68: 0 | U68: =SUM(S68,T68) -> 0 | V68: 0 | W68: 0 | X68: =SUM(V68,W68) -> 0 | Y68: 0 | Z68: 0 | AA68: =SUM(Y68,Z68) -> 0 | AB68: 0 | AC68: 0 | AD68: =SUM(AB68,AC68) -> 0 | AE68: Arrendamiento de salas / salones | AF68: Capacitar a 50 docentes en herramientas y técnicas para la intervención con alumnos con discapacidad psicosocial, proporcionándoles estrategias para comprender, apoyar y mejorar el bienestar emocional y el proceso de aprendizaje de estos estudiantes. A través de esta formación, los docentes podrán identificar necesidades específicas, aplicar enfoques pedagógicos inclusivos y promover un entorno escolar que favorezca la participación, la autonomía y la salud mental de sus alumnos.
B69: Directivas/os | D69: 0 | E69: 0 | F69: 0 | G69: 0 | H69: 0 | I69: 0 | J69: 0 | K69: 0 | L69: 0 | M69: 0 | N69: 0 | O69: 0 | P69: 0 | Q69: 0 | R69: 0 | S69: 0 | T69: 0 | U69: 0 | V69: 0 | W69: 0 | X69: 0 | Y69: 0 | Z69: 0 | AA69: 0 | AB69: 0 | AC69: 0 | AD69: 0 | AE69: Pago a conferencistas o talleristas
B70: Docentes | D70: 10 | E70: 5 | F70: 15 | G70: 0 | H70: 0 | I70: 0 | J70: 0 | K70: 0 | L70: 0 | M70: 0 | N70: 0 | O70: 0 | P70: 0 | Q70: 0 | R70: 0 | S70: 0 | T70: 0 | U70: 0 | V70: 0 | W70: 0 | X70: 0 | Y70: 0 | Z70: 0 | AA70: 0 | AB70: 0 | AC70: 0 | AD70: 0 | AE70: Coffee break
B71: Equipo de apoyo | D71: 18 | E71: 17 | F71: 35 | G71: 0 | H71: 0 | I71: 0 | J71: 0 | K71: 0 | L71: 0 | M71: 0 | N71: 0 | O71: 0 | P71: 0 | Q71: 0 | R71: 0 | S71: 0 | T71: 0 | U71: 0 | V71: 0 | W71: 0 | X71: 0 | Y71: 0 | Z71: 0 | AA71: =SUM(Y71,Z71) -> 0 | AB71: 0 | AC71: 0 | AD71: 0 | AE71: Compra de papelería
B72: Familias | D72: 0 | E72: 0 | F72: 0 | G72: 0 | H72: 0 | I72: 0 | J72: 0 | K72: 0 | L72: 0 | M72: 0 | N72: 0 | O72: 0 | P72: 0 | Q72: 0 | R72: 0 | S72: 0 | T72: 0 | U72: 0 | V72: 0 | W72: 0 | X72: 0 | Y72: 0 | Z72: 0 | AA72: 0 | AB72: 0 | AC72: 0 | AD72: 0 | AE72: Renta de equipo de audio y/o video
B73: Docentes de EB | D73: 0 | E73: 0 | F73: 0 | G73: 0 | H73: 0 | I73: 0 | J73: 0 | K73: 0 | L73: 0 | M73: 0 | N73: 0 | O73: 0 | P73: 0 | Q73: 0 | R73: 0 | S73: 0 | T73: 0 | U73: 0 | V73: 0 | W73: 0 | X73: 0 | Y73: 0 | Z73: 0 | AA73: 0 | AB73: 0 | AC73: 0 | AD73: 0 | AE73: Renta de mobiliario
B74: Otros | D74: 0 | E74: 0 | F74: 0 | G74: 0 | H74: 0 | I74: 0 | J74: 0 | K74: 0 | L74: 0 | M74: 0 | N74: 0 | O74: 0 | P74: 0 | Q74: 0 | R74: 0 | S74: 0 | T74: 0 | U74: 0 | V74: 0 | W74: 0 | X74: 0 | Y74: 0 | Z74: 0 | AA74: 0 | AB74: 0 | AC74: 0 | AD74: 0 | AE74: N/A
B75: TOTAL | D75: =SUM(D67:D74) -> 28 | E75: 22 | F75: 50 | G75: 0 | H75: 0 | I75: 0 | J75: 0 | K75: 0 | L75: 0 | M75: 0 | N75: 0 | O75: 0 | P75: 0 | Q75: 0 | R75: 0 | S75: 0 | T75: 0 | U75: 0 | V75: 0 | W75: 0 | X75: 0 | Y75: 0 | Z75: 0 | AA75: 0 | AB75: 0 | AC75: 0 | AD75: 0 | AE75: N/A
B77: En caso de requerir alguna precisión o aclaración, describa brevemente:
B78: N/A

Sheet Acciones académicas AS 2025
B1: Subsecretaría de Educación Básica Dirección General de Desarrollo Curricular Dirección de Fortalecimiento Curricular para la Formación Personal y Social en la Educación Básica Educación Especial
B6: Componente: 1. Acciones académicas para Agentes educativos en temas de aptitudes sobresalientes
B7: Para garantizar el cumplimiento de los objetivos del PFSEE las AEL podrán destinar hasta un 50% del recurso, de acuerdo con lo estipulado en las reglas de operación 2025.
B8: 1.1 Desarrollo de acciones de actualización y fortalecimiento académico de Agentes educativos en temas de aptitudes sobresalientes
B9: Recurso programado: | F9: ='Distribución presupuestal 2025'!W51 -> 2000000 | J9: SEE focalizados: | M9: USAER | N9: ='SEE 2025'!N16 -> 174 | O9: CAPEP | P9: ='SEE 2025'!O16 -> 0 | Q9: CRIE | R9: ='SEE 2025'!P16 -> 0 | S9: UOP | T9: ='SEE 2025'!Q16 -> 0 | U9: UAEBH | V9: ='SEE 2025'!R16 -> 0 | W9: Otro | X9: ='SEE 2025'!S16 -> 0
B10: Remanente: | F10: =F9-SUM(A13:A79) -> 0
B12: Numero de actividad | D12: 1.1.1
A13: =T13 -> 500000 | B13: Tipo de actividad | D13: Trimestre de inicio | G13: 3ro | I13: Trimestre de término | M13: 4to | O13: Presupuesto de la actividad | T13: 500000 | W13: Título de la actividad | AA13: Potenciando el Talento Artístico de Niños y Niñas con Aptitudes Sobresalientes
B14: Taller | D14: USAER | G14: CAPEP | J14: CRIE | M14: UOP | P14: UAEBH | S14: Otro | V14: Especifique producto o servicio en lo que se planea ejercer | Z14: Propósito de la actividad
D15: SEE: | E15: 44 | G15: SEE: | H15: N/A | J15: SEE: | K15: N/A | M15: SEE: | N15: N/A | P15: SEE: | Q15: N/A | S15: SEE: | T15: N/A
D16: M | E16: H | F16: T | G16: M | H16: H | I16: T | J16: M | K16: H | L16: T | M16: M | N16: H | O16: T | P16: M | Q16: H | R16: T | S16: M | T16: H | U16: T
B17: Supervisores | D17: 2 | E17: 1 | F17: =SUM(D17,E17) -> 3 | G17: 0 | H17: 0 | I17: =SUM(G17,H17) -> 0 | J17: 0 | K17: 0 | L17: =SUM(J17,K17) -> 0 | M17: 0 | N17: 0 | O17: =SUM(M17,N17) -> 0 | P17: 0 | Q17: 0 | R17: =SUM(P17,Q17) -> 0 | S17: 0 | T17: 0 | U17: =SUM(S17,T17) -> 0 | V17: Arrendamiento de salas / salones | Z17: Brindar a 50 docentes estrategias y herramientas innovadoras para identificar, fomentar y potenciar el talento artístico en niños y niñas con aptitudes sobresalientes. A través de esta capacitación, se busca fortalecer sus habilidades pedagógicas, promoviendo un ambiente de aprendizaje inclusivo y enriquecedor que estimule la creatividad, la expresión artística y el desarrollo integral del estudiantado.
B18: Directivas/os | D18: 15 | E18: 5 | F18: 20 | G18: 0 | H18: 0 | I18: 0 | J18: 0 | K18: 0 | L18: 0 | M18: 0 | N18: 0 | O18: 0 | P18: 0 | Q18: 0 | R18: 0 | S18: 0 | T18: 0 | U18: 0 | V18: Pago a conferencistas o talleristas
B19: Docentes | D19: 10 | E19: 5 | F19: 15 | G19: 0 | H19: 0 | I19: 0 | J19: 0 | K19: 0 | L19: 0 | M19: 0 | N19: 0 | O19: 0 | P19: 0 | Q19: 0 | R19: 0 | S19: 0 | T19: 0 | U19: 0 | V19: Compra de papelería
B20: Equipo de apoyo | D20: 6 | E20: 3 | F20: 9 | G20: 0 | H20: 0 | I20: 0 | J20: 0 | K20: 0 | L20: 0 | M20: 0 | N20: 0 | O20: 0 | P20: 0 | Q20: 0 | R20: 0 | S20: 0 | T20: 0 | U20: 0 | V20: Coffee break
B21: Familias | D21: 0 | E21: 0 | F21: 0 | G21: 0 | H21: 0 | I21: 0 | J21: 0 | K21: 0 | L21: 0 | M21: 0 | N21: 0 | O21: 0 | P21: 0 | Q21: 0 | R21: 0 | S21: 0 | T21: 0 | U21: 0 | V21: Renta de mobiliario
B22: Docentes de EB | D22: 2 | E22: 1 | F22: 3 | G22: 0 | H22: 0 | I22: 0 | J22: 0 | K22: 0 | L22: 0 | M22: 0 | N22: 0 | O22: 0 | P22: 0 | Q22: 0 | R22: 0 | S22: 0 | T22: 0 | U22: 0 | V22: Renta de equipo de audio y/o video
B23: Otros | D23: 0 | E23: 0 | F23: 0 | G23: 0 | H23: 0 | I23: 0 | J23: 0 | K23: 0 | L23: 0 | M23: 0 | N23: 0 | O23: 0 | P23: 0 | Q23: 0 | R23: 0 | S23: 0 | T23: 0 | U23: 0 | V23: N/A
B24: TOTAL | D24: =SUM(D16:D23) -> 35 | E24: 15 | F24: 50 | G24: 0 | H24: 0 | I24: 0 | J24: 0 | K24: 0 | L24: 0 | M24: 0 | N24: 0 | O24: 0 | P24: 0 | Q24: 0 | R24: 0 | S24: 0 | T24: 0 | U24: 0 | V24: N/A
B26: En caso de requerir alguna precisión o aclaración, describa brevemente:
B27: N/A
B29: Numero de actividad | D29: 1.1.2
A30: =T30 -> 500000 | B30: Tipo de actividad | D30: Trimestre de inicio | G30: 3ro | I30: Trimestre de término | M30: 4to | O30: Presupuesto de la actividad | T30: 500000 | W30: Título de la actividad | AA30: Gestión de Emociones para Niños con Aptitudes Sobresalientes
B31: Taller | D31: USAER | G31: CAPEP | J31: CRIE | M31: UOP | P31: UAEBH | S31: Otro | V31: Especifique producto o servicio en lo que se planea ejercer | Z31: Propósito de la actividad
D32: SEE: | E32: 44 | G32: SEE: | H32: N/A | J32: SEE: | K32: N/A | M32: SEE: | N32: N/A | P32: SEE: | Q32: N/A | S32: SEE: | T32: N/A
D33: M | E33: H | F33: T | G33: M | H33: H | I33: T | J33: M | K33: H | L33: T | M33: M | N33: H | O33: T | P33: M | Q33: H | R33: T | S33: M | T33: H | U33: T
B34: Supervisores | D34: 2 | E34: 1 | F34: =D34+E34 -> 3 | G34: 0 | H34: 0 | I34: =SUM(G34,H34) -> 0 | J34: 0 | K34: 0 | L34: =SUM(J34,K34) -> 0 | M34: 0 | N34: 0 | O34: =SUM(M34,N34) -> 0 | P34: 0 | Q34: 0 | R34: =SUM(P34,Q34) -> 0 | S34: 0 | T34: 0 | U34: =SUM(S34,T34) -> 0 | V34: Arrendamiento de salas / salones | Z34: Dotar a 50 docentes de herramientas para ayudar a los niños con aptitudes sobresalientes a comprender, regular y canalizar sus emociones de manera positiva, promoviendo su bienestar emocional y su desarrollo socioafectivo.
B35: Directivas/os | D35: 15 | E35: 5 | F35: =D35+E35 -> 20 | G35: 0 | H35: 0 | I35: 0 | J35: 0 | K35: 0 | L35: 0 | M35: 0 | N35: 0 | O35: 0 | P35: 0 | Q35: 0 | R35: 0 | S35: 0 | T35: 0 | U35: 0 | V35: Pago a conferencistas o talleristas
B36: Docentes | D36: 10 | E36: 5 | F36: 15 | G36: 0 | H36: 0 | I36: 0 | J36: 0 | K36: 0 | L36: 0 | M36: 0 | N36: 0 | O36: 0 | P36: 0 | Q36: 0 | R36: 0 | S36: 0 | T36: 0 | U36: 0 | V36: Compra de papelería
B37: Equipo de apoyo | D37: 6 | E37: 3 | F37: 9 | G37: 0 | H37: 0 | I37: 0 | J37: 0 | K37: 0 | L37: 0 | M37: 0 | N37: 0 | O37: 0 | P37: 0 | Q37: 0 | R37: 0 | S37: 0 | T37: 0 | U37: 0 | V37: Coffee break
B38: Familias | D38: 0 | E38: 0 | F38: 0 | G38: 0 | H38: 0 | I38: 0 | J38: 0 | K38: 0 | L38: 0 | M38: 0 | N38: 0 | O38: 0 | P38: 0 | Q38: 0 | R38: 0 | S38: 0 | T38: 0 | U38: 0 | V38: Renta de mobiliario
B39: Docentes de EB | D39: 2 | E39: 1 | F39: 3 | G39: 0 | H39: 0 | I39: 0 | J39: 0 | K39: 0 | L39: 0 | M39: 0 | N39: 0 | O39: 0 | P39: 0 | Q39: 0 | R39: 0 | S39: 0 | T39: 0 | U39: 0 | V39: Renta de equipo de audio y/o video
B40: Otros | D40: 0 | E40: 0 | F40: 0 | G40: 0 | H40: 0 | I40: 0 | J40: 0 | K40: 0 | L40: 0 | M40: 0 | N40: 0 | O40: 0 | P40: 0 | Q40: 0 | R40: 0 | S40: 0 | T40: 0 | U40: 0 | V40: N/A
B41: TOTAL | D41: =SUM(D33:D40) -> 35 | E41: 15 | F41: 50 | G41: 0 | H41: 0 | I41: 0 | J41: 0 | K41: 0 | L41: 0 | M41: 0 | N41: 0 | O41: 0 | P41: 0 | Q41: 0 | R41: 0 | S41: 0 | T41: 0 | U41: 0 | V41: N/A
B43: En caso de requerir alguna precisión o aclaración, describa brevemente:
B44: N/A
B46: Numero de actividad | D46: 1.1.3
A47: =T47 -> 500000 | B47: Tipo de actividad | D47: Trimestre de inicio | G47: 3ro | I47: Trimestre de término | M47: 4to | O47: Presupuesto de la actividad | T47: 500000 | W47: Título de la actividad | AA47: Estrategias para el Enriquecimiento del Contexto Escolar para Alumnos con Aptitudes Sobresalientes
B48: Taller | D48: USAER | G48: CAPEP | J48: CRIE | M48: UOP | P48: UAEBH | S48: Otro | V48: Especifique producto o servicio en lo que se planea ejercer | Z48: Propósito de la actividad
D49: SEE: | E49: 43 | G49: SEE: | H49: N/A | J49: SEE: | K49: N/A | M49: SEE: | N49: N/A | P49: SEE: | Q49: N/A | S49: SEE: | T49: N/A
D50: M | E50: H | F50: T | G50: M | H50: H | I50: T | J50: M | K50: H | L50: T | M50: M | N50: H | O50: T | P50: M | Q50: H | R50: T | S50: M | T50: H | U50: T
B51: Supervisores | D51: 3 | E51: 0 | F51: =SUM(D51,E51) -> 3 | G51: 0 | H51: 0 | I51: =SUM(G51,H51) -> 0 | J51: 0 | K51: 0 | L51: =SUM(J51,K51) -> 0 | M51: 0 | N51: 0 | O51: =SUM(M51,N51) -> 0 | P51: 0 | Q51: 0 | R51: =SUM(P51,Q51) -> 0 | S51: 0 | T51: 0 | U51: =SUM(S51,T51) -> 0 | V51: Arrendamiento de salas / salones | Z51: Implementar estrategias integrales que promuevan un entorno escolar inclusivo, participativo y enriquecedor, con el fin de fortalecer el desarrollo académico, social y emocional de los estudiantes, considerando sus contextos y necesidades individuales, y fomentando la colaboración entre docentes, familia y comunidad.
B52: Directivas/os | D52: 14 | E52: 5 | F52: 19 | G52: 0 | H52: 0 | I52: 0 | J52: 0 | K52: 0 | L52: 0 | M52: 0 | N52: 0 | O52: 0 | P52: 0 | Q52: 0 | R52: 0 | S52: 0 | T52: 0 | U52: 0 | V52: Pago a conferencistas o talleristas
B53: Docentes | D53: 10 | E53: 5 | F53: 15 | G53: 0 | H53: 0 | I53: 0 | J53: 0 | K53: 0 | L53: 0 | M53: 0 | N53: 0 | O53: 0 | P53: 0 | Q53: 0 | R53: 0 | S53: 0 | T53: 0 | U53: 0 | V53: Compra de papelería
B54: Equipo de apoyo | D54: 6 | E54: 3 | F54: 9 | G54: 0 | H54: 0 | I54: 0 | J54: 0 | K54: 0 | L54: 0 | M54: 0 | N54: 0 | O54: 0 | P54: 0 | Q54: 0 | R54: 0 | S54: 0 | T54: 0 | U54: 0 | V54: Coffee break
B55: Familias | D55: 0 | E55: 0 | F55: 0 | G55: 0 | H55: 0 | I55: 0 | J55: 0 | K55: 0 | L55: 0 | M55: 0 | N55: 0 | O55: 0 | P55: 0 | Q55: 0 | R55: 0 | S55: 0 | T55: 0 | U55: 0 | V55: Renta de mobiliario
B56: Docentes de EB | D56: 2 | E56: 2 | F56: 4 | G56: 0 | H56: 0 | I56: 0 | J56: 0 | K56: 0 | L56: 0 | M56: 0 | N56: 0 | O56: 0 | P56: 0 | Q56: 0 | R56: 0 | S56: 0 | T56: 0 | U56: 0 | V56: Renta de equipo de audio y/o video
B57: Otros | D57: 0 | E57: 0 | F57: 0 | G57: 0 | H57: 0 | I57: 0 | J57: 0 | K57: 0 | L57: 0 | M57: 0 | N57: 0 | O57: 0 | P57: 0 | Q57: 0 | R57: 0 | S57: 0 | T57: 0 | U57: 0 | V57: N/A
B58: TOTAL | D58: =SUM(D50:D57) -> 35 | E58: 15 | F58: 50 | G58: 0 | H58: 0 | I58: 0 | J58: 0 | K58: 0 | L58: 0 | M58: 0 | N58: 0 | O58: 0 | P58: 0 | Q58: 0 | R58: 0 | S58: 0 | T58: 0 | U58: 0 | V58: N/A
B60: En caso de requerir alguna precisión o aclaración, describa brevemente:
B61: N/A
B63: Numero de actividad | D63: 1.1.4
A64: =T64 -> 500000 | B64: Tipo de actividad | D64: Trimestre de inicio | G64: 3ro | I64: Trimestre de término | M64: 4to | O64: Presupuesto de la actividad | T64: 500000 | W64: Título de la actividad | AA64: Creatividad y Pensamiento Disruptivo en Estudiantes AS.
B65: Taller | D65: USAER | G65: CAPEP | J65: CRIE | M65: UOP | P65: UAEBH | S65: Otro | V65: Especifique producto o servicio en lo que se planea ejercer | Z65: Propósito de la actividad
D66: SEE: | E66: 43 | G66: SEE: | H66: N/A | J66: SEE: | K66: N/A | M66: SEE: | N66: N/A | P66: SEE: | Q66: N/A | S66: SEE: | T66: N/A
D67: M | E67: H | F67: T | G67: M | H67: H | I67: T | J67: M | K67: H | L67: T | M67: M | N67: H | O67: T | P67: M | Q67: H | R67: T | S67: M | T67: H | U67: T
B68: Supervisores | D68: 3 | E68: 0 | F68: =D68+E68 -> 3 | G68: 0 | H68: 0 | I68: =SUM(G68,H68) -> 0 | J68: 0 | K68: 0 | L68: =SUM(J68,K68) -> 0 | M68: 0 | N68: 0 | O68: =SUM(M68,N68) -> 0 | P68: 0 | Q68: 0 | R68: =SUM(P68,Q68) -> 0 | S68: 0 | T68: 0 | U68: =SUM(S68,T68) -> 0 | V68: Arrendamiento de salas / salones | Z68: Proporcionar a 50 docentes herramientas a los docentes para estimular la creatividad y el pensamiento disruptivo en estudiantes con aptitudes sobresalientes, fomentando un enfoque innovador en la enseñanza que motive el desarrollo de ideas originales y soluciones creativas.
B69: Directivas/os | D69: 14 | E69: 5 | F69: =D69+E69 -> 19 | G69: 0 | H69: 0 | I69: 0 | J69: 0 | K69: 0 | L69: 0 | M69: 0 | N69: 0 | O69: 0 | P69: 0 | Q69: 0 | R69: 0 | S69: 0 | T69: 0 | U69: 0 | V69: Pago a conferencistas o talleristas
B70: Docentes | D70: 10 | E70: 5 | F70: =D70+E70 -> 15 | G70: 0 | H70: 0 | I70: 0 | J70: 0 | K70: 0 | L70: 0 | M70: 0 | N70: 0 | O70: 0 | P70: 0 | Q70: 0 | R70: 0 | S70: 0 | T70: 0 | U70: 0 | V70: Compra de papelería
B71: Equipo de apoyo | D71: 6 | E71: 3 | F71: =D71+E71 -> 9 | G71: 0 | H71: 0 | I71: 0 | J71: 0 | K71: 0 | L71: 0 | M71: 0 | N71: 0 | O71: 0 | P71: 0 | Q71: 0 | R71: 0 | S71: 0 | T71: 0 | U71: 0 | V71: Coffee break
B72: Familias | D72: 0 | E72: 0 | F72: 0 | G72: 0 | H72: 0 | I72: 0 | J72: 0 | K72: 0 | L72: 0 | M72: 0 | N72: 0 | O72: 0 | P72: 0 | Q72: 0 | R72: 0 | S72: 0 | T72: 0 | U72: 0 | V72: Renta de mobiliario
B73: Docentes de EB | D73: 2 | E73: 2 | F73: =D73+E73 -> 4 | G73: 0 | H73: 0 | I73: 0 | J73: 0 | K73: 0 | L73: 0 | M73: 0 | N73: 0 | O73: 0 | P73: 0 | Q73: 0 | R73: 0 | S73: 0 | T73: 0 | U73: 0 | V73: Renta de equipo de audio y/o video
B74: Otros | D74: 0 | E74: 0 | F74: 0 | G74: 0 | H74: 0 | I74: 0 | J74: 0 | K74: 0 | L74: 0 | M74: 0 | N74: 0 | O74: 0 | P74: 0 | Q74: 0 | R74: 0 | S74: 0 | T74: 0 | U74: 0 | V74: N/A
B75: TOTAL | D75: =SUM(D67:D74) -> 35 | E75: 15 | F75: 50 | G75: 0 | H75: 0 | I75: 0 | J75: 0 | K75: 0 | L75: 0 | M75: 0 | N75: 0 | O75: 0 | P75: 0 | Q75: 0 | R75: 0 | S75: 0 | T75: 0 | U75: 0 | V75: N/A
B77: En caso de requerir alguna precisión o aclaración, describa brevemente:
B78: N/A

Sheet Atención complementaria DIS
B1: Subsecretaría de Educación Básica Dirección General de Desarrollo Curricular Dirección de Fortalecimiento Curricular para la Formación Personal y Social en la Educación Básica Educación Especial
B6: Componente: 2. Acciones de atención complementaria para estudiantes con discapacidad
B7: Para garantizar el cumplimiento de los objetivos del PFSEE las AEL podrán destinar hasta un 50% del recurso, de acuerdo con lo estipulado en las reglas de operación 2025.
B8: 2.1 Acciones orientadas a la intervención directa y la atención complementaria: académica, artística, deportiva, rehabilitadora, desarrollo de habilidades socioafectivas y/o que contribuyan en el diagnóstico de las y los estudiantes con discapacidad
B9: Recurso programado: | D9: ='Distribución presupuestal 2025'!H56 -> 200569 | H9: SEE focalizados: | K9: USAER | L9: ='SEE 2025'!B21 -> 10 | M9: CAM básico | N9: ='SEE 2025'!C21 -> 0 | O9: Básico FpT | P9: ='SEE 2025'!C23 -> 3 | Q9: CAM laboral | R9: ='SEE 2025'!D21 -> 0 | S9: CAPEP | T9: ='SEE 2025'!E21 -> 0 | U9: CRIE | V9: ='SEE 2025'!F21 -> 0 | W9: UOP | X9: ='SEE 2025'!G21 -> 0 | Y9: UAEBH | Z9: ='SEE 2025'!H21 -> 0 | AA9: Otro | AB9: ='SEE 2025'!I21 -> 0
B10: Remanente | D10: =D9-SUM(A13:A24) -> 0
B12: Numero de actividad | D12: 2.1.1
A13: =R13 -> 200569 | B13: Tipo de actividad | D13: Trimestre de inicio | G13: 3ro | I13: Trimestre de término | L13: 4to | N13: Presupuesto de la actividad | R13: 200569 | V13: Título de la actividad | AC13: Estimulación con Robots para la Atención de Alumnos con TEA.
B14: Académica | D14: USAER | G14: CAM básico | J14: CAM básico con FpT | M14: CAM laboral | P14: CAPEP | S14: CRIE | V14: UOP | Y14: UAEBH | AB14: Otro | AE14: Especifique producto o servicio en lo que se planea ejercer | AM14: Propósito de la actividad
D15: SEE: | E15: 10 | G15: SEE: | H15: N/A | J15: SEE: | K15: 3 | M15: SEE: | N15: N/A | P15: SEE: | Q15: N/A | S15: SEE: | T15: N/A | V15: SEE: | W15: N/A | Y15: SEE: | Z15: N/A | AB15: SEE: | AC15: N/A
D16: M | E16: H | F16: T | G16: M | H16: H | I16: T | J16: M | K16: H | L16: T | M16: M | N16: H | O16: T | P16: M | Q16: H | R16: T | S16: M | T16: H | U16: T | V16: M | W16: H | X16: T | Y16: M | Z16: H | AA16: T | AB16: M | AC16: H | AD16: T
B17: Estudiantes beneficiados | D17: 8 | E17: 12 | F17: =SUM(D17,E17) -> 20 | G17: 0 | H17: 0 | I17: =SUM(G17,H17) -> 0 | J17: 7 | K17: 8 | L17: =SUM(J17,K17) -> 15 | M17: 0 | N17: 0 | O17: =SUM(M17,N17) -> 0 | P17: 0 | Q17: 0 | R17: =SUM(P17,Q17) -> 0 | S17: 0 | T17: 0 | U17: =SUM(S17,T17) -> 0 | V17: 0 | W17: 0 | X17: =SUM(V17,W17) -> 0 | Y17: 0 | Z17: 0 | AA17: =SUM(Y17,Z17) -> 0 | AB17: 0 | AC17: 0 | AD17: =SUM(AB17,AC17) -> 0 | AE17: Compra de recursos didácticos | AI17: N/A | AM17: Desarrollar las habilidades de interacción social y comunicación de los alumnos con espectro autista, a través del uso de la tecnología. Terapias de estimulación con robots para la atención de alumnos con TEA; 12 sesiones de trabajo, una por semana, trabajando 2 grupos cada uno, 20 alumnos de USAER y 15 alumnos de CAM con Diagnóstico Nivel 1.
AE18: N/A | AI18: N/A
B19: En caso de requerir alguna precisión o aclaración, describa brevemente: | AE19: N/A | AI19: N/A
B20: Se adquirirán libros y cuentos pragmaticos de diferentes temas, tarjetas de vocabularios, juegos didacticos montesori, entre otros. Los materiales quedarán bajo resguardo de los servicios de Educación Especial. | AE20: N/A | AI20: N/A
AE21: N/A | AI21: N/A
AE22: N/A | AI22: N/A
AE23: N/A | AI23: N/A
AE24: N/A | AI24: N/A

Sheet Atención complementaria AS
B1: Subsecretaría de Educación Básica Dirección General de Desarrollo Curricular Dirección de Fortalecimiento Curricular para la Formación Personal y Social en la Educación Básica Educación Especial
B6: Componente: 2. Atención complementaria a estudiantes con aptitudes sobresalientes
B7: Para garantizar el cumplimiento de los objetivos del PFSEE las AEL podrán destinar hasta un 50% del recurso, de acuerdo con lo estipulado en las reglas de operación 2025.
B8: 2.1 Acciones orientadas a la intervención directa y la atención complementaria: académica, artística, deportiva, rehabilitadora, desarrollo de habilidades socioafectivas y/o que contribuyan en el diagnóstico de las y los estudiantes con aptitudes sobresalientes
B9: Recurso programado: | D9: ='Distribución presupuestal 2025'!W56 -> 570000 | H9: SEE focalizados: | J9: USAER | K9: ='SEE 2025'!N21 -> 10 | L9: CAPEP | M9: ='SEE 2025'!O21 -> 0 | N9: CRIE | O9: ='SEE 2025'!P21 -> 0 | P9: UOP | Q9: ='SEE 2025'!Q21 -> 0 | R9: UAEBH | S9: ='SEE 2025'!R21 -> 0 | T9: Otro | U9: ='SEE 2025'!S21 -> 0
B10: Remanente | D10: =D9-SUM(A13:A26) -> 0
B12: Numero de actividad | D12: 2.1.1
A13: =R13 -> 570000 | B13: Tipo de actividad | D13: Trimestre de inicio | G13: 3ro | I13: Trimestre de término | L13: 4to | N13: Presupuesto de la actividad | R13: 570000 | V13: Título de la actividad | W13: Programa de robótica y STEAM
B14: Académica | D14: USAER | G14: CAPEP | J14: CRIE | M14: UOP | P14: UAEBH | S14: Otro | V14: Especifique producto o servicio en lo que se planea ejercer | X14: Propósito de la actividad
D15: SEE: | E15: 10 | G15: SEE: | H15: N/A | J15: SEE: | K15: N/A | M15: SEE: | N15: N/A | P15: SEE: | Q15: N/A | S15: SEE: | T15: N/A
D16: M | E16: H | F16: T | G16: M | H16: H | I16: T | J16: M | K16: H | L16: T | M16: M | N16: H | O16: T | P16: M | Q16: H | R16: T | S16: M | T16: H | U16: T
B17: Estudiantes beneficiados | D17: 189 | E17: 157 | F17: =SUM(D17,E17) -> 346 | G17: 0 | H17: 0 | I17: =SUM(G17,H17) -> 0 | J17: 0 | K17: 0 | L17: =SUM(J17,K17) -> 0 | M17: 0 | N17: 0 | O17: =SUM(M17,N17) -> 0 | P17: 0 | Q17: 0 | R17: =SUM(P17,Q17) -> 0 | S17: 0 | T17: 0 | U17: =SUM(S17,T17) -> 0 | V17: Compra de recursos didácticos | W17: N/A | X17: Que los alumnos desarrollen habilidades de investigación, reflexionen sobre soluciones a los problemas cotidianos, desarrollar habilidades de diseño, construcción y programación de robots para superar retos, basados en el juego, la diversión y el aprendizaje teorico-practico.
V18: N/A | W18: N/A
B19: En caso de requerir alguna precisión o aclaración, describa brevemente: | V19: N/A | W19: N/A
B20: Se seleccionarán diez servicios de la Unidad de Servicios de Apoyo a la Educación Regular (USAER) para recibir materiales, los cuales quedarán bajo su resguardo y se implementarán actividades conjuntas con las escuelas primarias que reciben atención de la USAER, promoviendo la inclusión, la creatividad y el trabajo en equipo a través de la metodología STEAM. | V20: N/A | W20: N/A
V21: N/A | W21: N/A
V22: N/A | W22: N/A
V23: N/A | W23: N/A
V24: N/A | W24: N/A

Sheet Equipamiento específico DIS
AV1: Subsecretaría de Educación Básica Dirección General de Desarrollo Curricular Dirección de Fortalecimiento Curricular para la Formación Personal y Social en la Educación Básica Educación Especial
A6: Componente: 3. Equipamiento específico en beneficio de estudiantes con discapacidad
A7: Para garantizar el cumplimiento de los objetivos del PFSEE las AEL podrán destinar hasta un 80% del recurso, de acuerdo con lo estipulado en las reglas de operación 2025.
A9: 3.1 Dotar de material didáctico especializado para estudiantes con discapacidad
A10: Recurso programado: | C10: ='Distribución presupuestal 2025'!H61 -> 1315775
A11: Remanente | C11: =C10-AV28 -> 0
C13: Focalizados USAER | F13: ='SEE 2025'!B$26 -> 174 | H13: Focalizados CAM básico | K13: ='SEE 2025'!C$26 -> 2 | M13: Focalizados CAM b con FpT | P13: ='SEE 2025'!C$28 -> 25 | R13: Focalizados CAM laboral | U13: ='SEE 2025'!D$26 -> 0 | W13: Focalizados CAPEP | Z13: ='SEE 2025'!E$26 -> 0 | AB13: Focalizados CRIE | AE13: ='SEE 2025'!F$26 -> 0 | AG13: Focalizados UOP | AJ13: ='SEE 2025'!G$26 -> 0 | AL13: Focalizados UAEBH | AO13: ='SEE 2025'!H$26 -> 2 | AQ13: Focalizados Otro | AT13: ='SEE 2025'!I$26 -> 0
A14: Tipo de materiales (seleccione) | B14: Material a adquirir | C14: Cantidad a distribuir | D14: USAER | H14: Cantidad a distribuir | I14: CAM básico | M14: Cantidad a distribuir | N14: CAM básico con FpT | R14: Cantidad a distribuir | S14: CAM laboral | W14: Cantidad a distribuir | X14: CAPEP | AB14: Cantidad a distribuir | AC14: CRIE | AG14: Cantidad a distribuir | AH14: UOP | AL14: Cantidad a distribuir | AM14: UAEBH | AQ14: Cantidad a distribuir | AR14: Otro | AV14: Presupuesto | AW14: Trimestre de inicio | AX14: Trimestre de término | AY14: Propósito educativo (específico del material a adquirir)
D15: SEE | E15: Estudiantes | I15: SEE | J15: Estudiantes | N15: SEE | O15: Estudiantes | S15: SEE | T15: Estudiantes | X15: SEE | Y15: Estudiantes | AC15: SEE | AD15: Estudiantes | AH15: SEE | AI15: Estudiantes | AM15: SEE | AN15: Estudiantes | AR15: SEE | AS15: Estudiantes
E16: M | F16: H | G16: T | J16: M | K16: H | L16: T | O16: M | P16: H | Q16: T | T16: M | U16: H | V16: T | Y16: M | Z16: H | AA16: T | AD16: M | AE16: H | AF16: T | AI16: M | AJ16: H | AK16: T | AN16: M | AO16: H | AP16: T | AS16: M | AT16: H | AU16: T
A17: Regletas y punzón | B17: Regleta con Punzón | C17: 145 | D17: 69 | E17: 47 | F17: 49 | G17: =SUM(E17,F17) -> 96 | H17: 0 | I17: 0 | J17: 0 | K17: 0 | L17: =SUM(J17,K17) -> 0 | M17: 20 | N17: 20 | O17: 23 | P17: 18 | Q17: =SUM(O17,P17) -> 41 | R17: 0 | S17: 0 | T17: 0 | U17: 0 | V17: =SUM(T17,U17) -> 0 | W17: 0 | X17: 0 | Y17: 0 | Z17: 0 | AA17: =SUM(Y17,Z17) -> 0 | AB17: 0 | AC17: 0 | AD17: 0 | AE17: 0 | AF17: =SUM(AD17,AE17) -> 0 | AG17: 0 | AH17: 0 | AI17: 0 | AJ17: 0 | AK17: =SUM(AI17,AJ17) -> 0 | AL17: 2 | AM17: 2 | AN17: 1 | AO17: 1 | AP17: 2 | AQ17: 0 | AR17: 0 | AS17: 0 | AT17: 0 | AU17: =SUM(AS17,AT17) -> 0 | AV17: 217100 | AW17: 3ro | AX17: 4to | AY17: El uso de la regleta Braille y el punzón fomenta la autonomía del estudiante, permite su desarrollo personal.
A18: Ábaco Cramer | B18: Abaco Cramer | C18: 145 | D18: 69 | E18: 47 | F18: 49 | G18: =SUM(E18,F18) -> 96 | H18: 0 | I18: 0 | J18: 0 | K18: 0 | L18: =SUM(J18,K18) -> 0 | M18: 20 | N18: 20 | O18: 23 | P18: 18 | Q18: =SUM(O18,P18) -> 41 | R18: 0 | S18: 0 | T18: 0 | U18: 0 | V18: =SUM(T18,U18) -> 0 | W18: 0 | X18: 0 | Y18: 0 | Z18: 0 | AA18: =SUM(Y18,Z18) -> 0 | AB18: 0 | AC18: 0 | AD18: 0 | AE18: 0 | AF18: =SUM(AD18,AE18) -> 0 | AG18: 0 | AH18: 0 | AI18: 0 | AJ18: 0 | AK18: =SUM(AI18,AJ18) -> 0 | AL18: 2 | AM18: 2 | AN18: 1 | AO18: 1 | AP18: 2 | AQ18: 0 | AR18: 0 | AS18: 0 | AT18: 0 | AU18: 0 | AV18: 200400 | AW18: 3ro | AX18: 4to | AY18: facilitar el aprendizaje práctico y activo de las matemáticas, especialmente en las primeras etapas de la educación. Esta herramienta permite a los niños aprender de manera concreta y manipulativa los conceptos de los números y las operaciones aritméticas básicas
A19: Material didáctico concreto | B19: Tablero Montessori | C19: 174 | D19: 174 | E19: 2077 | F19: 4626 | G19: 6703 | H19: 2 | I19: 2 | J19: 63 | K19: 99 | L19: 162 | M19: 25 | N19: 25 | O19: 597 | P19: 1005 | Q19: 1602 | R19: 0 | S19: 0 | T19: 0 | U19: 0 | V19: 0 | W19: 0 | X19: 0 | Y19: 0 | Z19: 0 | AA19: 0 | AB19: 0 | AC19: 0 | AD19: 0 | AE19: 0 | AF19: 0 | AG19: 0 | AH19: 0 | AI19: 0 | AJ19: 0 | AK19: 0 | AL19: 2 | AM19: 2 | AN19: 317 | AO19: 339 | AP19: 656 | AQ19: 0 | AR19: 0 | AS19: 0 | AT19: 0 | AU19: 0 | AV19: 111650 | AW19: 3ro | AX19: 4to | AY19: Permite a los estudiantes explorar y practicar habilidades clave de manera visual y táctil, promoviendo el desarrollo de la concentración, la coordinación y la resolución de problemas en un ambiente de aprendizaje activo y auto dirigido.
A20: Material didáctico concreto | B20: Juego de las Emociones | C20: 174 | D20: 174 | E20: 2077 | F20: 4626 | G20: =SUM(E20,F20) -> 6703 | H20: 2 | I20: 2 | J20: 63 | K20: 99 | L20: =SUM(J20,K20) -> 162 | M20: 25 | N20: 25 | O20: 597 | P20: 1005 | Q20: =SUM(O20,P20) -> 1602 | R20: 0 | S20: 0 | T20: 0 | U20: 0 | V20: =SUM(T20,U20) -> 0 | W20: 0 | X20: 0 | Y20: 0 | Z20: 0 | AA20: =SUM(Y20,Z20) -> 0 | AB20: 0 | AC20: 0 | AD20: 0 | AE20: 0 | AF20: =SUM(AD20,AE20) -> 0 | AG20: 0 | AH20: 0 | AI20: 0 | AJ20: 0 | AK20: =SUM(AI20,AJ20) -> 0 | AL20: 2 | AM20: 2 | AN20: 317 | AO20: 339 | AP20: 656 | AQ20: 0 | AR20: 0 | AS20: 0 | AT20: 0 | AU20: =SUM(AS20,AT20) -> 0 | AV20: 127890 | AW20: 3ro | AX20: 4to | AY20: Ayuda a los niños a identificar, comprender y expresar sus emociones de manera adecuada. A través de actividades lúdicas, este juego fomenta el desarrollo de la Inteligencia emocional, promoviendo la autoconciencia emocional y la empatía.
A21: Material didáctico concreto | B21: Tablero Ocupado Montessori | C21: 174 | D21: 174 | E21: 2077 | F21: 4626 | G21: 6703 | H21: 2 | I21: 2 | J21: 63 | K21: 99 | L21: 162 | M21: 25 | N21: 25 | O21: 597 | P21: 1005 | Q21: 1602 | R21: 0 | S21: 0 | T21: 0 | U21: 0 | V21: 0 | W21: 0 | X21: 0 | Y21: 0 | Z21: 0 | AA21: 0 | AB21: 0 | AC21: 0 | AD21: 0 | AE21: 0 | AF21: 0 | AG21: 0 | AH21: 0 | AI21: 0 | AJ21: 0 | AK21: 0 | AL21: 2 | AM21: 2 | AN21: 317 | AO21: 339 | AP21: 656 | AQ21: 0 | AR21: 0 | AS21: 0 | AT21: 0 | AU21: 0 | AV21: 73080 | AW21: 3ro | AX21: 4to | AY21: Promueve la coordinación motriz fina, el pensamiento lógico y la resolución de problemas, permitiendo a los niños explorar conceptos como el conteo, la clasificación y la secuenciación.
A22: Material didáctico concreto | B22: Juego de Texturas y Figuras de Estimulación Temprana | C22: 174 | D22: 174 | E22: 2077 | F22: 4626 | G22: =SUM(E22,F22) -> 6703 | H22: 2 | I22: 2 | J22: 63 | K22: 99 | L22: =SUM(J22,K22) -> 162 | M22: 25 | N22: 25 | O22: 597 | P22: 1005 | Q22: =SUM(O22,P22) -> 1602 | R22: 0 | S22: 0 | T22: 0 | U22: 0 | V22: =SUM(T22,U22) -> 0 | W22: 0 | X22: 0 | Y22: 0 | Z22: 0 | AA22: =SUM(Y22,Z22) -> 0 | AB22: 0 | AC22: 0 | AD22: 0 | AE22: 0 | AF22: =SUM(AD22,AE22) -> 0 | AG22: 0 | AH22: 0 | AI22: 0 | AJ22: 0 | AK22: =SUM(AI22,AJ22) -> 0 | AL22: 2 | AM22: 2 | AN22: 317 | AO22: 339 | AP22: 656 | AQ22: 0 | AR22: 0 | AS22: 0 | AT22: 0 | AU22: =SUM(AS22,AT22) -> 0 | AV22: 184730 | AW22: 3ro | AX22: 4to | AY22: Promueve el desarrollo táctil, ayuda a diferenciar sensaciones y desarrollar habilidades motoras finas, el reconocimiento de formas y colores, contribuyendo al desarrollo de la coordinación motriz y la percepción visual.
A23: Material didáctico concreto | B23: Ficha para el Desarrollo del Habla | C23: 174 | D23: 174 | E23: 2077 | F23: 4626 | G23: 6703 | H23: 2 | I23: 2 | J23: 63 | K23: 99 | L23: 162 | M23: 25 | N23: 25 | O23: 597 | P23: 1005 | Q23: 1602 | R23: 0 | S23: 0 | T23: 0 | U23: 0 | V23: 0 | W23: 0 | X23: 0 | Y23: 0 | Z23: 0 | AA23: 0 | AB23: 0 | AC23: 0 | AD23: 0 | AE23: 0 | AF23: 0 | AG23: 0 | AH23: 0 | AI23: 0 | AJ23: 0 | AK23: 0 | AL23: 2 | AM23: 2 | AN23: 317 | AO23: 339 | AP23: 656 | AQ23: 0 | AR23: 0 | AS23: 0 | AT23: 0 | AU23: 0 | AV23: 230405 | AW23: 3ro | AX23: 4to | AY23: Estimulan la comunicación verbal, desarrollan la comprensión auditiva, mejoran la memoria y concentración y fomentan la interacción social.
A24: Material didáctico concreto | B24: Torre de Hanói | C24: 174 | D24: 174 | E24: 2077 | F24: 4626 | G24: 6703 | H24: 2 | I24: 2 | J24: 63 | K24: 99 | L24: 162 | M24: 25 | N24: 25 | O24: 597 | P24: 1005 | Q24: 1602 | R24: 0 | S24: 0 | T24: 0 | U24: 0 | V24: 0 | W24: 0 | X24: 0 | Y24: 0 | Z24: 0 | AA24: 0 | AB24: 0 | AC24: 0 | AD24: 0 | AE24: 0 | AF24: 0 | AG24: 0 | AH24: 0 | AI24: 0 | AJ24: 0 | AK24: 0 | AL24: 2 | AM24: 2 | AN24: 317 | AO24: 339 | AP24: 656 | AQ24: 0 | AR24: 0 | AS24: 0 | AT24: 0 | AU24: 0 | AV24: 101500 | AW24: 3ro | AX24: 4to | AY24: Mejoran el desarrollo cognitivo, estratégico y emocional de los estudiantes, ayudándoles a fortalecer su capacidad para resolver problemas complejos de manera lógica y meticulosa.
A25: Material didáctico concreto | B25: Cubo Sensorial | C25: 174 | D25: 174 | E25: 2077 | F25: 4626 | G25: 6703 | H25: 2 | I25: 2 | J25: 63 | K25: 99 | L25: 162 | M25: 25 | N25: 25 | O25: 597 | P25: 1005 | Q25: 1602 | R25: 0 | S25: 0 | T25: 0 | U25: 0 | V25: 0 | W25: 0 | X25: 0 | Y25: 0 | Z25: 0 | AA25: 0 | AB25: 0 | AC25: 0 | AD25: 0 | AE25: 0 | AF25: 0 | AG25: 0 | AH25: 0 | AI25: 0 | AJ25: 0 | AK25: 0 | AL25: 2 | AM25: 2 | AN25: 317 | AO25: 339 | AP25: 656 | AQ25: 0 | AR25: 0 | AS25: 0 | AT25: 0 | AU25: 0 | AV25: 69020 | AW25: 3ro | AX25: 4to | AY25: Fomenta la comprensión del tiempo, mejora la autonomía y fortalecer las habilidades cognitivas
A26: N/A | B26: N/A | C26: 0 | D26: 0 | E26: 0 | F26: 0 | G26: 0 | H26: 0 | I26: 0 | J26: 0 | K26: 0 | L26: 0 | M26: 0 | N26: 0 | O26: 0 | P26: 0 | Q26: 0 | R26: 0 | S26: 0 | T26: 0 | U26: 0 | V26: 0 | W26: 0 | X26: 0 | Y26: 0 | Z26: 0 | AA26: 0 | AB26: 0 | AC26: 0 | AD26: 0 | AE26: 0 | AF26: 0 | AG26: 0 | AH26: 0 | AI26: 0 | AJ26: 0 | AK26: 0 | AL26: 0 | AM26: 0 | AN26: 0 | AO26: 0 | AP26: 0 | AQ26: 0 | AR26: 0 | AS26: 0 | AT26: 0 | AU26: 0 | AV26: 0 | AW26: N/A | AX26: N/A | AY26: N/A
A27: N/A | B27: N/A | C27: 0 | D27: 0 | E27: 0 | F27: 0 | G27: 0 | H27: 0 | I27: 0 | J27: 0 | K27: 0 | L27: 0 | M27: 0 | N27: 0 | O27: 0 | P27: 0 | Q27: 0 | R27: 0 | S27: 0 | T27: 0 | U27: 0 | V27: 0 | W27: 0 | X27: 0 | Y27: 0 | Z27: 0 | AA27: 0 | AB27: 0 | AC27: 0 | AD27: 0 | AE27: 0 | AF27: 0 | AG27: 0 | AH27: 0 | AI27: 0 | AJ27: 0 | AK27: 0 | AL27: 0 | AM27: 0 | AN27: 0 | AO27: 0 | AP27: 0 | AQ27: 0 | AR27: 0 | AS27: 0 | AT27: 0 | AU27: 0 | AV27: 0 | AW27: N/A | AX27: N/A | AY27: N/A
A28: Total | C28: =SUM(C17:C27) -> 1508 | D28: 1356 | E28: 14633 | F28: 32480 | G28: 47113 | H28: 14 | I28: 14 | J28: 441 | K28: 693 | L28: 1134 | M28: 215 | N28: 215 | O28: 4225 | P28: 7071 | Q28: 11296 | R28: 0 | S28: 0 | T28: 0 | U28: 0 | V28: 0 | W28: 0 | X28: 0 | Y28: 0 | Z28: 0 | AA28: 0 | AB28: 0 | AC28: 0 | AD28: 0 | AE28: 0 | AF28: 0 | AG28: 0 | AH28: 0 | AI28: 0 | AJ28: 0 | AK28: 0 | AL28: 18 | AM28: 18 | AN28: 2221 | AO28: 2375 | AP28: 4596 | AQ28: 0 | AR28: 0 | AS28: 0 | AT28: 0 | AU28: 0 | AV28: 1315775
A30: En caso de requerir alguna precisión o aclaración, describa brevemente:
A31: N/A
A33: 3.4 Dotar de equipo adaptado, tecnológico y/o multimedia para estudiantes con discapacidad
A34: Recurso programado: | C34: ='Distribución presupuestal 2025'!H64 -> 250000
A35: Remanente | C35: =C34-AV42 -> 0
C37: Focalizados USAER | F37: ='SEE 2025'!B$26 -> 174 | H37: Focalizados CAM básico | K37: ='SEE 2025'!C$26 -> 2 | M37: Focalizados CAM b con FpT | P37: ='SEE 2025'!C$28 -> 25 | R37: Focalizados CAM laboral | U37: ='SEE 2025'!D$26 -> 0 | W37: Focalizados CAPEP | Z37: ='SEE 2025'!E$26 -> 0 | AB37: Focalizados CRIE | AE37: ='SEE 2025'!F$26 -> 0 | AG37: Focalizados UOP | AJ37: ='SEE 2025'!G$26 -> 0 | AL37: Focalizados UAEBH | AO37: ='SEE 2025'!H$26 -> 2 | AQ37: Focalizados Otro | AT37: ='SEE 2025'!I$26 -> 0
A38: Tipo de equipo (seleccione) | B38: Características generales de los equipos | C38: Cantidad a distribuir | D38: USAER | H38: Cantidad a distribuir | I38: CAM básico | M38: Cantidad a distribuir | N38: CAM básico con FpT | R38: Cantidad a distribuir | S38: CAM laboral | W38: Cantidad a distribuir | X38: CAPEP | AB38: Cantidad a distribuir | AC38: CRIE | AG38: Cantidad a distribuir | AH38: UOP | AL38: Cantidad a distribuir | AM38: UAEBH | AQ38: Cantidad a distribuir | AR38: Otro | AV38: Presupuesto | AW38: Trimestre de inicio | AX38: Trimestre de término | AY38: Propósito educativo (específico de los materiales)
D39: SEE | E39: Estudiantes | I39: SEE | J39: Estudiantes | N39: SEE | O39: Estudiantes | S39: SEE | T39: Estudiantes | X39: SEE | Y39: Estudiantes | AC39: SEE | AD39: Estudiantes | AH39: SEE | AI39: Estudiantes | AM39: SEE | AN39: Estudiantes | AR39: SEE | AS39: Estudiantes
E40: M | F40: H | G40: T | J40: M | K40: H | L40: T | O40: M | P40: H | Q40: T | T40: M | U40: H | V40: T | Y40: M | Z40: H | AA40: T | AD40: M | AE40: H | AF40: T | AI40: M | AJ40: H | AK40: T | AN40: M | AO40: H | AP40: T | AS40: M | AT40: H | AU40: T
A41: Máquina Perkins | B41: Máquina Perkins | C41: 0 | D41: 0 | E41: 0 | F41: 0 | G41: 0 | H41: 0 | I41: 0 | J41: 0 | K41: 0 | L41: 0 | M41: 5 | N41: 5 | O41: 6 | P41: 11 | Q41: 17 | R41: 0 | S41: 0 | T41: 0 | U41: 0 | V41: 0 | W41: 0 | X41: 0 | Y41: 0 | Z41: 0 | AA41: 0 | AB41: 0 | AC41: 0 | AD41: 0 | AE41: 0 | AF41: 0 | AG41: 0 | AH41: 0 | AI41: 0 | AJ41: 0 | AK41: 0 | AL41: 0 | AM41: 0 | AN41: 0 | AO41: 0 | AP41: =SUM(AN41,AO41) -> 0 | AQ41: 0 | AR41: 0 | AS41: 0 | AT41: 0 | AU41: 0 | AV41: 250000 | AW41: 3ro | AX41: 4to | AY41: Contribuye de manera significativa a la educación inclusiva, facilitando que los estudiantes con discapacidad visual accedan al conocimiento y se expresen por escrito, lo cual es esencial para su desarrollo integral y participación plena en la sociedad.
A42: Total | C42: =SUM(C41:C41) -> 0 | D42: 0 | E42: 0 | F42: 0 | G42: 0 | H42: 0 | I42: 0 | J42: 0 | K42: 0 | L42: 0 | M42: 5 | N42: 5 | O42: 6 | P42: 11 | Q42: 17 | R42: 0 | S42: 0 | T42: 0 | U42: 0 | V42: 0 | W42: 0 | X42: 0 | Y42: 0 | Z42: 0 | AA42: 0 | AB42: 0 | AC42: 0 | AD42: 0 | AE42: 0 | AF42: 0 | AG42: 0 | AH42: 0 | AI42: 0 | AJ42: 0 | AK42: 0 | AL42: 0 | AM42: 0 | AN42: 0 | AO42: 0 | AP42: 0 | AQ42: 0 | AR42: 0 | AS42: 0 | AT42: 0 | AU42: 0 | AV42: 250000
A44: En caso de requerir alguna precisión o aclaración, describa brevemente:
A45: N/A
A47: 3.5 Adquirir herramientas, utensilios, enseres domésticos y aparatos electrónicos que se requieren para impartir las especialidades que se ofertan en los CAM Laboral y con Formación para el Trabajo
A48: Recurso programado: | C48: ='Distribución presupuestal 2025'!H65 -> 2119063
A49: Remanente | C49: =C48-Q95 -> 0
G51: Focalizados CAM b con FpT | J51: ='SEE 2025'!C28 -> 25 | L51: Focalizados CAM laboral | O51: ='SEE 2025'!D26 -> 0
A52: Taller a equipar | B52: Herramienta, utensilio, mobiliario o aparato a adquirir | C52: Insumo para instalación, mantenimiento y/o reparación | G52: Cantidad a distribuir | H52: CAM básico con FpT | L52: Cantidad a distribuir | M52: CAM laboral | Q52: Presupuesto | T52: Trimestre de inicio | U52: Trimestre de término | V52: Propósito educativo (específico de los materiales a reproducir)
H53: SEE | I53: Estudiantes | M53: SEE | N53: Estudiantes
I54: M | J54: H | K54: T | N54: M | O54: H | P54: T
A55: Panaderia y cocina | B55: Tanque de Gas de 30 Kg. | C55: N/A | G55: 2 | H55: 2 | I55: 33 | J55: 54 | K55: =SUM(I55,J55) -> 87 | L55: 0 | M55: 0 | N55: 0 | O55: 0 | P55: =SUM(N55,O55) -> 0 | Q55: 10000 | T55: 3ro | U55: 4to | V55: Herramienta imprescindible en el taller de alimentos que frece una fuente de energía eficiente y confiable para la cocción.
A56: Panaderia y cocina | B56: Enfriador Vertical de 1 Puerta | C56: N/A | G56: 5 | H56: 5 | I56: 128 | J56: 258 | K56: =SUM(I56,J56) -> 386 | L56: 0 | M56: 0 | N56: 0 | O56: 0 | P56: =SUM(N56,O56) -> 0 | Q56: 207500 | T56: 3ro | U56: 4to | V56: Propiciar la conservación de una amplia variedad de productos alimenticios prolongando su vida util y manteniendo su calidad
A57: Panaderia y cocina | B57: Refrigerador de 3 puertas de 22 Pies Cúbicos: El refrigerador de 22 pies cúbicos modelo cuenta con jaladera integrada tipo “Hidden” | C57: N/A | G57: 5 | H57: 5 | I57: 147 | J57: 235 | K57: =I57+J57 -> 382 | L57: 0 | M57: 0 | N57: 0 | O57: 0 | P57: 0 | Q57: 185000 | T57: 3ro | U57: 4to | V57: Equipo que permite enseñar al educando a conservar y guardar alimentos e ingredientes que utiliza para la preparación de bebidas y alimentos en su taller, que reforzará sus competencias en el ámbito laboral.
A58: Panaderia y cocina | B58: Mesa de Acero Inoxidable | C58: N/A | G58: 10 | H58: 9 | I58: 135 | J58: 305 | K58: =I58+J58 -> 440 | L58: 0 | M58: 0 | N58: 0 | O58: 0 | P58: 0 | Q58: 100000 | T58: 3ro | U58: 4to | V58: Facilitar la preparación de alimentos y dotar al educando de una herramienta necesaria para la preparación higiénica de alimentos en el taller de panadería.
A59: Panaderia y cocina | B59: Bascula Digital | C59: N/A | G59: 4 | H59: 4 | I59: 64 | J59: 93 | K59: 157 | L59: 0 | M59: 0 | N59: 0 | O59: 0 | P59: 0 | Q59: 20000 | T59: 3ro | U59: 4to | V59: Ayuda a los estudiantes a aprender sobre la precisión en la medición de ingredientes, fundamental en la cocina y la repostería.
A60: Panaderia y cocina | B60: Amasadora Espiral de Acero Inoxidable | C60: N/A | G60: 4 | H60: 4 | I60: 64 | J60: 93 | K60: 157 | L60: 0 | M60: 0 | N60: 0 | O60: 0 | P60: 0 | Q60: 144000 | T60: 3ro | U60: 4to | V60: ermite a los estudiantes practicar técnicas de amasado y entender la importancia de la consistencia en la preparación de masas.
A61: Panaderia y cocina | B61: Licuadora industrial 12 litros vca-li-12a. motor 1.5 hp volteje 120/60/1medidas: alto 79 cm diámetro 32 cm fabricado en acero inoxidable | C61: N/A | G61: 5 | H61: 5 | I61: 95 | J61: 131 | K61: 226 | L61: 0 | M61: 0 | N61: 0 | O61: 0 | P61: 0 | Q61: 85000 | T61: 3ro | U61: 4to | V61: fomentar la exploración, la experimentación y la innovación en la cocina.
A62: Panaderia y cocina | B62: Batidora Planetaria Industrial Amasadora Mezcladora 110v 20l Color Plateado Frecuencia 60 Hz. | C62: N/A | G62: 5 | H62: 5 | I62: 95 | J62: 131 | K62: 226 | L62: 0 | M62: 0 | N62: 0 | O62: 0 | P62: 0 | Q62: 95000 | T62: 3ro | U62: 4to | V62: Herramienta que sirve para ayudar a mejorar la producción e incremento de la materia.
A63: Panaderia y cocina | B63: Horno para Pan y Pizza | C63: N/A | G63: 6 | H63: 6 | I63: 157 | J63: 296 | K63: 453 | L63: 0 | M63: 0 | N63: 0 | O63: 0 | P63: 0 | Q63: 159000 | T63: 3ro | U63: 4to | V63: Herramienta imprescindible en el taller de alimentos y bebidas, que permite al alumno aprender a preparar alimentos calientes, controlar temperaturas, uso y manejo de parrillas y horno que reforzará sus habilidades y competencias laborales.
A64: Panaderia y cocina | B64: Estufa de 6 Hornillas | C64: N/A | G64: 4 | H64: 4 | I64: 29 | J64: 43 | K64: 72 | L64: 0 | M64: 0 | N64: 0 | O64: 0 | P64: =SUM(N64,O64) -> 0 | Q64: 89200 | T64: 3ro | U64: 4to | V64: Herramienta imprescindible en el taller de alimentos y bebidas, que permite al alumno aprender a preparar alimentos calientes, controlar temperaturas, uso y manejo de parrillas y horno que reforzará sus habilidades y competencias laborales.
A65: Panaderia y cocina | B65: Vitrina de Exhibición de 3 Niveles | C65: N/A | G65: 1 | H65: 1 | I65: 36 | J65: 51 | K65: 87 | L65: 0 | M65: 0 | N65: 0 | O65: 0 | P65: =SUM(N65,O65) -> 0 | Q65: 12000 | T65: 3ro | U65: 4to | V65: Enseña a los estudiantes sobre la presentación de productos, lo cual es crucial en el sector de la gastronomía y la venta al por menor.
A66: Panaderia y cocina | B66: Estufa de Inducción de 4 hornillas | C66: N/A | G66: 3 | H66: 3 | I66: 69 | J66: 134 | K66: 203 | L66: 0 | M66: 0 | N66: 0 | O66: 0 | P66: =SUM(N66,O66) -> 0 | Q66: 53862 | T66: 3ro | U66: 4to | V66: Proporciona experiencia en el uso de tecnología moderna de cocción, fomentando la seguridad y la eficiencia en la cocina.
A67: Artesanias familiares | B67: Mesa Tipo Tablón | C67: N/A | G67: 2 | H67: 2 | I67: 34 | J67: 33 | K67: 67 | L67: 0 | M67: 0 | N67: 0 | O67: 0 | P67: 0 | Q67: 8600 | T67: 3ro | U67: 4to | V67: Desarrollar actividades en pequeños grupos dentro y fuera del aula, para fomentar en el educando el trabajo en equipo.
A68: Artesanias familiares | B68: Silla Plegable | C68: N/A | G68: 20 | H68: 2 | I68: 34 | J68: 33 | K68: 67 | L68: 0 | M68: 0 | N68: 0 | O68: 0 | P68: 0 | Q68: 30000 | T68: 3ro | U68: 4to | V68: Desarrollar actividades en pequeños grupos dentro y fuera del aula, para fomentar en el educando el trabajo en equipo.
A69: Ofimatica | B69: Computadora de escritorio con procesador 12th Gen Intel® Core™ i5-12500T (18 MB cache, 6 cores, 12 threads, up to 4.40 GHz Turbo, 35 W). Memoria de 8 GB: 1 x 8 GB, DDR5, Disco duro M.2 2230 512GB SSD; | C69: N/A | G69: 11 | H69: 3 | I69: 87 | J69: 141 | K69: 228 | L69: 0 | M69: 0 | N69: 0 | O69: 0 | P69: 0 | Q69: 352000 | T69: 3ro | U69: 4to | V69: Transmitir conocimientos, reforzar aprendizajes y desarrollar destrezas en los alumnos para el manejo de las competencias tecnológicas, así como proveer acceso a información y comunicación, con la finalidad de prepararse y tener más oportunidades laborales.
A70: Ofimatica | B70: Impresora Laser, Multifuncional, Pantalla Táctil en Color, USB, WIFI. | C70: N/A | G70: 2 | H70: 2 | I70: 46 | J70: 98 | K70: 144 | L70: 0 | M70: 0 | N70: 0 | O70: 0 | P70: 0 | Q70: 36000 | T70: 3ro | U70: 4to | V70: Permite la creación de documentos, menús y etiquetas, enseñando a los estudiantes sobre la importancia de la comunicación visual en el ámbito laboral.
A71: Ofimatica | B71: Videoproyector 3LCD, de Tres Chips,Pantalla LCD, Lente de Proyección, Entrada USB Tipo A y B, HDMI, Salida VGA, Audio. | C71: N/A | G71: 3 | H71: 3 | I71: 233 | J71: 353 | K71: 586 | L71: 0 | M71: 0 | N71: 0 | O71: 0 | P71: 0 | Q71: 58500 | T71: 3ro | U71: 4to | V71: Realizar actividades audiovisuales para mejorar la experiencia de aprendizaje en el alumno, reforzando la memoria fotográfica, así como el acercamiento de los alumnos al uso de la tecnología mostrando al proyector como una herramienta de apoyo para el aprendizaje.
A72: Ofimatica | B72: No Break | C72: N/A | G72: 29 | H72: 11 | I72: 280 | J72: 474 | K72: 754 | L72: 0 | M72: 0 | N72: 0 | O72: 0 | P72: 0 | Q72: 188500 | T72: 3ro | U72: 4to | V72: Herramienta que sirve para resguardar el equipamiento que utilizan los alumnos
A73: Ofimatica | B73: Mesa para Computadora | C73: N/A | G73: 12 | H73: 3 | I73: 87 | J73: 141 | K73: 228 | L73: 0 | M73: 0 | N73: 0 | O73: 0 | P73: =SUM(N73,O73) -> 0 | Q73: 32500 | T73: 3ro | U73: 4to | V73: brindarle mayor comodidad a los niños para que estudien, descubran y desarrollen su creatividad, de acuerdo a sus necesidades
A74: Ofimatica | B74: Sillas Acojinadas | C74: N/A | G74: 13 | H74: 3 | I74: 87 | J74: 141 | K74: 228 | L74: 0 | M74: 0 | N74: 0 | O74: 0 | P74: =SUM(N74,O74) -> 0 | Q74: 27300 | T74: 3ro | U74: 4to | V74: Desarrollar actividades en pequeños grupos dentro y fuera del aula, para fomentar en el educando el trabajo en equipo.
A75: Panaderia y cocina | B75: Juego de Moldes para Panque | C75: N/A | G75: 10 | H75: 10 | I75: 290 | J75: 535 | K75: 825 | L75: 0 | M75: 0 | N75: 0 | O75: 0 | P75: =SUM(N75,O75) -> 0 | Q75: 6000 | T75: 3ro | U75: 4to | V75: Desarrollar habilidades en panadería, promoviendo la creatividad y la precisión en la preparación de productos horneados.
A76: Artesanias familiares | B76: Juego de Bisutería | C76: N/A | G76: 4 | H76: 2 | I76: 111 | J76: 278 | K76: 389 | L76: 0 | M76: 0 | N76: 0 | O76: 0 | P76: 0 | Q76: 2000 | T76: 3ro | U76: 4to | V76: omentar la destreza manual y la creatividad en la elaboración de accesorios, impulsando el autoempleo y la comercialización de productos.
A77: Artesanias familiares | B77: Máquina de Coser Voltaje: 127V Costura Con ojal automático: No Cantidad de puntadas: 12 Principales estilos de costuras: Ojal, Punto decorativo, Punto invisible, Recta, Sobrehilado, Zigzag. | C77: N/A | G77: 1 | H77: 1 | I77: 28 | J77: 60 | K77: 88 | L77: 0 | M77: 0 | N77: 0 | O77: 0 | P77: 0 | Q77: 9601 | T77: 3ro | U77: 4to | V77: Capacitar en confección y reparación de prendas, fortaleciendo habilidades en diseño textil y emprendimiento.
A78: Panaderia y cocina | B78: Juego de Moldes Desarmables Redondos | C78: N/A | G78: 10 | H78: 10 | I78: 290 | J78: 535 | K78: 825 | L78: 0 | M78: 0 | N78: 0 | O78: 0 | P78: 0 | Q78: 16000 | T78: 3ro | U78: 4to | V78: Enseñar técnicas de repostería profesional, facilitando la preparación y presentación de pasteles y postres.
A79: Panaderia y cocina | B79: Juego de Moldes de Rosca | C79: N/A | G79: 10 | H79: 10 | I79: 290 | J79: 535 | K79: 825 | L79: 0 | M79: 0 | N79: 0 | O79: 0 | P79: 0 | Q79: 14000 | T79: 3ro | U79: 4to | V79: Potenciar la producción de repostería especializada, promoviendo la precisión en la elaboración de panqués y roscas.
A80: Panaderia y cocina | B80: Charolas para Hornear de Aluminio | C80: N/A | G80: 38 | H80: 7 | I80: 134 | J80: 267 | K80: 401 | L80: 0 | M80: 0 | N80: 0 | O80: 0 | P80: 0 | Q80: 22800 | T80: 3ro | U80: 4to | V80: Mejorar la eficiencia en la panadería y repostería, optimizando el manejo y distribución de productos horneados.
A81: Jardineria | B81: Desbrozadora a Gasolina | C81: N/A | G81: 1 | H81: 1 | I81: 28 | J81: 60 | K81: 88 | L81: 0 | M81: 0 | N81: 0 | O81: 0 | P81: 0 | Q81: 4000 | T81: 3ro | U81: 4to | V81: Formar en mantenimiento de áreas verdes, fortaleciendo habilidades en el manejo seguro de herramientas agrícolas.
A82: Jardineria | B82: Bomba Fumigadora | C82: N/A | G82: 1 | H82: 1 | I82: 22 | J82: 28 | K82: 50 | L82: 0 | M82: 0 | N82: 0 | O82: 0 | P82: 0 | Q82: 3000 | T82: 3ro | U82: 4to | V82: Instruir en prácticas de control de plagas y cuidado de cultivos, fomentando la seguridad y el uso responsable de químicos.
A83: Jardineria | B83: Tijeras Podadora | C83: N/A | G83: 2 | H83: 1 | I83: 22 | J83: 28 | K83: 50 | L83: 0 | M83: 0 | N83: 0 | O83: 0 | P83: 0 | Q83: 1100 | T83: 3ro | U83: 4to | V83: Desarrollar competencias en jardinería y poda de precisión, mejorando el cuidado y mantenimiento de plantas y árboles.
A84: Jardineria | B84: Freidora de Aire con Canasta | C84: N/A | G84: 1 | H84: 1 | I84: 19 | J84: 27 | K84: =I84+J84 -> 46 | L84: 0 | M84: 0 | N84: 0 | O84: 0 | P84: =SUM(N84,O84) -> 0 | Q84: 7000 | T84: 3ro | U84: 4to | V84: Fomentar habilidades culinarias saludables, promoviendo la preparación de alimentos con menor uso de grasa.
A85: Panaderia y cocina | B85: Horno Microondas de 1.4 pies cúbicos. Material: Acero inoxidable, vidrio y plástico. Color: Acero inoxidable. Potencia 1500W, voltaje 127 V. | C85: N/A | G85: 3 | H85: 3 | I85: 87 | J85: 133 | K85: 220 | L85: 0 | M85: 0 | N85: 0 | O85: 0 | P85: 0 | Q85: 18000 | T85: 3ro | U85: 4to | V85: Herramienta que facilita al alumno aprender a preparar alimentos calientes, controlar temperaturas.
A86: Carpinteria | B86: Cepilladora Eléctrica | C86: N/A | G86: 2 | H86: 2 | I86: 81 | J86: 71 | K86: 152 | L86: 0 | M86: 0 | N86: 0 | O86: 0 | P86: 0 | Q86: 24000 | T86: 3ro | U86: 4to | V86: Desarrolla habilidades motoras y técnicas para la formación labora.
A87: Carpinteria | B87: Lijadora Orbital | C87: N/A | G87: 2 | H87: 2 | I87: 81 | J87: 71 | K87: 152 | L87: 0 | M87: 0 | N87: 0 | O87: 0 | P87: 0 | Q87: 12000 | T87: 3ro | U87: 4to | V87: Desarrolla habilidades en carpintería y acabados, mejorando la precisión y calidad en el lijado de superficies.
A88: Panaderia y cocina | B88: Juego de Ollas de Acero Inoxidable | C88: N/A | G88: 1 | H88: 1 | I88: 19 | J88: 27 | K88: 46 | L88: 0 | M88: 0 | N88: 0 | O88: 0 | P88: 0 | Q88: 6000 | T88: 3ro | U88: 4to | V88: Fomentar competencias en gastronomía y cocina profesional, promoviendo autonomía y habilidades culinarias.
A89: Carpinteria | B89: Sierra Caladora | C89: N/A | G89: 1 | H89: 1 | I89: 27 | J89: 98 | K89: 125 | L89: 0 | M89: 0 | N89: 0 | O89: 0 | P89: 0 | Q89: 12500 | T89: 3ro | U89: 4to | V89: Potenciar destrezas en corte y ensamblaje de materiales, reforzando la seguridad y técnica en carpintería.
A90: Carpinteria | B90: Sierra Angular | C90: N/A | G90: 1 | H90: 1 | I90: 21 | J90: 32 | K90: 53 | L90: 0 | M90: 0 | N90: 0 | O90: 0 | P90: 0 | Q90: 24000 | T90: 3ro | U90: 4to | V90: Capacitar en cortes precisos y ensamblaje estructural, optimizando el trabajo en madera y metal.
A91: Artesanias familiares | B91: Impresora para Subliminar 8 en 1, Impresora Sublimación Impresora, tinta, papel, cinta y mas Bandeja Deslizable y Corrediza las dos en una sola plancha. Accesorio para sublimar plumas, lápiz, lapiceros “metálicos” | D91: N/A | G91: 1 | H91: 1 | I91: 34 | J91: 33 | K91: 67 | L91: 0 | M91: 0 | N91: 0 | O91: 0 | P91: 0 | Q91: 25000 | T91: 3ro | U91: 4to | V91: Estimula la creatividad de los estudiantes, ya que pueden experimentar con sus propios diseños, imágenes y patrones, lo que contribuye al desarrollo de su expresión artística y habilidades de diseño gráfico.
A92: Artesanias familiares | B92: Máquina Overlook de 4 hilos. Sobrehíla y corta simultáneamente con 4, 3 y 2 hilos. Incluye guía de colores y luz led que ilumina los ganchos de enhebrado para facilitar al enhebrar. | C92: N/A | G92: 1 | H92: 1 | I92: 28 | J92: 60 | K92: 88 | L92: 0 | M92: 0 | N92: 0 | O92: 0 | P92: 0 | Q92: 17000 | T92: 3ro | U92: 4to | V92: Brindar herramientas para que las personas con discapacidad puedan integrarse al ámbito productivo, ya sea en talleres familiares, cooperativas o negocios propios.
A93: Jardineria | B93: Cava Hoyos | C93: N/A | G93: 1 | H93: 1 | I93: 28 | J93: 60 | K93: =I93+J93 -> 88 | L93: 0 | M93: 0 | N93: 0 | O93: 0 | P93: =SUM(N93,O93) -> 0 | Q93: 1100 | T93: 3ro | U93: 4to | V93: Facilitar la formación en jardinería y construcción, mejorando la eficiencia en la excavación de suelos.
A94: N/A | B94: N/A | C94: N/A | G94: 0 | H94: 0 | I94: 0 | J94: 0 | K94: =I94+J94 -> 0 | L94: 0 | M94: 0 | N94: 0 | O94: 0 | P94: =SUM(N94,O94) -> 0 | Q94: 0 | T94: N/A | U94: N/A | V94: N/A
A95: Total | G95: =SUM(G55:G94) -> 237 | H95: =SUM(H55:H94) -> 139 | I95: =SUM(I55:I94) -> 3580 | J95: =SUM(J55:J94) -> 6176 | K95: =SUM(K55:K94) -> 9756 | L95: 0 | M95: 0 | N95: 0 | O95: 0 | P95: =SUM(N95,O95) -> 0 | Q95: =SUM(Q55:Q94) -> 2119063
A97: En caso de requerir alguna precisión o aclaración, describa brevemente:
A98: N/A
A100: 3.7 Adquirir ayudas técnicas para la accesibilidad y movilidad que mejoren las condiciones para el desplazamiento, orientación y comunicación del estudiante con discapacidad
A101: Recurso programado: | C101: ='Distribución presupuestal 2025'!H68 -> 75000
A102: Remanente | C102: =C101-AV111 -> 0
C104: Focalizados USAER | F104: ='SEE 2025'!B$26 -> 174 | H104: Focalizados CAM básico | K104: ='SEE 2025'!C$26 -> 2 | M104: Focalizados CAM b con FpT | P104: ='SEE 2025'!C$28 -> 25 | R104: Focalizados CAM laboral | U104: ='SEE 2025'!D$26 -> 0 | W104: Focalizados CAPEP | Z104: ='SEE 2025'!E$26 -> 0 | AB104: Focalizados CRIE | AE104: ='SEE 2025'!F$26 -> 0 | AG104: Focalizados UOP | AJ104: ='SEE 2025'!G$26 -> 0 | AL104: Focalizados UAEBH | AO104: ='SEE 2025'!H$26 -> 2 | AQ104: Focalizados Otro | AT104: ='SEE 2025'!I$26 -> 0
A105: Tipo de ayuda (seleccione) | B105: Ayuda a adquirir | C105: Cantidad a distribuir | D105: USAER | H105: Cantidad a distribuir | I105: CAM básico | M105: Cantidad a distribuir | N105: CAM básico con FpT | R105: Cantidad a distribuir | S105: CAM laboral | W105: Cantidad a distribuir | X105: CAPEP | AB105: Cantidad a distribuir | AC105: CRIE | AG105: Cantidad a distribuir | AH105: UOP | AL105: Cantidad a distribuir | AM105: UAEBH | AQ105: Cantidad a distribuir | AR105: Otro | AV105: Presupuesto | AW105: Trimestre de inicio | AX105: Trimestre de término | AY105: Propósito educativo (específico de los materiales a adquirir)
D106: SEE | E106: Estudiantes | I106: SEE | J106: Estudiantes | N106: SEE | O106: Estudiantes | S106: SEE | T106: Estudiantes | X106: SEE | Y106: Estudiantes | AC106: SEE | AD106: Estudiantes | AH106: SEE | AI106: Estudiantes | AM106: SEE | AN106: Estudiantes | AR106: SEE | AS106: Estudiantes
E107: M | F107: H | G107: T | J107: M | K107: H | L107: T | O107: M | P107: H | Q107: T | T107: M | U107: H | V107: T | Y107: M | Z107: H | AA107: T | AD107: M | AE107: H | AF107: T | AI107: M | AJ107: H | AK107: T | AN107: M | AO107: H | AP107: T | AS107: M | AT107: H | AU107: T
A108: Para el desplazamiento | B108: Silla de Ruedas | C108: 0 | D108: 0 | E108: 0 | F108: =SUM(D108,E108) -> 0 | G108: =SUM(E108,F108) -> 0 | H108: 0 | I108: 0 | J108: 0 | K108: =SUM(I108,J108) -> 0 | L108: =SUM(J108,K108) -> 0 | M108: 2 | N108: 1 | O108: 1 | P108: 2 | Q108: =SUM(O108,P108) -> 3 | R108: 0 | S108: 0 | T108: 0 | U108: =SUM(S108,T108) -> 0 | V108: =SUM(T108,U108) -> 0 | W108: 0 | X108: 0 | Y108: 0 | Z108: 0 | AA108: =SUM(Y108,Z108) -> 0 | AB108: 0 | AC108: 0 | AD108: 0 | AE108: 0 | AF108: =SUM(AD108,AE108) -> 0 | AG108: 0 | AH108: 0 | AI108: 0 | AJ108: 0 | AK108: =SUM(AI108,AJ108) -> 0 | AL108: 0 | AM108: 0 | AN108: 0 | AO108: 0 | AP108: =SUM(AN108,AO108) -> 0 | AQ108: 0 | AR108: 0 | AS108: 0 | AT108: 0 | AU108: =SUM(AS108,AT108) -> 0 | AV108: 9000 | AW108: 3ro | AX108: 4to | AY108: Desarrollan habilidades motoras gruesas y puedan participar en actividades físicas que fomentan la fuerza, la coordinación y el equilibrio.
A109: Para el desplazamiento | B109: Andadera con Rueda Pegable | C109: 0 | D109: 0 | E109: 0 | F109: =SUM(D109,E109) -> 0 | G109: 0 | H109: 0 | I109: 0 | J109: =SUM(H109,I109) -> 0 | K109: =SUM(I109,J109) -> 0 | L109: =SUM(J109,K109) -> 0 | M109: 6 | N109: 2 | O109: 4 | P109: 7 | Q109: =SUM(O109,P109) -> 11 | R109: 0 | S109: 0 | T109: 0 | U109: =SUM(S109,T109) -> 0 | V109: 0 | W109: 0 | X109: 0 | Y109: 0 | Z109: 0 | AA109: =SUM(Y109,Z109) -> 0 | AB109: 0 | AC109: 0 | AD109: 0 | AE109: 0 | AF109: =SUM(AD109,AE109) -> 0 | AG109: 0 | AH109: 0 | AI109: 0 | AJ109: 0 | AK109: =SUM(AI109,AJ109) -> 0 | AL109: 0 | AM109: 0 | AN109: 0 | AO109: 0 | AP109: =SUM(AN109,AO109) -> 0 | AQ109: 0 | AR109: 0 | AS109: 0 | AT109: 0 | AU109: =SUM(AS109,AT109) -> 0 | AV109: 12000 | AW109: 3ro | AX109: 4to | AY109: Contribuyen al desarrollo cognitivo al realizar tareas que requieren autonomia.
A110: Para el desplazamiento | B110: Silla PCI | C110: 0 | D110: 0 | E110: 0 | F110: =SUM(D110,E110) -> 0 | G110: =SUM(E110,F110) -> 0 | H110: 0 | I110: 0 | J110: 0 | K110: 0 | L110: =SUM(J110,K110) -> 0 | M110: 2 | N110: 1 | O110: 1 | P110: 2 | Q110: 3 | R110: 0 | S110: 0 | T110: 0 | U110: =SUM(S110,T110) -> 0 | V110: =SUM(T110,U110) -> 0 | W110: 0 | X110: 0 | Y110: 0 | Z110: 0 | AA110: =SUM(Y110,Z110) -> 0 | AB110: 0 | AC110: 0 | AD110: 0 | AE110: 0 | AF110: =SUM(AD110,AE110) -> 0 | AG110: 0 | AH110: 0 | AI110: 0 | AJ110: 0 | AK110: =SUM(AI110,AJ110) -> 0 | AL110: 0 | AM110: 0 | AN110: 0 | AO110: 0 | AP110: =SUM(AN110,AO110) -> 0 | AQ110: 0 | AR110: 0 | AS110: 0 | AT110: 0 | AU110: =SUM(AS110,AT110) -> 0 | AV110: 54000 | AW110: 3ro | AX110: 4to | AY110: Aseguran que los estudiantes con dificultades visuales puedan ver claramente y moverse con seguridad en su entorno. Este apoyo visual contribuye a la inclusión educativa y permite a los alumnos desempeñar sus tareas de manera eficiente.
A111: Total | C111: 0 | D111: 0 | E111: 0 | F111: 0 | G111: =SUM(E111,F111) -> 0 | H111: 0 | I111: 0 | J111: 0 | K111: 0 | L111: =SUM(J111,K111) -> 0 | M111: =SUM(M108:M110) -> 10 | N111: =SUM(N108:N110) -> 4 | O111: =SUM(O108:O110) -> 6 | P111: =SUM(P108:P110) -> 11 | Q111: =SUM(Q108:Q110) -> 17 | R111: 0 | S111: 0 | T111: 0 | U111: 0 | V111: =SUM(T111,U111) -> 0 | W111: 0 | X111: 0 | Y111: 0 | Z111: 0 | AA111: =SUM(Y111,Z111) -> 0 | AB111: 0 | AC111: 0 | AD111: 0 | AE111: 0 | AF111: =SUM(AD111,AE111) -> 0 | AG111: 0 | AH111: 0 | AI111: 0 | AJ111: 0 | AK111: =SUM(AI111,AJ111) -> 0 | AL111: 0 | AM111: 0 | AN111: 0 | AO111: 0 | AP111: =SUM(AN111,AO111) -> 0 | AQ111: 0 | AR111: 0 | AS111: 0 | AT111: 0 | AU111: =SUM(AS111,AT111) -> 0 | AV111: =SUM(AV108:AV110) -> 75000
A113: En caso de requerir alguna precisión o aclaración, describa brevemente:
A114: N/A
A116: 3.8 Dotar de mobiliario ordinario y/o adaptado para estudiantes con discapacidad
A117: Recurso programado: | C117: ='Distribución presupuestal 2025'!H69 -> 468950
A118: Remanente | C118: =C117-AV128 -> 0
C120: Focalizados USAER | F120: ='SEE 2025'!B$26 -> 174 | H120: Focalizados CAM básico | K120: ='SEE 2025'!C$26 -> 2 | M120: Focalizados CAM b con FpT | P120: ='SEE 2025'!C28 -> 25 | R120: Focalizados CAM laboral | U120: ='SEE 2025'!D$26 -> 0 | W120: Focalizados CAPEP | Z120: ='SEE 2025'!E$26 -> 0 | AB120: Focalizados CRIE | AE120: ='SEE 2025'!F$26 -> 0 | AG120: Focalizados UOP | AJ120: ='SEE 2025'!G$26 -> 0 | AL120: Focalizados UAEBH | AO120: ='SEE 2025'!H$26 -> 2 | AQ120: Focalizados Otro | AT120: ='SEE 2025'!I$26 -> 0
A121: Especifique el tipo de mobiliario a adquirir | C121: Cantidad a distribuir | D121: USAER | H121: Cantidad a distribuir | I121: CAM básico | M121: Cantidad a distribuir | N121: CAM básico con FpT | R121: Cantidad a distribuir | S121: CAM laboral | W121: Cantidad a distribuir | X121: CAPEP | AB121: Cantidad a distribuir | AC121: CRIE | AG121: Cantidad a distribuir | AH121: UOP | AL121: Cantidad a distribuir | AM121: UAEBH | AQ121: Cantidad a distribuir | AR121: Otro | AV121: Presupuesto | AW121: Trimestre de inicio | AX121: Trimestre de término | AY121: Propósito educativo (específico del mobiliario a adquirir)
D122: SEE | E122: Estudiantes | I122: SEE | J122: Estudiantes | N122: SEE | O122: Estudiantes | S122: SEE | T122: Estudiantes | X122: SEE | Y122: Estudiantes | AC122: SEE | AD122: Estudiantes | AH122: SEE | AI122: Estudiantes | AM122: SEE | AN122: Estudiantes | AR122: SEE | AS122: Estudiantes
E123: M | F123: H | G123: T | J123: M | K123: H | L123: T | O123: M | P123: H | Q123: T | T123: M | U123: H | V123: T | Y123: M | Z123: H | AA123: T | AD123: M | AE123: H | AF123: T | AI123: M | AJ123: H | AK123: T | AN123: M | AO123: H | AP123: T | AS123: M | AT123: H | AU123: T
A124: Mesa Infantil Trapezoidal | C124: 0 | D124: 0 | E124: 0 | F124: 0 | G124: =SUM(E124,F124) -> 0 | H124: 0 | I124: 0 | J124: 0 | K124: 0 | L124: =SUM(J124,K124) -> 0 | M124: 5 | N124: 1 | O124: 34 | P124: 33 | Q124: =SUM(O124,P124) -> 67 | R124: 0 | S124: 0 | T124: 0 | U124: 0 | V124: =SUM(T124,U124) -> 0 | W124: 0 | X124: 0 | Y124: 0 | Z124: 0 | AA124: =SUM(Y124,Z124) -> 0 | AB124: 0 | AC124: 0 | AD124: 0 | AE124: 0 | AF124: =SUM(AD124,AE124) -> 0 | AG124: 0 | AH124: 0 | AI124: 0 | AJ124: 0 | AK124: =SUM(AI124,AJ124) -> 0 | AL124: 0 | AM124: 0 | AN124: 0 | AO124: 0 | AP124: =SUM(AN124,AO124) -> 0 | AQ124: 0 | AR124: 0 | AS124: 0 | AT124: 0 | AU124: =SUM(AS124,AT124) -> 0 | AV124: 11250 | AW124: 3ro | AX124: 4to | AY124: Fomentan la colaboración y el trabajo en equipo.
A125: Paquete de Silla Preescolar con 10 Piezas | C125: 0 | D125: 0 | E125: 0 | F125: 0 | G125: 0 | H125: 0 | I125: 0 | J125: 0 | K125: 0 | L125: =SUM(J125,K125) -> 0 | M125: 2 | N125: 2 | O125: 149 | P125: 173 | Q125: =SUM(O125,P125) -> 322 | R125: 0 | S125: 0 | T125: 0 | U125: 0 | V125: =SUM(T125,U125) -> 0 | W125: 0 | X125: 0 | Y125: 0 | Z125: 0 | AA125: =SUM(Y125,Z125) -> 0 | AB125: 0 | AC125: 0 | AD125: 0 | AE125: 0 | AF125: =SUM(AD125,AE125) -> 0 | AG125: 0 | AH125: 0 | AI125: 0 | AJ125: 0 | AK125: =SUM(AI125,AJ125) -> 0 | AL125: 0 | AM125: 0 | AN125: 0 | AO125: 0 | AP125: =SUM(AN125,AO125) -> 0 | AQ125: 0 | AR125: 0 | AS125: 0 | AT125: 0 | AU125: =SUM(AS125,AT125) -> 0 | AV125: 13800 | AW125: 3ro | AX125: 4to | AY125: Proveen comodidad y accesibilidad durante las actividades escolares.
A126: Mesa Tipo Tablón | C126: 23 | D126: 23 | E126: 228 | F126: 228 | G126: =E126+F126 -> 456 | H126: 0 | I126: 0 | J126: 0 | K126: 0 | L126: 0 | M126: 0 | N126: 0 | O126: 0 | P126: 0 | Q126: 0 | R126: 0 | S126: 0 | T126: 0 | U126: 0 | V126: 0 | W126: 0 | X126: 0 | Y126: 0 | Z126: 0 | AA126: 0 | AB126: 0 | AC126: 0 | AD126: 0 | AE126: 0 | AF126: 0 | AG126: 0 | AH126: 0 | AI126: 0 | AJ126: 0 | AK126: 0 | AL126: 0 | AM126: 0 | AN126: 0 | AO126: 0 | AP126: =SUM(AN126,AO126) -> 0 | AQ126: 0 | AR126: 0 | AS126: 0 | AT126: 0 | AU126: 0 | AV126: 98900 | AW126: 3ro | AX126: 4to | AY126: Promueven la participación activa en proyectos grupales.
A127: Silla Plegable | C127: 230 | D127: 23 | E127: 228 | F127: 228 | G127: =E127+F127 -> 456 | H127: 0 | I127: 0 | J127: 0 | K127: 0 | L127: 0 | M127: 0 | N127: 0 | O127: 0 | P127: 0 | Q127: 0 | R127: 0 | S127: 0 | T127: 0 | U127: 0 | V127: 0 | W127: 0 | X127: 0 | Y127: 0 | Z127: 0 | AA127: 0 | AB127: 0 | AC127: 0 | AD127: 0 | AE127: 0 | AF127: 0 | AG127: 0 | AH127: 0 | AI127: 0 | AJ127: 0 | AK127: 0 | AL127: 0 | AM127: 0 | AN127: 0 | AO127: 0 | AP127: =SUM(AN127,AO127) -> 0 | AQ127: 0 | AR127: 0 | AS127: 0 | AT127: 0 | AU127: 0 | AV127: 345000 | AW127: 3ro | AX127: 4to | AY127: Facilitan la flexibilidad y organización en el aula.
A128: Total | C128: =SUM(C124:C127) -> 253 | D128: 46 | E128: 456 | F128: 456 | G128: 912 | H128: 0 | I128: 0 | J128: 0 | K128: 0 | L128: 0 | M128: 7 | N128: 3 | O128: 183 | P128: 206 | Q128: 389 | R128: 0 | S128: 0 | T128: 0 | U128: 0 | V128: 0 | W128: 0 | X128: 0 | Y128: 0 | Z128: 0 | AA128: 0 | AB128: 0 | AC128: 0 | AD128: 0 | AE128: 0 | AF128: 0 | AG128: 0 | AH128: 0 | AI128: 0 | AJ128: 0 | AK128: 0 | AL128: 0 | AM128: 0 | AN128: 0 | AO128: 0 | AP128: 0 | AQ128: 0 | AR128: 0 | AS128: 0 | AT128: 0 | AU128: 0 | AV128: 468950
A130: En caso de requerir alguna precisión o aclaración, describa brevemente:
A131: N/A
A133: 3.9 Adquirir equipamiento y materiales para aulas multisensoriales
A134: Recurso programado: | C134: ='Distribución presupuestal 2025'!H70 -> 3592629
A135: Remanente | C135: =C134-R166 -> 0
C137: Focalizados CAM básico | F137: ='SEE 2025'!C26 -> 2 | H137: Focalizados CAM b con FpT | K137: ='SEE 2025'!C28 -> 25 | M137: Focalizados CAM laboral | P137: ='SEE 2025'!D26 -> 0
A138: Marque con "X" cuando sea aula de nueva creación | B138: Material a adquirir | C138: Cantidad a distribuir | D138: CAM básico | H138: Cantidad a distribuir | I138: CAM básico con FpT | M138: Cantidad a distribuir | N138: CAM laboral | R138: Presupuesto | U138: Trimestre de inicio | V138: Trimestre de término | W138: Propósito educativo (específico de los materiales a adquirir)
D139: SEE | E139: Estudiantes | I139: SEE | J139: Estudiantes | N139: SEE | O139: Estudiantes
E140: M | F140: H | G140: T | J140: M | K140: H | L140: T | O140: M | P140: H | Q140: T
A141: X | B141: Tubo de Burbujas | C141: 0 | D141: 0 | E141: 0 | F141: 0 | G141: =SUM(E141:F141) -> 0 | H141: 3 | I141: 3 | J141: 177 | K141: 106 | L141: =SUM(J141:K141) -> 283 | M141: 0 | N141: 0 | O141: 0 | P141: 0 | Q141: =SUM(O141:P141) -> 0 | R141: 252684 | U141: 3ro | V141: 4to | W141: Desarrolla la estimulación visual, auditiva y táctil; favorece la atención, la calma y la discriminación de colores y movimientos.
A142: X | B142: Fibra Óptica Lluvia | C142: 0 | D142: 0 | E142: 0 | F142: 0 | G142: =SUM(E142:F142) -> 0 | H142: 3 | I142: 3 | J142: 177 | K142: 106 | L142: =SUM(J142:K142) -> 283 | M142: 0 | N142: 0 | O142: 0 | P142: 0 | Q142: =SUM(O142:P142) -> 0 | R142: 235770 | U142: 3ro | V142: 4to | W142: Estimula la visión periférica, la exploración táctil y el seguimiento visual.
A143: X | B143: Tiras de Luz Led | C143: 0 | D143: 0 | E143: 0 | F143: 0 | G143: 0 | H143: 3 | I143: 3 | J143: 177 | K143: 106 | L143: 283 | M143: 0 | N143: 0 | O143: 0 | P143: 0 | Q143: 0 | R143: 95250 | U143: 3ro | V143: 4to | W143: Estimulación visual mediante cambios de color y ritmo de luz.
A144: X | B144: Panel Multinfinito | C144: 0 | D144: 0 | E144: 0 | F144: 0 | G144: 0 | H144: 3 | I144: 3 | J144: 177 | K144: 106 | L144: 283 | M144: 0 | N144: 0 | O144: 0 | P144: 0 | Q144: 0 | R144: 338169 | U144: 3ro | V144: 4to | W144: Estimula la percepción visual y la profundidad; favorece la atención sostenida.
A145: X | B145: Panel Interactivo Cambiado de Color | C145: 0 | D145: 0 | E145: 0 | F145: 0 | G145: 0 | H145: 3 | I145: 3 | J145: 177 | K145: 106 | L145: 283 | M145: 0 | N145: 0 | O145: 0 | P145: 0 | Q145: 0 | R145: 335259 | U145: 3ro | V145: 4to | W145: Desarrolla la noción de causa-efecto mediante interacción directa.
A146: X | B146: Proyector Aura | C146: 0 | D146: 0 | E146: 0 | F146: 0 | G146: 0 | H146: 3 | I146: 3 | J146: 177 | K146: 106 | L146: 283 | M146: 0 | N146: 0 | O146: 0 | P146: 0 | Q146: 0 | R146: 72861 | U146: 3ro | V146: 4to | W146: Estimulación visual envolvente con efectos calmantes.
A147: X | B147: Cubo Mágico | C147: 0 | D147: 0 | E147: 0 | F147: 0 | G147: 0 | H147: 3 | I147: 3 | J147: 177 | K147: 106 | L147: 283 | M147: 0 | N147: 0 | O147: 0 | P147: 0 | Q147: 0 | R147: 115791 | U147: 3ro | V147: 4to | W147: Desarrolla la coordinación ojo-mano, resolución de problemas y atención.
A148: X | B148: Controlador Universal | C148: 0 | D148: 0 | E148: 0 | F148: 0 | G148: 0 | H148: 3 | I148: 3 | J148: 177 | K148: 106 | L148: 283 | M148: 0 | N148: 0 | O148: 0 | P148: 0 | Q148: 0 | R148: 113427 | U148: 3ro | V148: 4to | W148: Permite al usuario controlar distintos dispositivos sensoriales (luces, sonidos, etc.), favoreciendo la autonomía.
A149: X | B149: Set Proyector de Luz Solar Led | C149: 0 | D149: 0 | E149: 0 | F149: 0 | G149: 0 | H149: 3 | I149: 3 | J149: 177 | K149: 106 | L149: 283 | M149: 0 | N149: 0 | O149: 0 | P149: 0 | Q149: 0 | R149: 149613 | U149: 3ro | V149: 4to | W149: Reproduce luz cálida tipo solar; estimulación visual y regulación del ritmo circadiano.
A150: X | B150: Alberca de Pelotas Tomatron | C150: 0 | D150: 0 | E150: 0 | F150: 0 | G150: 0 | H150: 3 | I150: 3 | J150: 177 | K150: 106 | L150: 283 | M150: 0 | N150: 0 | O150: 0 | P150: 0 | Q150: 0 | R150: 268017 | U150: 3ro | V150: 4to | W150: Estimulación táctil y propioceptiva; favorece la integración sensorial y la motricidad gruesa.
A151: X | B151: Espejo de Burbujas Diamante | C151: 0 | D151: 0 | E151: 0 | F151: 0 | G151: 0 | H151: 3 | I151: 3 | J151: 177 | K151: 106 | L151: 283 | M151: 0 | N151: 0 | O151: 0 | P151: 0 | Q151: 0 | R151: 164475 | U151: 3ro | V151: 4to | W151: Estimula la percepción visual y el autoconocimiento a través del reflejo y el movimiento.
A152: X | B152: Set Flourescente | C152: 0 | D152: 0 | E152: 0 | F152: 0 | G152: 0 | H152: 3 | I152: 3 | J152: 177 | K152: 106 | L152: 283 | M152: 0 | N152: 0 | O152: 0 | P152: 0 | Q152: 0 | R152: 25332 | U152: 3ro | V152: 4to | W152: Estimulación visual en ambientes oscuros; refuerza contrastes y percepción de forma.
A153: X | B153: Set de Aromaterapia | C153: 0 | D153: 0 | E153: 0 | F153: 0 | G153: 0 | H153: 3 | I153: 3 | J153: 177 | K153: 106 | L153: 283 | M153: 0 | N153: 0 | O153: 0 | P153: 0 | Q153: 0 | R153: 28545 | U153: 3ro | V153: 4to | W153: Estimulación olfativa que contribuye a la regulación emocional.
A154: X | B154: Cojines Graduados Musicales | C154: 0 | D154: 0 | E154: 0 | F154: 0 | G154: 0 | H154: 3 | I154: 3 | J154: 177 | K154: 106 | L154: 283 | M154: 0 | N154: 0 | O154: 0 | P154: 0 | Q154: 0 | R154: 41802 | U154: 3ro | V154: 4to | W154: Estimulación táctil, auditiva y propioceptiva; favorece el ritmo y la coordinación.
A155: X | B155: Hamaca/Columpio | C155: 0 | D155: 0 | E155: 0 | F155: 0 | G155: 0 | H155: 3 | I155: 3 | J155: 177 | K155: 106 | L155: 283 | M155: 0 | N155: 0 | O155: 0 | P155: 0 | Q155: 0 | R155: 96774 | U155: 3ro | V155: 4to | W155: Estimulación vestibular (equilibrio y orientación); regula la actividad motora.
A156: X | B156: Proyector de Estrella | C156: 0 | D156: 0 | E156: 0 | F156: 0 | G156: 0 | H156: 3 | I156: 3 | J156: 177 | K156: 106 | L156: 283 | M156: 0 | N156: 0 | O156: 0 | P156: 0 | Q156: 0 | R156: 39045 | U156: 3ro | V156: 4to | W156: Crea un entorno envolvente de calma y relajación mediante luces y formas.
A157: X | B157: Set de Sillón Almohada | C157: 0 | D157: 0 | E157: 0 | F157: 0 | G157: 0 | H157: 3 | I157: 3 | J157: 177 | K157: 106 | L157: 283 | M157: 0 | N157: 0 | O157: 0 | P157: 0 | Q157: 0 | R157: 25725 | U157: 3ro | V157: 4to | W157: Proporciona confort, seguridad y favorece la autorregulación emocional.
A158: X | B158: Paquete de Piso de Foamy Que Contiene 10 Paquetes De 3.2 Metros. | C158: 0 | D158: 0 | E158: 0 | F158: 0 | G158: 0 | H158: 3 | I158: 3 | J158: 177 | K158: 106 | L158: 283 | M158: 0 | N158: 0 | O158: 0 | P158: 0 | Q158: 0 | R158: 62700 | U158: 3ro | V158: 4to | W158: Seguridad y estimulación táctil del pie; delimitación de áreas sensoriales.
A159: X | B159: Panel de Canicas | C159: 0 | D159: 0 | E159: 0 | F159: 0 | G159: 0 | H159: 3 | I159: 3 | J159: 177 | K159: 106 | L159: 283 | M159: 0 | N159: 0 | O159: 0 | P159: 0 | Q159: 0 | R159: 200922 | U159: 3ro | V159: 4to | W159: Estimula la coordinación fina, atención y percepción visual.
A160: X | B160: Panel de Tacto | C160: 0 | D160: 0 | E160: 0 | F160: 0 | G160: 0 | H160: 3 | I160: 3 | J160: 177 | K160: 106 | L160: 283 | M160: 0 | N160: 0 | O160: 0 | P160: 0 | Q160: 0 | R160: 99489 | U160: 3ro | V160: 4to | W160: xplora diferentes texturas y temperaturas; desarrolla la discriminación táctil.
A161: X | B161: Cama de Agua Individual Vibro Acústica | C161: 0 | D161: 0 | E161: 0 | F161: 0 | G161: 0 | H161: 3 | I161: 3 | J161: 177 | K161: 106 | L161: 283 | M161: 0 | N161: 0 | O161: 0 | P161: 0 | Q161: 0 | R161: 191475 | U161: 3ro | V161: 4to | W161: Estimulación táctil y auditiva profunda; favorece la relajación y percepción corporal. Uso: Útil en terapias de integración sensorial.
A162: X | B162: Colchonetas de Pared | C162: 0 | D162: 0 | E162: 0 | F162: 0 | G162: 0 | H162: 3 | I162: 3 | J162: 177 | K162: 106 | L162: 283 | M162: 0 | N162: 0 | O162: 0 | P162: 0 | Q162: 0 | R162: 186117 | U162: 3ro | V162: 4to | W162: Seguridad y apoyo para actividades físicas; delimitan espacios de juego.
A163: X | B163: Controlador en Forma de Botonera | C163: 0 | D163: 0 | E163: 0 | F163: 0 | G163: 0 | H163: 3 | I163: 3 | J163: 177 | K163: 106 | L163: 283 | M163: 0 | N163: 0 | O163: 0 | P163: 0 | Q163: 0 | R163: 176394 | U163: 3ro | V163: 4to | W163: Desarrollo de la motricidad fina y causa-efecto; refuerzo de decisiones.
A164: X | B164: 3 Set de Espejos Acrilíco (Contiene 2 Piezas) | C164: 0 | D164: 0 | E164: 0 | F164: 0 | G164: 0 | H164: 3 | I164: 3 | J164: 177 | K164: 106 | L164: 283 | M164: 0 | N164: 0 | O164: 0 | P164: 0 | Q164: 0 | R164: 276993 | U164: 3ro | V164: 4to | W164: Autoconocimiento corporal, coordinación visual y reconocimiento de emociones.
A165: x | B165: N/A | C165: 0 | D165: 0 | E165: 0 | F165: 0 | G165: 0 | H165: 0 | I165: 0 | J165: 0 | K165: 0 | L165: 0 | M165: 0 | N165: 0 | O165: 0 | P165: 0 | Q165: 0 | R165: 0 | W165: N/A
A166: =COUNTIF(A156:A165,"X") -> 10 | B166: Total | C166: =SUM(C156:C165) -> 0 | D166: 0 | E166: 0 | F166: 0 | G166: 0 | H166: 27 | I166: 27 | J166: 1593 | K166: 954 | L166: 2547 | M166: 0 | N166: 0 | O166: 0 | P166: 0 | Q166: 0 | R166: =R165+R164+R163+R162+R161+R160+R159+R158+R157+R156+R155+R154+R153+R152+R151+R150+R149+R148+R147+R146+R145+R144+R143+R142+R141 -> 3592629
A168: En caso de requerir alguna precisión o aclaración, describa brevemente:
A169: Las aulas están programadas para beneficiar a los siguientes Centros de Atención Múltiple: CAM No. 4 de Centro, CAM No. 10 de Comalcalco y CAM No. 25 de Centla.

Sheet Equipamiento específico AS
AG1: Subsecretaría de Educación Básica Dirección General de Desarrollo Curricular Dirección de Fortalecimiento Curricular para la Formación Personal y Social en la Educación Básica Educación Especial
A6: Componente: 3. Equipamiento específico en beneficio de estudiantes con aptitudes sobresalientes
A7: Para garantizar el cumplimiento de los objetivos del PFSEE las AEL podrán destinar hasta un 80% del recurso, de acuerdo con lo estipulado en las reglas de operación 2025
A9: 3.10 Dotar de material didáctico especializado para estudiantes con aptitudes sobresalientes
A10: Recurso programado: | C10: ='Distribución presupuestal 2025'!W61 -> 231770
A11: Remanente | C11: =C10-AG19 -> 0
C13: Focalizados USAER | F13: ='SEE 2025'!N$26 -> 154 | H13: Focalizados CAPEP | K13: ='SEE 2025'!O$26 -> 0 | M13: Focalizados CRIE | P13: ='SEE 2025'!P$26 -> 0 | R13: Focalizados UOP | U13: ='SEE 2025'!Q$26 -> 0 | W13: Focalizados UAEBH | Z13: ='SEE 2025'!R$26 -> 0 | AB13: Focalizados Otro | AE13: ='SEE 2025'!S$26 -> 0
A14: Tipo de materiales (seleccione) | B14: Material a adquirir | C14: Cantidad a distribuir | D14: USAER | H14: Cantidad a distribuir | I14: CAPEP | M14: Cantidad a distribuir | N14: CRIE | R14: Cantidad a distribuir | S14: UOP | W14: Cantidad a distribuir | X14: UAEBH | AB14: Cantidad a distribuir | AC14: Otro | AG14: Presupuesto | AH14: Trimestre de inicio | AI14: Trimestre de término | AJ14: Propósito educativo (específico del material a adquirir)
D15: SEE | E15: Estudiantes | I15: SEE | J15: Estudiantes | N15: SEE | O15: Estudiantes | S15: SEE | T15: Estudiantes | X15: SEE | Y15: Estudiantes | AC15: SEE | AD15: Estudiantes
E16: M | F16: H | G16: T | J16: M | K16: H | L16: T | O16: M | P16: H | Q16: T | T16: M | U16: H | V16: T | Y16: M | Z16: H | AA16: T | AD16: M | AE16: H | AF16: T
A17: Juegos de estrategia | B17: Cubo Maágico de 4 Piezas | C17: 154 | D17: 154 | E17: 1089 | F17: 1007 | G17: =SUM(E17,F17) -> 2096 | H17: 0 | I17: 0 | J17: 0 | K17: 0 | L17: =SUM(J17,K17) -> 0 | M17: 0 | N17: 0 | O17: 0 | P17: 0 | Q17: =SUM(O17,P17) -> 0 | R17: 0 | S17: 0 | T17: 0 | U17: 0 | V17: =SUM(T17,U17) -> 0 | W17: 0 | X17: 0 | Y17: 0 | Z17: 0 | AA17: =SUM(Y17,Z17) -> 0 | AB17: 0 | AC17: 0 | AD17: 0 | AE17: 0 | AF17: =SUM(AD17,AE17) -> 0 | AG17: 116270 | AH17: 3ro | AI17: 4to | AJ17: Desarrollar habilidades de resolución de problemas, coordinación espacial y pensamiento lógico en los estudiantes.
A18: Material para ciencia | B18: Kit Educativo de Ciencia (Contiene tubos de ensayo, vasos de precipitación, pipetas, cucharas medidoras, materiales de seguridad, y diferentes sustancias químicas seguras para niños, como colorantes alimentarios y bicarbonato de sodio). | C18: 154 | D18: 154 | E18: 1089 | F18: 1007 | G18: =SUM(E18,F18) -> 2096 | H18: 0 | I18: 0 | J18: 0 | K18: 0 | L18: =SUM(J18,K18) -> 0 | M18: 0 | N18: 0 | O18: 0 | P18: 0 | Q18: 0 | R18: 0 | S18: 0 | T18: 0 | U18: 0 | V18: 0 | W18: 0 | X18: 0 | Y18: 0 | Z18: 0 | AA18: 0 | AB18: 0 | AC18: 0 | AD18: 0 | AE18: 0 | AF18: 0 | AG18: 115500 | AH18: 3ro | AI18: 4to | AJ18: Fomentar el interés por las ciencias naturales y experimentales, proporcionando a los estudiantes la oportunidad de realizar experimentos prácticos que explican conceptos científicos, se promueve el pensamiento crítico, la curiosidad científica y el aprendizaje basado en la experimentación, desarrollando habilidades de observación, análisis y resolución de problemas.
A19: Total | C19: =SUM(C17:C18) -> 308 | D19: 308 | E19: 2178 | F19: 2014 | G19: 4192 | H19: 0 | I19: 0 | J19: 0 | K19: 0 | L19: 0 | M19: 0 | N19: 0 | O19: 0 | P19: 0 | Q19: 0 | R19: 0 | S19: 0 | T19: 0 | U19: 0 | V19: 0 | W19: 0 | X19: 0 | Y19: 0 | Z19: 0 | AA19: 0 | AB19: 0 | AC19: 0 | AD19: 0 | AE19: 0 | AF19: 0 | AG19: 231770
A21: En caso de requerir alguna precisión o aclaración, describa brevemente:
A22: N/A
A24: 3.11 Adquirir equipamiento y materiales para espacios de lectura y dotar de material bibliográfico para estudiantes con aptitudes sobresalientes
A25: Recurso programado: | C25: ='Distribución presupuestal 2025'!W62 -> 565488
A26: Remanente | C26: =C25-AG36 -> 0
C28: Focalizados USAER | F28: ='SEE 2025'!N$26 -> 154 | H28: Focalizados CAPEP | K28: ='SEE 2025'!O$26 -> 0 | M28: Focalizados CRIE | P28: ='SEE 2025'!P$26 -> 0 | R28: Focalizados UOP | U28: ='SEE 2025'!Q$26 -> 0 | W28: Focalizados UAEBH | Z28: ='SEE 2025'!R$26 -> 0 | AB28: Focalizados Otro | AE28: ='SEE 2025'!S$26 -> 0
A29: Tipo de material (seleccione) | C29: Cantidad a distribuir | D29: USAER | H29: Cantidad a distribuir | I29: CAPEP | M29: Cantidad a distribuir | N29: CRIE | R29: Cantidad a distribuir | S29: UOP | W29: Cantidad a distribuir | X29: UAEBH | AB29: Cantidad a distribuir | AC29: Otro | AG29: Presupuesto | AH29: Trimestre de inicio | AI29: Trimestre de término | AJ29: Propósito educativo (específico de la bibliografía a adquirir)
D30: SEE | E30: Estudiantes | I30: SEE | J30: Estudiantes | N30: SEE | O30: Estudiantes | S30: SEE | T30: Estudiantes | X30: SEE | Y30: Estudiantes | AC30: SEE | AD30: Estudiantes
E31: M | F31: H | G31: T | J31: M | K31: H | L31: T | O31: M | P31: H | Q31: T | T31: M | U31: H | V31: T | Y31: M | Z31: H | AA31: T | AD31: M | AE31: H | AF31: T
A32: Libros especializados en ciencia | C32: 154 | D32: 154 | E32: 1089 | F32: 1007 | G32: =SUM(E32,F32) -> 2096 | H32: 0 | I32: 0 | J32: 0 | K32: 0 | L32: =SUM(J32,K32) -> 0 | M32: 0 | N32: 0 | O32: 0 | P32: 0 | Q32: =SUM(O32,P32) -> 0 | R32: 0 | S32: 0 | T32: 0 | U32: 0 | V32: =SUM(T32,U32) -> 0 | W32: 0 | X32: 0 | Y32: 0 | Z32: 0 | AA32: =SUM(Y32,Z32) -> 0 | AB32: 0 | AC32: 0 | AD32: 0 | AE32: 0 | AF32: =SUM(AD32,AE32) -> 0 | AG32: 98560 | AH32: 3ro | AI32: 4to | AJ32: Despertar la curiosidad científica y reflexionar sobre los grandes misterios del universo desde la perspectiva de la física y la cosmología
A33: Libros de literatura juvenil | C33: 154 | D33: 154 | E33: 1089 | F33: 1007 | G33: =SUM(E33,F33) -> 2096 | H33: 0 | I33: 0 | J33: 0 | K33: 0 | L33: =SUM(J33,K33) -> 0 | M33: 0 | N33: 0 | O33: 0 | P33: 0 | Q33: 0 | R33: 0 | S33: 0 | T33: 0 | U33: 0 | V33: 0 | W33: 0 | X33: 0 | Y33: 0 | Z33: 0 | AA33: 0 | AB33: 0 | AC33: 0 | AD33: 0 | AE33: 0 | AF33: 0 | AG33: 67760 | AH33: 3ro | AI33: 4to | AJ33: Desarrollar el pensamiento matemático a través de narraciones amenas que presentan problemas y acertijos matemáticos.
A34: Libros especializados en aptitudes sobresalientes | C34: 154 | D34: 154 | E34: 1089 | F34: 1007 | G34: 2096 | H34: 0 | I34: 0 | J34: 0 | K34: 0 | L34: 0 | M34: 0 | N34: 0 | O34: 0 | P34: 0 | Q34: 0 | R34: 0 | S34: 0 | T34: 0 | U34: 0 | V34: 0 | W34: 0 | X34: 0 | Y34: 0 | Z34: 0 | AA34: 0 | AB34: 0 | AC34: 0 | AD34: 0 | AE34: 0 | AF34: 0 | AG34: 50820 | AH34: 3ro | AI34: 4to | AJ34: Fortalecer habilidades cognitivas como la memoria, la concentración, el pensamiento lógico y la resolución de problemas a través de desafíos y ejercicios mentales
A35: Libros especializados en aptitudes sobresalientes | C35: 154 | D35: 154 | E35: 1089 | F35: 1007 | G35: 2096 | H35: 0 | I35: 0 | J35: 0 | K35: 0 | L35: 0 | M35: 0 | N35: 0 | O35: 0 | P35: 0 | Q35: 0 | R35: 0 | S35: 0 | T35: 0 | U35: 0 | V35: 0 | W35: 0 | X35: 0 | Y35: 0 | Z35: 0 | AA35: 0 | AB35: 0 | AC35: 0 | AD35: 0 | AE35: 0 | AF35: 0 | AG35: 348348 | AH35: 3ro | AI35: 4to | AJ35: Desarrolla habilidades de pensamiento lógico y análitico en los estudiantes, promoviendo la resolución de problemas de manera afectiva y creativa.
A36: Total | C36: =SUM(C32:C35) -> 616 | D36: 616 | E36: 4356 | F36: 4028 | G36: 8384 | H36: 0 | I36: 0 | J36: 0 | K36: 0 | L36: 0 | M36: 0 | N36: 0 | O36: 0 | P36: 0 | Q36: 0 | R36: 0 | S36: 0 | T36: 0 | U36: 0 | V36: 0 | W36: 0 | X36: 0 | Y36: 0 | Z36: 0 | AA36: 0 | AB36: 0 | AC36: 0 | AD36: 0 | AE36: 0 | AF36: 0 | AG36: 565488
A38: En caso de requerir alguna precisión o aclaración, describa brevemente:
A39: N/A
A41: 3.13 Dotar de euipo tecnológico y/o multimedia para estudiantes con aptitudes sobresalientes
A42: Recurso programado: | C42: ='Distribución presupuestal 2025'!W64 -> 1044000
A43: Remanente | C43: =C42-AG51 -> 0
C45: Focalizados USAER | F45: ='SEE 2025'!N$26 -> 154 | H45: Focalizados CAPEP | K45: ='SEE 2025'!O$26 -> 0 | M45: Focalizados CRIE | P45: ='SEE 2025'!P$26 -> 0 | R45: Focalizados UOP | U45: ='SEE 2025'!Q$26 -> 0 | W45: Focalizados UAEBH | Z45: ='SEE 2025'!R$26 -> 0 | AB45: Focalizados Otro | AE45: ='SEE 2025'!S$26 -> 0
A46: Tipo de equipo (seleccione) | B46: Características generales de los equipos | C46: Cantidad a distribuir | D46: USAER | H46: Cantidad a distribuir | I46: CAPEP | M46: Cantidad a distribuir | N46: CRIE | R46: Cantidad a distribuir | S46: UOP | W46: Cantidad a distribuir | X46: UAEBH | AB46: Cantidad a distribuir | AC46: Otro | AG46: Presupuesto | AH46: Trimestre de inicio | AI46: Trimestre de término | AJ46: Propósito educativo (específico de los materiales)
D47: SEE | E47: Estudiantes | I47: SEE | J47: Estudiantes | N47: SEE | O47: Estudiantes | S47: SEE | T47: Estudiantes | X47: SEE | Y47: Estudiantes | AC47: SEE | AD47: Estudiantes
E48: M | F48: H | G48: T | J48: M | K48: H | L48: T | O48: M | P48: H | Q48: T | T48: M | U48: H | V48: T | Y48: M | Z48: H | AA48: T | AD48: M | AE48: H | AF48: T
A49: Impresora | B49: Impresora Laser, Multifuncional, Pantalla Táctil en Color, USB, WIFI. | C49: 45 | D49: 45 | E49: 175 | F49: 175 | G49: =SUM(E49,F49) -> 350 | H49: 0 | I49: 0 | J49: 0 | K49: 0 | L49: =SUM(J49,K49) -> 0 | M49: 0 | N49: 0 | O49: 0 | P49: 0 | Q49: =SUM(O49,P49) -> 0 | R49: 0 | S49: 0 | T49: 0 | U49: 0 | V49: =SUM(T49,U49) -> 0 | W49: 0 | X49: 0 | Y49: 0 | Z49: 0 | AA49: =SUM(Y49,Z49) -> 0 | AB49: 0 | AC49: 0 | AD49: 0 | AE49: 0 | AF49: =SUM(AD49,AE49) -> 0 | AG49: 810000 | AH49: 3ro | AI49: 4to | AJ49: Permite reproducir material didáctico y de apoyo para reforzar las actividades y ampliar los conocimientos de los alumnos.
A50: Cañón | B50: Videoproyector 3LCD, de Tres Chips,Pantalla LCD, Lente de Proyección, Entrada USB Tipo A y B, HDMI, Salida VGA, Audio. | C50: 12 | D50: 12 | E50: 39 | F50: 45 | G50: =SUM(E50,F50) -> 84 | H50: 0 | I50: 0 | J50: 0 | K50: 0 | L50: 0 | M50: 0 | N50: 0 | O50: 0 | P50: 0 | Q50: 0 | R50: 0 | S50: 0 | T50: 0 | U50: 0 | V50: 0 | W50: 0 | X50: 0 | Y50: 0 | Z50: 0 | AA50: 0 | AB50: 0 | AC50: 0 | AD50: 0 | AE50: 0 | AF50: 0 | AG50: 234000 | AH50: 3ro | AI50: 4to | AJ50: Realizar actividades audiovisuales para mejorar la experiencia de aprendizaje en el alumno, reforzando la memoria fotográfica, así como el acercamiento de los alumnos al uso de la tecnología mostrando al proyector como una herramienta de apoyo para el aprendizaje.
A51: Total | C51: =SUM(C49:C50) -> 57 | D51: 57 | E51: 214 | F51: 220 | G51: 434 | H51: 0 | I51: 0 | J51: 0 | K51: 0 | L51: 0 | M51: 0 | N51: 0 | O51: 0 | P51: 0 | Q51: 0 | R51: 0 | S51: 0 | T51: 0 | U51: 0 | V51: 0 | W51: 0 | X51: 0 | Y51: 0 | Z51: 0 | AA51: 0 | AB51: 0 | AC51: 0 | AD51: 0 | AE51: 0 | AF51: 0 | AG51: 1044000
A53: En caso de requerir alguna precisión o aclaración, describa brevemente:
A54: N/A

Sheet GOL
A1: Subsecretaría de Educación Básica Dirección General de Desarrollo Curricular Dirección de Fortalecimiento Curricular para la Formación Personal y Social en la Educación Básica Educación Especial
A6: Recurso programado: | B6: ='Distribución presupuestal 2025'!S14 -> 187600
A7: Remanente | B7: =B6-E16 -> 0
A9: Gastos de operación local 2025
A10: Tipo | B10: Descripción de las actividades a realizar en cada caso | C10: Trimestre de inicio | D10: Trimestre de término | E10: Presupuesto
A11: Seguimiento y supervisión | B11: 1. Visitas de seguimiento por parte de las diferentes áreas de la DGDC. 2. Realizar un seguimiento a la recepción de los materiales, visitando a los servicios para verificar que los materiales sean utilizados correctamente. 3. Detectar posibles problemas y proponer soluciones. Por lo que sera necesario el uso de viaticos y gasolina. | C11: 2do | D11: 3ro | E11: 20250
A12: Evaluación | B12: Desarrollo de Evaluación Interna, númeral 6.1 de RO. | C12: N/A | D12: N/A | E12: 0
A13: Acciones de Contraloría Social | B13: Las actividades de Contraloría Social serán descritas en el Programa de Trabajo de la Instancia Ejecutora. | C13: 3ro | D13: 4to | E13: 89600
A14: Asistencia a reuniones convocadas por la DGDC | B14: Asitencia a 1 reunión nacional | C14: 3ro | D14: 4to | E14: 38300
A15: Distribución de materiales a los SEE focalizados | B15: Garantizar que los materiales lleguen oportunamente a los SEE focalizados. Se armarán los paquetes de materiales por servicio, para entregar de manera ordenada mediante la elaboración de un calendario de entrega,serán distribuidos en vehiculos oficiales de la SETAB, para lo cual se comprará combustible para cubrir la entrega en el estado y viáticos al personal que apoye en al entrega. | C15: 4to | D15: 4to | E15: 39450
E16: =SUM(E11:E15) -> 187600
A18: En caso de requerir alguna precisión o aclaración, describa brevemente:
A19: N/A

Sheet Autorización
G1: Subsecretaría de Educación Básica Dirección General de Desarrollo Curricular Dirección de Fortalecimiento Curricular para la Formación Personal y Social en la Educación Básica
A6: AUTORIZACIÓN PLAN ANUAL DE TRABAJO 2025
A7: En caso de que en su entidad federativa no se cuente con alguno de los subsistemas, se solicita no dejar en blanco el apartado de firmas, sino agregar N/A en cada caso
A10: Validación de la Persona Coordinadora Local del PFSEE
A11: Nombre | D11: Psic. María Eugenia Deantes Salazar
A12: Cargo | D12: Coordinadora Local del PFSEE
A13: Firma y sello
A15: Validación de la / del Responsable de Educación Especial subsistema Estatal
A16: Nombre | D16: Psic. María Eugenia Deantes Salazar
A17: Cargo | D17: Directora
A18: Firma y sello
A20: Validación de la / del Responsable de Educación Especial subsistema Federal
A21: Nombre | D21: Psic. María Eugenia Deantes Salazar
A22: Cargo | D22: Directora
A23: Firma y sello
